columns,,Body Name,Organisation Code,Service Label,Service Code,Organisation Unit,Expenditure Category,Expenditure Code,Narrative,Date,Transaction No,Net Amount,Supplier ID,Amended Supplier Name
INSERTED DETAIL,,Ealing Council,http://opendatacommunities.org/id/london-borough-council/ealing,PLACE,6,STREET SERVICES,PAYMENTS TO CONTRACTORS,4000,,31/12/2022,41045501,11824,16351,MPM GRAFFITI SOLUTIONS
INSERTED DETAIL,,Ealing Council,http://opendatacommunities.org/id/london-borough-council/ealing,PLACE,6,STREET SERVICES,EQUIPMENT  - PURCHASES,3320,,22/12/2022,41045589,10203,28889,UK CONTAINER MAINTENANCE LTD
INSERTED DETAIL,,Ealing Council,http://opendatacommunities.org/id/london-borough-council/ealing,PLACE,6,STREET SERVICES,PAYMENTS TO CONTRACTORS,4000,,20/01/2023,41045066,781464.32,28826,GREENER EALING LIMITED
INSERTED DETAIL,,Ealing Council,http://opendatacommunities.org/id/london-borough-council/ealing,CHILDREN & ADULTS,1,DISABILITIES,CONTRACTUAL CARERS ALLOWANCES,4380,,09/01/2023,41045037,1690.9,23161,REDACTED SENSITIVE SUPPLIER
INSERTED DETAIL,,Ealing Council,http://opendatacommunities.org/id/london-borough-council/ealing,CHILDREN & ADULTS,1,DISABILITIES,CONTRACTUAL CARERS ALLOWANCES,4380,,09/01/2023,41045034,1510.31,27515,REDACTED SENSITIVE SUPPLIER
INSERTED DETAIL,,Ealing Council,http://opendatacommunities.org/id/london-borough-council/ealing,CHILDREN & ADULTS,1,DISABILITIES,CONTRACTUAL CARERS ALLOWANCES,4380,,09/01/2023,41045030,4045.71,22385,REDACTED SENSITIVE SUPPLIER
INSERTED DETAIL,,Ealing Council,http://opendatacommunities.org/id/london-borough-council/ealing,CHILDREN & ADULTS,1,DISABILITIES,CONTRACTUAL CARERS ALLOWANCES,4380,,09/01/2023,41045032,1912.13,16941,REDACTED SENSITIVE SUPPLIER
INSERTED DETAIL,,Ealing Council,http://opendatacommunities.org/id/london-borough-council/ealing,CHILDREN & ADULTS,1,DISABILITIES,CONTRACTUAL CARERS ALLOWANCES,4380,,09/01/2023,41045041,1469.45,200134,REDACTED SENSITIVE SUPPLIER
INSERTED DETAIL,,Ealing Council,http://opendatacommunities.org/id/london-borough-council/ealing,CHILDREN & ADULTS,1,DISABILITIES,CONTRACTUAL CARERS ALLOWANCES,4380,,09/01/2023,41045036,1469.45,20075,REDACTED SENSITIVE SUPPLIER
INSERTED DETAIL,,Ealing Council,http://opendatacommunities.org/id/london-borough-council/ealing,CHILDREN & ADULTS,1,DISABILITIES,CONTRACTUAL CARERS ALLOWANCES,4380,,09/01/2023,41045535,593.04,20166,REDACTED SENSITIVE SUPPLIER
INSERTED DETAIL,,Ealing Council,http://opendatacommunities.org/id/london-borough-council/ealing,CHILDREN & ADULTS,1,SAFEGUARDING & SUPP - BS &A&F,TELEPHONE CHARGES,3230,,19/12/2022,41047355,4290,9900014,RED DOOR FILM AND MEDIA LIMITED
INSERTED DETAIL,,Ealing Council,http://opendatacommunities.org/id/london-borough-council/ealing,CHILDREN & ADULTS,1,SAFEGUARDING & SUPP - BS &A&F,HOSPITALITY/ENTERTAINMENT,3530,,27/10/2022,41037875,314,17782,ELITE CATERING WEST LONDON LIMITED
INSERTED DETAIL,,Ealing Council,http://opendatacommunities.org/id/london-borough-council/ealing,CHILDREN & ADULTS,1,SAFEGUARDING & SUPP - BS &A&F,SPECIAL GUARDIANSHIP ALLOWANCE,4663,,10/01/2023,23271498,366,200093,REDACTED SENSITIVE SUPPLIER
INSERTED DETAIL,,Ealing Council,http://opendatacommunities.org/id/london-borough-council/ealing,CHILDREN & ADULTS,1,SAFEGUARDING & SUPP - BS &A&F,SPECIAL GUARDIANSHIP ALLOWANCE,4663,,03/01/2023,23269276,366,200093,REDACTED SENSITIVE SUPPLIER
INSERTED DETAIL,,Ealing Council,http://opendatacommunities.org/id/london-borough-council/ealing,CHILDREN & ADULTS,1,SAFEGUARDING & SUPP - BS &A&F,SPECIAL GUARDIANSHIP ALLOWANCE,4663,,17/01/2023,23273297,366,200093,REDACTED SENSITIVE SUPPLIER
INSERTED DETAIL,,Ealing Council,http://opendatacommunities.org/id/london-borough-council/ealing,CHILDREN & ADULTS,1,SAFEGUARDING & SUPP - BS &A&F,SPECIAL GUARDIANSHIP ALLOWANCE,4663,,24/01/2023,23274586,366,200093,REDACTED SENSITIVE SUPPLIER
INSERTED DETAIL,,Ealing Council,http://opendatacommunities.org/id/london-borough-council/ealing,CHILDREN & ADULTS,1,SAFEGUARDING & SUPP - BS &A&F,ADOPTION ALLOWANCE,4387,,24/01/2023,23274482,298.39,200134,REDACTED SENSITIVE SUPPLIER
INSERTED DETAIL,,Ealing Council,http://opendatacommunities.org/id/london-borough-council/ealing,CHILDREN & ADULTS,1,SAFEGUARDING & SUPP - BS &A&F,ADOPTION ALLOWANCE,4387,,17/01/2023,23273191,298.39,200134,REDACTED SENSITIVE SUPPLIER
INSERTED DETAIL,,Ealing Council,http://opendatacommunities.org/id/london-borough-council/ealing,CHILDREN & ADULTS,1,SAFEGUARDING & SUPP - BS &A&F,ADOPTION ALLOWANCE,4387,,10/01/2023,23271395,298.39,200134,REDACTED SENSITIVE SUPPLIER
INSERTED DETAIL,,Ealing Council,http://opendatacommunities.org/id/london-borough-council/ealing,CHILDREN & ADULTS,1,SAFEGUARDING & SUPP - BS &A&F,ADOPTION ALLOWANCE,4387,,03/01/2023,23269172,298.39,200134,REDACTED SENSITIVE SUPPLIER
INSERTED DETAIL,,Ealing Council,http://opendatacommunities.org/id/london-borough-council/ealing,CHILDREN & ADULTS,1,SAFEGUARDING & SUPP - BS &A&F,SPECIAL GUARDIANSHIP ALLOWANCE,4663,,10/01/2023,23271459,410,200735,REDACTED SENSITIVE SUPPLIER
INSERTED DETAIL,,Ealing Council,http://opendatacommunities.org/id/london-borough-council/ealing,CHILDREN & ADULTS,1,SAFEGUARDING & SUPP - BS &A&F,SPECIAL GUARDIANSHIP ALLOWANCE,4663,,10/01/2023,23271459,410,200735,REDACTED SENSITIVE SUPPLIER
INSERTED DETAIL,,Ealing Council,http://opendatacommunities.org/id/london-borough-council/ealing,CHILDREN & ADULTS,1,SAFEGUARDING & SUPP - BS &A&F,SPECIAL GUARDIANSHIP ALLOWANCE,4663,,03/01/2023,23269237,410,200735,REDACTED SENSITIVE SUPPLIER
INSERTED DETAIL,,Ealing Council,http://opendatacommunities.org/id/london-borough-council/ealing,PLACE,6,CAPITAL DELIVERY,PAYMENTS TO CONTRACTORS,4000,,22/12/2022,41043928,1950,28751,CARTER JONAS SERVICE COMPANY
INSERTED DETAIL,,Ealing Council,http://opendatacommunities.org/id/london-borough-council/ealing,PLACE,6,STREET SERVICES,PAYMENTS TO CONTRACTORS,4000,,30/12/2022,41045564,3073.4,19441,SDK (ENVIROMENTAL) LTD
INSERTED DETAIL,,Ealing Council,http://opendatacommunities.org/id/london-borough-council/ealing,PLACE,6,LEISURE,PAYMENTS TO CONTRACTORS,4000,,13/01/2023,41047046,4917,25875,SPORTS & LEISURE MANAGEMENT LTD T/A EVERYONE ACTIVE
INSERTED DETAIL,,Ealing Council,http://opendatacommunities.org/id/london-borough-council/ealing,PLACE,6,STREET SERVICES,PAYMENTS TO CONTRACTORS,4000,,03/01/2023,41045857,1074.36,28826,GREENER EALING LIMITED
INSERTED DETAIL,,Ealing Council,http://opendatacommunities.org/id/london-borough-council/ealing,CHILDREN & ADULTS,1,SAFEGUARDING & SUPPORT - CIC,SECTION 2(16) PAYROLL TRANSACTIONS,4270,,25/11/2022,41043887,480,10000025,NETWORK VENTURES LTD T/A NETWORK HEALTHCARE PROFESSIONALS LTD
INSERTED DETAIL,,Ealing Council,http://opendatacommunities.org/id/london-borough-council/ealing,CHILDREN & ADULTS,1,SAFEGUARDING & SUPPORT - CIC,SECTION 2(16) PAYROLL TRANSACTIONS,4270,,02/12/2022,41043888,480,10000025,NETWORK VENTURES LTD T/A NETWORK HEALTHCARE PROFESSIONALS LTD
INSERTED DETAIL,,Ealing Council,http://opendatacommunities.org/id/london-borough-council/ealing,CHILDREN & ADULTS,1,SAFEGUARDING & SUPPORT - CIC,SECTION 2(16) PAYROLL TRANSACTIONS,4270,,21/12/2022,50002015,311.5,18273,CONTACT PROFESSIONALS LTD
INSERTED DETAIL,,Ealing Council,http://opendatacommunities.org/id/london-borough-council/ealing,CHILDREN & ADULTS,1,SAFEGUARDING & SUPPORT - CIC,SECTION 2(16) PAYROLL TRANSACTIONS,4270,,21/12/2022,50002015,348.1,18273,CONTACT PROFESSIONALS LTD
INSERTED DETAIL,,Ealing Council,http://opendatacommunities.org/id/london-borough-council/ealing,CHILDREN & ADULTS,1,SAFEGUARDING & SUPPORT - CIC,SECTION 2(16) PAYROLL TRANSACTIONS,4270,,14/12/2022,50002015,337.25,18273,CONTACT PROFESSIONALS LTD
INSERTED DETAIL,,Ealing Council,http://opendatacommunities.org/id/london-borough-council/ealing,CHILDREN & ADULTS,1,SAFEGUARDING & SUPPORT - CIC,SECTION 2(16) PAYROLL TRANSACTIONS,4270,,14/12/2022,50002015,311.5,18273,CONTACT PROFESSIONALS LTD
INSERTED DETAIL,,Ealing Council,http://opendatacommunities.org/id/london-borough-council/ealing,CHILDREN & ADULTS,1,SAFEGUARDING & SUPPORT - CIC,SECTION 2(16) PAYROLL TRANSACTIONS,4270,,23/11/2022,50002019,351.35,18273,CONTACT PROFESSIONALS LTD
INSERTED DETAIL,,Ealing Council,http://opendatacommunities.org/id/london-borough-council/ealing,CHILDREN & ADULTS,1,SAFEGUARDING & SUPPORT - CIC,SECTION 2(16) PAYROLL TRANSACTIONS,4270,,23/11/2022,50002019,311.5,18273,CONTACT PROFESSIONALS LTD
INSERTED DETAIL,,Ealing Council,http://opendatacommunities.org/id/london-borough-council/ealing,CHILDREN & ADULTS,1,SAFEGUARDING & SUPPORT - CIC,SECTION 2(16) PAYROLL TRANSACTIONS,4270,,30/11/2022,50002019,311.5,18273,CONTACT PROFESSIONALS LTD
INSERTED DETAIL,,Ealing Council,http://opendatacommunities.org/id/london-borough-council/ealing,CHILDREN & ADULTS,1,SAFEGUARDING & SUPPORT - CIC,SECTION 2(16) PAYROLL TRANSACTIONS,4270,,30/11/2022,50002019,349.4,18273,CONTACT PROFESSIONALS LTD
INSERTED DETAIL,,Ealing Council,http://opendatacommunities.org/id/london-borough-council/ealing,CHILDREN & ADULTS,1,SAFEGUARDING & SUPPORT - CIC,SECTION 2(16) PAYROLL TRANSACTIONS,4270,,07/12/2022,50002019,311.5,18273,CONTACT PROFESSIONALS LTD
INSERTED DETAIL,,Ealing Council,http://opendatacommunities.org/id/london-borough-council/ealing,CHILDREN & ADULTS,1,SAFEGUARDING & SUPPORT - CIC,SECTION 2(16) PAYROLL TRANSACTIONS,4270,,15/12/2022,41044345,1660,13769,NORTH HANWELL BAPTIST CHURCH
INSERTED DETAIL,,Ealing Council,http://opendatacommunities.org/id/london-borough-council/ealing,CHILDREN & ADULTS,1,SAFEGUARDING & SUPPORT - SM,PERSONNEL - NON CSA,4600,,24/12/2022,41045570,7659,22929,GOODSHAPE UK LIMITED
INSERTED DETAIL,,Ealing Council,http://opendatacommunities.org/id/london-borough-council/ealing,CHILDREN & ADULTS,1,SAFEGUARDING & SUPPORT - SM,COMP OUTSOURCED SERVICES,3220,,31/12/2022,41044394,6000,26815,RAINMAKER PEOPLE LIMITED
INSERTED DETAIL,,Ealing Council,http://opendatacommunities.org/id/london-borough-council/ealing,CHILDREN & ADULTS,1,SAFEGUARDING & SUPPORT - SM,COMP OUTSOURCED SERVICES,3220,,20/12/2022,41047278,450,28352,KM MANAGEMENT AND CONSULTANCY LTD
INSERTED DETAIL,,Ealing Council,http://opendatacommunities.org/id/london-borough-council/ealing,CHILDREN & ADULTS,1,SAFEGUARDING & SUPPORT - SM,PAYMENTS TO CONTRACTORS,4000,,10/01/2023,41046580,1500,28751,CARTER JONAS SERVICE COMPANY
INSERTED DETAIL,,Ealing Council,http://opendatacommunities.org/id/london-borough-council/ealing,CHILDREN & ADULTS,1,SAFEGUARDING & SUPPORT - CIC,INDEPENDENT FOSTERING,4221,,11/01/2023,23271796,3511.11,26358,FIVE RIVERS CHILD CARE LTD
INSERTED DETAIL,,Ealing Council,http://opendatacommunities.org/id/london-borough-council/ealing,CHILDREN & ADULTS,1,SAFEGUARDING & SUPPORT - CIC,INDEPENDENT FOSTERING,4221,,11/01/2023,23271796,3511.11,26358,FIVE RIVERS CHILD CARE LTD
INSERTED DETAIL,,Ealing Council,http://opendatacommunities.org/id/london-borough-council/ealing,CHILDREN & ADULTS,1,SAFEGUARDING & SUPPORT - CIC,INDEPENDENT FOSTERING,4221,,11/01/2023,23271796,3511.11,26358,FIVE RIVERS CHILD CARE LTD
INSERTED DETAIL,,Ealing Council,http://opendatacommunities.org/id/london-borough-council/ealing,CHILDREN & ADULTS,1,SAFEGUARDING & SUPPORT - CIC,ELIGIBLE CHILDREN ACCOMMODATION,4281,,11/01/2023,23271830,1426,27039,PEEPAL TREE SUPPORT SERVICES LTD
INSERTED DETAIL,,Ealing Council,http://opendatacommunities.org/id/london-borough-council/ealing,CHILDREN & ADULTS,1,SAFEGUARDING & SUPPORT - CIC,ELIGIBLE CHILDREN ACCOMMODATION,4281,,11/01/2023,23271830,-945.33,27039,PEEPAL TREE SUPPORT SERVICES LTD
INSERTED DETAIL,,Ealing Council,http://opendatacommunities.org/id/london-borough-council/ealing,CHILDREN & ADULTS,1,SAFEGUARDING & SUPPORT - CIC,ELIGIBLE CHILDREN ACCOMMODATION,4281,,11/01/2023,23271830,387.5,27039,PEEPAL TREE SUPPORT SERVICES LTD
INSERTED DETAIL,,Ealing Council,http://opendatacommunities.org/id/london-borough-council/ealing,CHILDREN & ADULTS,1,SAFEGUARDING & SUPPORT - CIC,ELIGIBLE CHILDREN ACCOMMODATION,4281,,11/01/2023,23271832,1426,27039,PEEPAL TREE SUPPORT SERVICES LTD
INSERTED DETAIL,,Ealing Council,http://opendatacommunities.org/id/london-borough-council/ealing,CHILDREN & ADULTS,1,SAFEGUARDING & SUPPORT - CIC,ELIGIBLE CHILDREN ACCOMMODATION,4281,,11/01/2023,23271832,387.5,27039,PEEPAL TREE SUPPORT SERVICES LTD
INSERTED DETAIL,,Ealing Council,http://opendatacommunities.org/id/london-borough-council/ealing,CHILDREN & ADULTS,1,SAFEGUARDING & SUPPORT - CIC,ELIGIBLE CHILDREN ACCOMMODATION,4281,,11/01/2023,23271874,1605.35,27039,PEEPAL TREE SUPPORT SERVICES LTD
INSERTED DETAIL,,Ealing Council,http://opendatacommunities.org/id/london-borough-council/ealing,CHILDREN & ADULTS,1,SAFEGUARDING & SUPPORT - CIC,ELIGIBLE CHILDREN ACCOMMODATION,4281,,11/01/2023,23271874,719.65,27039,PEEPAL TREE SUPPORT SERVICES LTD
INSERTED DETAIL,,Ealing Council,http://opendatacommunities.org/id/london-borough-council/ealing,CHILDREN & ADULTS,1,SAFEGUARDING & SUPPORT - CIC,ELIGIBLE CHILDREN ACCOMMODATION,4281,,11/01/2023,23271846,1426,27039,PEEPAL TREE SUPPORT SERVICES LTD
INSERTED DETAIL,,Ealing Council,http://opendatacommunities.org/id/london-borough-council/ealing,CHILDREN & ADULTS,1,SAFEGUARDING & SUPPORT - CIC,ELIGIBLE CHILDREN ACCOMMODATION,4281,,11/01/2023,23271846,387.5,27039,PEEPAL TREE SUPPORT SERVICES LTD
INSERTED DETAIL,,Ealing Council,http://opendatacommunities.org/id/london-borough-council/ealing,PLACE,6,STREET SERVICES,CIS REPAIRS AND MAINTENANCE,1411,,28/12/2022,41044039,2520,28826,GREENER EALING LIMITED
INSERTED DETAIL,,Ealing Council,http://opendatacommunities.org/id/london-borough-council/ealing,PLACE,6,STREET SERVICES,PAYMENTS TO CONTRACTORS,4000,,14/12/2022,41043960,772.67,28826,GREENER EALING LIMITED
INSERTED DETAIL,,Ealing Council,http://opendatacommunities.org/id/london-borough-council/ealing,PLACE,6,STREET SERVICES,PAYMENTS TO CONTRACTORS,4000,,19/12/2022,41043963,513.51,28826,GREENER EALING LIMITED
INSERTED DETAIL,,Ealing Council,http://opendatacommunities.org/id/london-borough-council/ealing,PLACE,6,STREET SERVICES,PAYMENTS TO CONTRACTORS,4000,,17/01/2023,41047854,340000,28826,GREENER EALING LIMITED
INSERTED DETAIL,,Ealing Council,http://opendatacommunities.org/id/london-borough-council/ealing,PLACE,6,LEISURE,HEALTH AND SAFETY COSTS,2880,,06/01/2023,41046087,425,25871,CENTURIAN SURFACING LTD - T/A CENTURIAN SERVICES
INSERTED DETAIL,,Ealing Council,http://opendatacommunities.org/id/london-borough-council/ealing,PLACE,6,LEISURE,CIS REPAIRS AND MAINTENANCE,1411,,12/01/2023,41046846,314.67,25871,CENTURIAN SURFACING LTD - T/A CENTURIAN SERVICES
INSERTED DETAIL,,Ealing Council,http://opendatacommunities.org/id/london-borough-council/ealing,PLACE,6,LEISURE,HEALTH AND SAFETY COSTS,2880,,20/12/2022,41045333,967.01,15735,LBS (SERVING BIOTECHNOLGY) LTD
INSERTED DETAIL,,Ealing Council,http://opendatacommunities.org/id/london-borough-council/ealing,PLACE,6,LEISURE,MATERIALS,3310,,23/12/2022,41044072,460.4,15851,BRENT LODGE PARK ANIMAL CENTRE
INSERTED DETAIL,,Ealing Council,http://opendatacommunities.org/id/london-borough-council/ealing,PLACE,6,LEISURE,MATERIALS,3310,,23/12/2022,41044072,2100.95,15851,BRENT LODGE PARK ANIMAL CENTRE
INSERTED DETAIL,,Ealing Council,http://opendatacommunities.org/id/london-borough-council/ealing,PLACE,6,LEISURE,HEALTH AND SAFETY COSTS,2880,,31/10/2022,41035841,374.1,16840,INTERNATIONAL ZOO VETERINARY GROUP
INSERTED DETAIL,,Ealing Council,http://opendatacommunities.org/id/london-borough-council/ealing,PLACE,6,LEISURE,HEALTH AND SAFETY COSTS,2880,,30/09/2022,41031650,682,16840,INTERNATIONAL ZOO VETERINARY GROUP
INSERTED DETAIL,,Ealing Council,http://opendatacommunities.org/id/london-borough-council/ealing,PLACE,6,LEISURE,HEALTH AND SAFETY COSTS,2880,,30/11/2022,41040899,765.65,16840,INTERNATIONAL ZOO VETERINARY GROUP
INSERTED DETAIL,,Ealing Council,http://opendatacommunities.org/id/london-borough-council/ealing,PLACE,6,LEISURE,CIS REPAIRS AND MAINTENANCE,1411,,12/01/2023,41046936,8587.2,25871,CENTURIAN SURFACING LTD - T/A CENTURIAN SERVICES
INSERTED DETAIL,,Ealing Council,http://opendatacommunities.org/id/london-borough-council/ealing,PLACE,6,LEISURE,CIS REPAIRS AND MAINTENANCE,1411,,27/12/2022,41045377,4640.99,25871,CENTURIAN SURFACING LTD - T/A CENTURIAN SERVICES
INSERTED DETAIL,,Ealing Council,http://opendatacommunities.org/id/london-borough-council/ealing,PLACE,6,LEISURE,CIS REPAIRS AND MAINTENANCE,1411,,27/12/2022,41045377,15000,25871,CENTURIAN SURFACING LTD - T/A CENTURIAN SERVICES
INSERTED DETAIL,,Ealing Council,http://opendatacommunities.org/id/london-borough-council/ealing,PLACE,6,LEISURE,CIS REPAIRS AND MAINTENANCE,1411,,12/01/2023,41046936,7500,25871,CENTURIAN SURFACING LTD - T/A CENTURIAN SERVICES
INSERTED DETAIL,,Ealing Council,http://opendatacommunities.org/id/london-borough-council/ealing,PLACE,6,LEISURE,PAYMENTS TO CONTRACTORS,4000,,30/11/2022,41043587,786.4,11865,FALON NAMEPLATES
INSERTED DETAIL,,Ealing Council,http://opendatacommunities.org/id/london-borough-council/ealing,PLACE,6,LEISURE,PAYMENTS TO CONTRACTORS,4000,,23/12/2022,41045372,2925,12788,KENWARD & SON LIMITED
INSERTED DETAIL,,Ealing Council,http://opendatacommunities.org/id/london-borough-council/ealing,PLACE,6,LEISURE,PAYMENTS TO CONTRACTORS,4000,,19/12/2022,41044633,1560,12788,KENWARD & SON LIMITED
INSERTED DETAIL,,Ealing Council,http://opendatacommunities.org/id/london-borough-council/ealing,PLACE,6,LEISURE,PAYMENTS TO CONTRACTORS,4000,,22/12/2022,41045178,585,12788,KENWARD & SON LIMITED
INSERTED DETAIL,,Ealing Council,http://opendatacommunities.org/id/london-borough-council/ealing,CHILDREN & ADULTS,1,BUSINESS MANAGEMENT,Services Contracts Agency Interim Consultants,2970,,23/12/2022,41045326,-139000,15652,WEST LONDON NHS TRUST
INSERTED DETAIL,,Ealing Council,http://opendatacommunities.org/id/london-borough-council/ealing,CHILDREN & ADULTS,1,BUSINESS MANAGEMENT,COMP OUTSOURCED SERVICES,3220,,03/01/2023,41045985,5460,29833,INDIGO SMART SOLUTIONS LTD
INSERTED DETAIL,,Ealing Council,http://opendatacommunities.org/id/london-borough-council/ealing,CHILDREN & ADULTS,1,DISABILITIES,DOMICILIARY CARE - BLOCK,4240,,09/01/2023,23271950,403,29634,INTEGRATED KARE SOLUTIONS LTD
INSERTED DETAIL,,Ealing Council,http://opendatacommunities.org/id/london-borough-council/ealing,CHILDREN & ADULTS,1,DISABILITIES,DOMICILIARY CARE - BLOCK,4240,,09/01/2023,23271950,612.12,29634,INTEGRATED KARE SOLUTIONS LTD
INSERTED DETAIL,,Ealing Council,http://opendatacommunities.org/id/london-borough-council/ealing,CHILDREN & ADULTS,1,DISABILITIES,RESIDENTIAL HOMES EXTERNAL,4220,,05/01/2023,23270333,4800,29652,NUTLEY HALL
INSERTED DETAIL,,Ealing Council,http://opendatacommunities.org/id/london-borough-council/ealing,CHILDREN & ADULTS,1,DISABILITIES,RESIDENTIAL HOMES EXTERNAL,4220,,05/01/2023,23270333,1400,29652,NUTLEY HALL
INSERTED DETAIL,,Ealing Council,http://opendatacommunities.org/id/london-borough-council/ealing,CHILDREN & ADULTS,1,DISABILITIES,DOMICILIARY CARE - BLOCK,4240,,05/01/2023,23269957,331,26027,SUPPORT DIRECT LIMITED
INSERTED DETAIL,,Ealing Council,http://opendatacommunities.org/id/london-borough-council/ealing,CHILDREN & ADULTS,1,DISABILITIES,DOMICILIARY CARE - BLOCK,4240,,05/01/2023,23269957,2780.4,26027,SUPPORT DIRECT LIMITED
INSERTED DETAIL,,Ealing Council,http://opendatacommunities.org/id/london-borough-council/ealing,CHILDREN & ADULTS,1,DISABILITIES,SUPPORTED LIVING,4236,,05/01/2023,23270264,2668.48,26955,SFI CARE SOLUTIONS
INSERTED DETAIL,,Ealing Council,http://opendatacommunities.org/id/london-borough-council/ealing,CHILDREN & ADULTS,1,DISABILITIES,RESIDENTIAL HOMES EXTERNAL,4220,,05/01/2023,23270264,2614.16,26955,SFI CARE SOLUTIONS
INSERTED DETAIL,,Ealing Council,http://opendatacommunities.org/id/london-borough-council/ealing,CHILDREN & ADULTS,1,DISABILITIES,RESIDENTIAL HOMES EXTERNAL,4220,,05/01/2023,23270213,4780,27923,WOODLARK WORKSHOP TRUST HOUSING ASS T/A THE WOODLARKS CENTRE
INSERTED DETAIL,,Ealing Council,http://opendatacommunities.org/id/london-borough-council/ealing,CHILDREN & ADULTS,1,DISABILITIES,RESIDENTIAL HOMES EXTERNAL,4220,,05/01/2023,23270223,5663.08,28008,REDACTED SENSITIVE SUPPLIER
INSERTED DETAIL,,Ealing Council,http://opendatacommunities.org/id/london-borough-council/ealing,CHILDREN & ADULTS,1,DISABILITIES,DIRECT PAYMENTS,4231,,24/01/2023,23274384,441.04,80011,REDACTED SENSITIVE SUPPLIER
INSERTED DETAIL,,Ealing Council,http://opendatacommunities.org/id/london-borough-council/ealing,CHILDREN & ADULTS,1,DISABILITIES,DIRECT PAYMENTS,4231,,24/01/2023,23274384,1638.64,80011,REDACTED SENSITIVE SUPPLIER
INSERTED DETAIL,,Ealing Council,http://opendatacommunities.org/id/london-borough-council/ealing,CHILDREN & ADULTS,1,SAFEGUARDING & SUPP - BS &A&F,SPECIAL GUARDIANSHIP ALLOWANCE,4663,,03/01/2023,23269237,410,200735,REDACTED SENSITIVE SUPPLIER
INSERTED DETAIL,,Ealing Council,http://opendatacommunities.org/id/london-borough-council/ealing,CHILDREN & ADULTS,1,SAFEGUARDING & SUPP - BS &A&F,SPECIAL GUARDIANSHIP ALLOWANCE,4663,,17/01/2023,23273258,410,200735,REDACTED SENSITIVE SUPPLIER
INSERTED DETAIL,,Ealing Council,http://opendatacommunities.org/id/london-borough-council/ealing,CHILDREN & ADULTS,1,SAFEGUARDING & SUPP - BS &A&F,SPECIAL GUARDIANSHIP ALLOWANCE,4663,,17/01/2023,23273258,410,200735,REDACTED SENSITIVE SUPPLIER
INSERTED DETAIL,,Ealing Council,http://opendatacommunities.org/id/london-borough-council/ealing,CHILDREN & ADULTS,1,SAFEGUARDING & SUPP - BS &A&F,SPECIAL GUARDIANSHIP ALLOWANCE,4663,,24/01/2023,23274547,410,200735,REDACTED SENSITIVE SUPPLIER
INSERTED DETAIL,,Ealing Council,http://opendatacommunities.org/id/london-borough-council/ealing,CHILDREN & ADULTS,1,SAFEGUARDING & SUPP - BS &A&F,SPECIAL GUARDIANSHIP ALLOWANCE,4663,,24/01/2023,23274547,410,200735,REDACTED SENSITIVE SUPPLIER
INSERTED DETAIL,,Ealing Council,http://opendatacommunities.org/id/london-borough-council/ealing,CHILDREN & ADULTS,1,SAFEGUARDING & SUPP - BS &A&F,ADOPTION ALLOWANCE,4387,,03/01/2023,23269288,308.5,200117,REDACTED SENSITIVE SUPPLIER
INSERTED DETAIL,,Ealing Council,http://opendatacommunities.org/id/london-borough-council/ealing,CHILDREN & ADULTS,1,SAFEGUARDING & SUPP - BS &A&F,ADOPTION ALLOWANCE,4387,,10/01/2023,23271510,308.5,200117,REDACTED SENSITIVE SUPPLIER
INSERTED DETAIL,,Ealing Council,http://opendatacommunities.org/id/london-borough-council/ealing,CHILDREN & ADULTS,1,SAFEGUARDING & SUPP - BS &A&F,ADOPTION ALLOWANCE,4387,,17/01/2023,23273310,308.5,200117,REDACTED SENSITIVE SUPPLIER
INSERTED DETAIL,,Ealing Council,http://opendatacommunities.org/id/london-borough-council/ealing,CHILDREN & ADULTS,1,SAFEGUARDING & SUPP - BS &A&F,ADOPTION ALLOWANCE,4387,,24/01/2023,23274598,308.5,200117,REDACTED SENSITIVE SUPPLIER
INSERTED DETAIL,,Ealing Council,http://opendatacommunities.org/id/london-borough-council/ealing,CHILDREN & ADULTS,1,SAFEGUARDING & SUPP - BS &A&F,SPECIAL GUARDIANSHIP ALLOWANCE,4663,,10/01/2023,23271547,492.66,200619,REDACTED SENSITIVE SUPPLIER
INSERTED DETAIL,,Ealing Council,http://opendatacommunities.org/id/london-borough-council/ealing,CHILDREN & ADULTS,1,SAFEGUARDING & SUPP - BS &A&F,SPECIAL GUARDIANSHIP ALLOWANCE,4663,,03/01/2023,23269324,492.66,200619,REDACTED SENSITIVE SUPPLIER
INSERTED DETAIL,,Ealing Council,http://opendatacommunities.org/id/london-borough-council/ealing,CHILDREN & ADULTS,1,SAFEGUARDING & SUPP - BS &A&F,SPECIAL GUARDIANSHIP ALLOWANCE,4663,,17/01/2023,23273346,492.66,200619,REDACTED SENSITIVE SUPPLIER
INSERTED DETAIL,,Ealing Council,http://opendatacommunities.org/id/london-borough-council/ealing,CHILDREN & ADULTS,1,SAFEGUARDING & SUPP - BS &A&F,SPECIAL GUARDIANSHIP ALLOWANCE,4663,,24/01/2023,23274633,492.66,200619,REDACTED SENSITIVE SUPPLIER
INSERTED DETAIL,,Ealing Council,http://opendatacommunities.org/id/london-borough-council/ealing,CHILDREN & ADULTS,1,SAFEGUARDING & SUPP - BS &A&F,SPECIAL GUARDIANSHIP ALLOWANCE,4663,,10/01/2023,23271620,360,200869,REDACTED SENSITIVE SUPPLIER
INSERTED DETAIL,,Ealing Council,http://opendatacommunities.org/id/london-borough-council/ealing,CHILDREN & ADULTS,1,SAFEGUARDING & SUPP - BS &A&F,SPECIAL GUARDIANSHIP ALLOWANCE,4663,,03/01/2023,23269397,360,200869,REDACTED SENSITIVE SUPPLIER
INSERTED DETAIL,,Ealing Council,http://opendatacommunities.org/id/london-borough-council/ealing,CHILDREN & ADULTS,1,SAFEGUARDING & SUPP - BS &A&F,SPECIAL GUARDIANSHIP ALLOWANCE,4663,,17/01/2023,23273419,360,200869,REDACTED SENSITIVE SUPPLIER
INSERTED DETAIL,,Ealing Council,http://opendatacommunities.org/id/london-borough-council/ealing,CHILDREN & ADULTS,1,SAFEGUARDING & SUPP - BS &A&F,SPECIAL GUARDIANSHIP ALLOWANCE,4663,,24/01/2023,23274705,360,200869,REDACTED SENSITIVE SUPPLIER
INSERTED DETAIL,,Ealing Council,http://opendatacommunities.org/id/london-borough-council/ealing,CHILDREN & ADULTS,1,SAFEGUARDING & SUPP - BS &A&F,RESIDENCE ALLOWANCE,4389,,03/01/2023,23269515,-1448,201095,REDACTED SENSITIVE SUPPLIER
INSERTED DETAIL,,Ealing Council,http://opendatacommunities.org/id/london-borough-council/ealing,CHILDREN & ADULTS,1,SAFEGUARDING & SUPP - BS &A&F,ADOPTION ALLOWANCE,4387,,03/01/2023,23269515,2508.14,201095,REDACTED SENSITIVE SUPPLIER
INSERTED DETAIL,,Ealing Council,http://opendatacommunities.org/id/london-borough-council/ealing,CHILDREN & ADULTS,1,SAFEGUARDING & SUPP - BS &A&F,SPECIAL GUARDIANSHIP ALLOWANCE,4663,,17/01/2023,23273300,4033.71,201099,REDACTED SENSITIVE SUPPLIER
INSERTED DETAIL,,Ealing Council,http://opendatacommunities.org/id/london-borough-council/ealing,CHILDREN & ADULTS,1,SAFEGUARDING & SUPP - BS &A&F,SPECIAL GUARDIANSHIP ALLOWANCE,4663,,17/01/2023,23273300,4977.74,201099,REDACTED SENSITIVE SUPPLIER
INSERTED DETAIL,,Ealing Council,http://opendatacommunities.org/id/london-borough-council/ealing,CHILDREN & ADULTS,1,SAFEGUARDING & SUPP - BS &A&F,SPECIAL GUARDIANSHIP ALLOWANCE,4663,,17/01/2023,23273300,4033.71,201099,REDACTED SENSITIVE SUPPLIER
INSERTED DETAIL,,Ealing Council,http://opendatacommunities.org/id/london-borough-council/ealing,CHILDREN & ADULTS,1,SAFEGUARDING & SUPP - BS &A&F,SPECIAL GUARDIANSHIP,4664,,17/01/2023,23273300,-1000,201099,REDACTED SENSITIVE SUPPLIER
INSERTED DETAIL,,Ealing Council,http://opendatacommunities.org/id/london-borough-council/ealing,CHILDREN & ADULTS,1,SAFEGUARDING & SUPP - BS &A&F,SPECIAL GUARDIANSHIP ALLOWANCE,4663,,10/01/2023,23271392,365,200078,REDACTED SENSITIVE SUPPLIER
INSERTED DETAIL,,Ealing Council,http://opendatacommunities.org/id/london-borough-council/ealing,CHILDREN & ADULTS,1,SAFEGUARDING & SUPP - BS &A&F,SPECIAL GUARDIANSHIP ALLOWANCE,4663,,03/01/2023,23269169,365,200078,REDACTED SENSITIVE SUPPLIER
INSERTED DETAIL,,Ealing Council,http://opendatacommunities.org/id/london-borough-council/ealing,CHILDREN & ADULTS,1,SAFEGUARDING & SUPP - BS &A&F,SPECIAL GUARDIANSHIP ALLOWANCE,4663,,17/01/2023,23273188,365,200078,REDACTED SENSITIVE SUPPLIER
INSERTED DETAIL,,Ealing Council,http://opendatacommunities.org/id/london-borough-council/ealing,PLACE,6,STREET SERVICES,PAYMENTS TO CONTRACTORS,4000,,20/01/2023,41045066,426026.41,28826,GREENER EALING LIMITED
INSERTED DETAIL,,Ealing Council,http://opendatacommunities.org/id/london-borough-council/ealing,PLACE,6,STREET SERVICES,PAYMENTS TO CONTRACTORS,4000,,03/01/2023,41045987,2223.64,28826,GREENER EALING LIMITED
INSERTED DETAIL,,Ealing Council,http://opendatacommunities.org/id/london-borough-council/ealing,PLACE,6,STREET SERVICES,PAYMENTS TO CONTRACTORS,4000,,19/12/2022,41043961,256.89,28826,GREENER EALING LIMITED
INSERTED DETAIL,,Ealing Council,http://opendatacommunities.org/id/london-borough-council/ealing,PLACE,6,STREET SERVICES,PAYMENTS TO CONTRACTORS,4000,,19/12/2022,41043962,395.05,28826,GREENER EALING LIMITED
INSERTED DETAIL,,Ealing Council,http://opendatacommunities.org/id/london-borough-council/ealing,PLACE,6,STREET SERVICES,PAYMENTS TO CONTRACTORS,4000,,06/01/2023,41046295,629.2,17829,SOLACE IN BUSINESS LTD
INSERTED DETAIL,,Ealing Council,http://opendatacommunities.org/id/london-borough-council/ealing,PLACE,6,STREET SERVICES,PAYMENTS TO CONTRACTORS,4000,,19/12/2022,41044554,915.2,17829,SOLACE IN BUSINESS LTD
INSERTED DETAIL,,Ealing Council,http://opendatacommunities.org/id/london-borough-council/ealing,PLACE,6,LEISURE,CIS REPAIRS AND MAINTENANCE,1411,,12/01/2023,41046843,750,25871,CENTURIAN SURFACING LTD - T/A CENTURIAN SERVICES
INSERTED DETAIL,,Ealing Council,http://opendatacommunities.org/id/london-borough-council/ealing,PLACE,6,LEISURE,CIS REPAIRS AND MAINTENANCE,1411,,12/01/2023,41046843,478.03,25871,CENTURIAN SURFACING LTD - T/A CENTURIAN SERVICES
INSERTED DETAIL,,Ealing Council,http://opendatacommunities.org/id/london-borough-council/ealing,PLACE,6,LEISURE,GROUNDS MAINTENANCE,1470,,11/11/2022,41044804,3959,24236,IDCC SERVICES LTD
INSERTED DETAIL,,Ealing Council,http://opendatacommunities.org/id/london-borough-council/ealing,PLACE,6,LEISURE,GROUNDS MAINTENANCE,1470,,11/11/2022,41044808,620,24236,IDCC SERVICES LTD
INSERTED DETAIL,,Ealing Council,http://opendatacommunities.org/id/london-borough-council/ealing,PLACE,6,LEISURE,GROUNDS MAINTENANCE,1470,,11/11/2022,41044799,296.56,24236,IDCC SERVICES LTD
INSERTED DETAIL,,Ealing Council,http://opendatacommunities.org/id/london-borough-council/ealing,PLACE,6,LEISURE,GROUNDS MAINTENANCE,1470,,14/12/2022,41044119,4319,23723,GROUND ENGINEERING LTD
INSERTED DETAIL,,Ealing Council,http://opendatacommunities.org/id/london-borough-council/ealing,PLACE,6,LEISURE,PAYMENTS TO CONTRACTORS -ARBORICULTURAL WORKS,4041,,17/01/2023,41048058,14477,28160,CONTRACT & PERSONNEL SERVICES LTD
INSERTED DETAIL,,Ealing Council,http://opendatacommunities.org/id/london-borough-council/ealing,PLACE,6,LEISURE,PAYMENTS TO CONTRACTORS -ARBORICULTURAL WORKS,4041,,17/01/2023,41048003,60000,9900018,J.A. JONES AND SONS (CHURCHTOWN) LTD
INSERTED DETAIL,,Ealing Council,http://opendatacommunities.org/id/london-borough-council/ealing,CHILDREN & ADULTS,1,SAFEGUARDING & SUPPORT - SM,Services Contracts Agency Interim Consultants,2970,,21/12/2022,41046454,7480,23024,VENN GROUP LTD
INSERTED DETAIL,,Ealing Council,http://opendatacommunities.org/id/london-borough-council/ealing,CHILDREN & ADULTS,1,ILT,AGENCY,70,,05/01/2023,41046202,5625,28602,1 TO 1 HEALTHCARE LTD
INSERTED DETAIL,,Ealing Council,http://opendatacommunities.org/id/london-borough-council/ealing,CHILDREN & ADULTS,1,ILT,AGENCY,70,,05/01/2023,41046210,3375,28602,1 TO 1 HEALTHCARE LTD
INSERTED DETAIL,,Ealing Council,http://opendatacommunities.org/id/london-borough-council/ealing,CHILDREN & ADULTS,1,ILT,AGENCY,70,,11/01/2023,41047019,450,28602,1 TO 1 HEALTHCARE LTD
INSERTED DETAIL,,Ealing Council,http://opendatacommunities.org/id/london-borough-council/ealing,CHILDREN & ADULTS,1,ILT,AGENCY,70,,17/01/2023,41048325,675,28602,1 TO 1 HEALTHCARE LTD
INSERTED DETAIL,,Ealing Council,http://opendatacommunities.org/id/london-borough-council/ealing,CHILDREN & ADULTS,1,ILT,AGENCY,70,,17/01/2023,41048330,900,28602,1 TO 1 HEALTHCARE LTD
INSERTED DETAIL,,Ealing Council,http://opendatacommunities.org/id/london-borough-council/ealing,CHILDREN & ADULTS,1,ILT,AGENCY,70,,23/01/2023,41048406,4275,28602,1 TO 1 HEALTHCARE LTD
INSERTED DETAIL,,Ealing Council,http://opendatacommunities.org/id/london-borough-council/ealing,CHILDREN & ADULTS,1,ILT,AGENCY,70,,22/12/2022,41045163,2250,28602,1 TO 1 HEALTHCARE LTD
INSERTED DETAIL,,Ealing Council,http://opendatacommunities.org/id/london-borough-council/ealing,CHILDREN & ADULTS,1,ILT,AGENCY,70,,11/01/2023,41047017,1350,28602,1 TO 1 HEALTHCARE LTD
INSERTED DETAIL,,Ealing Council,http://opendatacommunities.org/id/london-borough-council/ealing,CHILDREN & ADULTS,1,ILT,AGENCY,70,,11/01/2023,41047020,1575,28602,1 TO 1 HEALTHCARE LTD
INSERTED DETAIL,,Ealing Council,http://opendatacommunities.org/id/london-borough-council/ealing,CHILDREN & ADULTS,1,SAFEGUARDING & SUPPORT - CIC,ELIGIBLE CHILDREN ACCOMMODATION,4281,,11/01/2023,23271889,553.57,24903,PURPLE PEBBLES (CHILDCARE SERVICES) LTD
INSERTED DETAIL,,Ealing Council,http://opendatacommunities.org/id/london-borough-council/ealing,CHILDREN & ADULTS,1,SAFEGUARDING & SUPPORT - CIC,ELIGIBLE CHILDREN ACCOMMODATION,4281,,11/01/2023,23271889,1439.28,24903,PURPLE PEBBLES (CHILDCARE SERVICES) LTD
INSERTED DETAIL,,Ealing Council,http://opendatacommunities.org/id/london-borough-council/ealing,CHILDREN & ADULTS,1,SAFEGUARDING & SUPPORT - CIC,ELIGIBLE CHILDREN ACCOMMODATION,4281,,24/01/2023,23274658,269.95,200448,REDACTED SENSITIVE SUPPLIER
INSERTED DETAIL,,Ealing Council,http://opendatacommunities.org/id/london-borough-council/ealing,CHILDREN & ADULTS,1,SAFEGUARDING & SUPPORT - CIC,ELIGIBLE CHILDREN ACCOMMODATION,4281,,17/01/2023,23273371,269.95,200448,REDACTED SENSITIVE SUPPLIER
INSERTED DETAIL,,Ealing Council,http://opendatacommunities.org/id/london-borough-council/ealing,CHILDREN & ADULTS,1,SAFEGUARDING & SUPPORT - CIC,ELIGIBLE CHILDREN ACCOMMODATION,4281,,10/01/2023,23271572,269.95,200448,REDACTED SENSITIVE SUPPLIER
INSERTED DETAIL,,Ealing Council,http://opendatacommunities.org/id/london-borough-council/ealing,CHILDREN & ADULTS,1,SAFEGUARDING & SUPPORT - CIC,ELIGIBLE CHILDREN ACCOMMODATION,4281,,03/01/2023,23269349,269.95,200448,REDACTED SENSITIVE SUPPLIER
INSERTED DETAIL,,Ealing Council,http://opendatacommunities.org/id/london-borough-council/ealing,CHILDREN & ADULTS,1,SAFEGUARDING & SUPPORT - CIC,ELIGIBLE CHILDREN ACCOMMODATION,4281,,03/01/2023,23269370,269.95,200634,REDACTED SENSITIVE SUPPLIER
INSERTED DETAIL,,Ealing Council,http://opendatacommunities.org/id/london-borough-council/ealing,CHILDREN & ADULTS,1,SAFEGUARDING & SUPPORT - CIC,ELIGIBLE CHILDREN ACCOMMODATION,4281,,10/01/2023,23271593,269.95,200634,REDACTED SENSITIVE SUPPLIER
INSERTED DETAIL,,Ealing Council,http://opendatacommunities.org/id/london-borough-council/ealing,CHILDREN & ADULTS,1,SAFEGUARDING & SUPPORT - CIC,ELIGIBLE CHILDREN ACCOMMODATION,4281,,24/01/2023,23274677,269.95,200634,REDACTED SENSITIVE SUPPLIER
INSERTED DETAIL,,Ealing Council,http://opendatacommunities.org/id/london-borough-council/ealing,CHILDREN & ADULTS,1,SAFEGUARDING & SUPPORT - CIC,ELIGIBLE CHILDREN ACCOMMODATION,4281,,17/01/2023,23273392,269.95,200634,REDACTED SENSITIVE SUPPLIER
INSERTED DETAIL,,Ealing Council,http://opendatacommunities.org/id/london-borough-council/ealing,CHILDREN & ADULTS,1,SAFEGUARDING & SUPPORT - CIC,ELIGIBLE CHILDREN ACCOMMODATION,4281,,11/01/2023,23271873,2103.57,29314,SUPPORTIVE LINK LIMITED
INSERTED DETAIL,,Ealing Council,http://opendatacommunities.org/id/london-borough-council/ealing,CHILDREN & ADULTS,1,SAFEGUARDING & SUPPORT - CIC,ELIGIBLE CHILDREN ACCOMMODATION,4281,,11/01/2023,23271873,553.57,29314,SUPPORTIVE LINK LIMITED
INSERTED DETAIL,,Ealing Council,http://opendatacommunities.org/id/london-borough-council/ealing,CHILDREN & ADULTS,1,SAFEGUARDING & SUPPORT - CIC,ELIGIBLE CHILDREN ACCOMMODATION,4281,,11/01/2023,23271855,-577.82,27039,PEEPAL TREE SUPPORT SERVICES LTD
INSERTED DETAIL,,Ealing Council,http://opendatacommunities.org/id/london-borough-council/ealing,CHILDREN & ADULTS,1,SAFEGUARDING & SUPPORT - CIC,ELIGIBLE CHILDREN ACCOMMODATION,4281,,11/01/2023,23271855,874,27039,PEEPAL TREE SUPPORT SERVICES LTD
INSERTED DETAIL,,Ealing Council,http://opendatacommunities.org/id/london-borough-council/ealing,CHILDREN & ADULTS,1,SAFEGUARDING & SUPPORT - CIC,ELIGIBLE CHILDREN ACCOMMODATION,4281,,11/01/2023,23271855,552,27039,PEEPAL TREE SUPPORT SERVICES LTD
INSERTED DETAIL,,Ealing Council,http://opendatacommunities.org/id/london-borough-council/ealing,CHILDREN & ADULTS,1,SAFEGUARDING & SUPPORT - CIC,ELIGIBLE CHILDREN ACCOMMODATION,4281,,11/01/2023,23271855,-364.94,27039,PEEPAL TREE SUPPORT SERVICES LTD
INSERTED DETAIL,,Ealing Council,http://opendatacommunities.org/id/london-borough-council/ealing,CHILDREN & ADULTS,1,SAFEGUARDING & SUPPORT - CIC,ELIGIBLE CHILDREN ACCOMMODATION,4281,,11/01/2023,23271825,2071.43,25993,RENAISSANCE SUPPORTED HOUSING LTD
INSERTED DETAIL,,Ealing Council,http://opendatacommunities.org/id/london-borough-council/ealing,CHILDREN & ADULTS,1,SAFEGUARDING & SUPPORT - CIC,ELIGIBLE CHILDREN ACCOMMODATION,4281,,11/01/2023,23271825,2142.86,25993,RENAISSANCE SUPPORTED HOUSING LTD
INSERTED DETAIL,,Ealing Council,http://opendatacommunities.org/id/london-borough-council/ealing,CHILDREN & ADULTS,1,SAFEGUARDING & SUPPORT - CIC,ELIGIBLE CHILDREN ACCOMMODATION,4281,,11/01/2023,23271825,1142.86,25993,RENAISSANCE SUPPORTED HOUSING LTD
INSERTED DETAIL,,Ealing Council,http://opendatacommunities.org/id/london-borough-council/ealing,CHILDREN & ADULTS,1,SAFEGUARDING & SUPPORT - CIC,ELIGIBLE CHILDREN ACCOMMODATION,4281,,30/11/2022,23272690,428.57,19598,JORDAN XAVIER LTD
INSERTED DETAIL,,Ealing Council,http://opendatacommunities.org/id/london-borough-council/ealing,CHILDREN & ADULTS,1,SAFEGUARDING & SUPPORT - CIC,ELIGIBLE CHILDREN ACCOMMODATION,4281,,30/11/2022,23272690,685.72,19598,JORDAN XAVIER LTD
INSERTED DETAIL,,Ealing Council,http://opendatacommunities.org/id/london-borough-council/ealing,CHILDREN & ADULTS,1,SAFEGUARDING & SUPPORT - CIC,INDEPENDENT FOSTERING,4221,,11/01/2023,23271791,3323.65,28178,CARING HEARTS FOSTERING LTD
INSERTED DETAIL,,Ealing Council,http://opendatacommunities.org/id/london-borough-council/ealing,CHILDREN & ADULTS,1,SAFEGUARDING & SUPPORT - CIC,INDEPENDENT FOSTERING,4221,,11/01/2023,23271791,3498.57,28178,CARING HEARTS FOSTERING LTD
INSERTED DETAIL,,Ealing Council,http://opendatacommunities.org/id/london-borough-council/ealing,CHILDREN & ADULTS,1,SAFEGUARDING & SUPPORT - CIC,INDEPENDENT FOSTERING,4221,,11/01/2023,23271791,3498.57,28178,CARING HEARTS FOSTERING LTD
INSERTED DETAIL,,Ealing Council,http://opendatacommunities.org/id/london-borough-council/ealing,CHILDREN & ADULTS,1,SAFEGUARDING & SUPPORT - CIC,INDEPENDENT FOSTERING,4221,,11/01/2023,23271791,3323.65,28178,CARING HEARTS FOSTERING LTD
INSERTED DETAIL,,Ealing Council,http://opendatacommunities.org/id/london-borough-council/ealing,CHILDREN & ADULTS,1,SAFEGUARDING & SUPPORT - CIC,ELIGIBLE CHILDREN ACCOMMODATION,4281,,11/01/2023,23271835,1129.28,29181,TRINITY HEALTHCARE PLUS LTD
INSERTED DETAIL,,Ealing Council,http://opendatacommunities.org/id/london-borough-council/ealing,CHILDREN & ADULTS,1,SAFEGUARDING & SUPPORT - CIC,ELIGIBLE CHILDREN ACCOMMODATION,4281,,11/01/2023,23271835,270.37,29181,TRINITY HEALTHCARE PLUS LTD
INSERTED DETAIL,,Ealing Council,http://opendatacommunities.org/id/london-borough-council/ealing,CHILDREN & ADULTS,1,SAFEGUARDING & SUPPORT - CIC,ELIGIBLE CHILDREN ACCOMMODATION,4281,,11/01/2023,23271835,2657.15,29181,TRINITY HEALTHCARE PLUS LTD
INSERTED DETAIL,,Ealing Council,http://opendatacommunities.org/id/london-borough-council/ealing,CHILDREN & ADULTS,1,SAFEGUARDING & SUPPORT - CIC,ELIGIBLE CHILDREN ACCOMMODATION,4281,,11/01/2023,23271835,2745.72,29181,TRINITY HEALTHCARE PLUS LTD
INSERTED DETAIL,,Ealing Council,http://opendatacommunities.org/id/london-borough-council/ealing,CHILDREN & ADULTS,1,SAFEGUARDING & SUPPORT - CIC,ELIGIBLE CHILDREN ACCOMMODATION,4281,,11/01/2023,23271835,-497.15,29181,TRINITY HEALTHCARE PLUS LTD
INSERTED DETAIL,,Ealing Council,http://opendatacommunities.org/id/london-borough-council/ealing,CHILDREN & ADULTS,1,SAFEGUARDING & SUPPORT - CIC,ELIGIBLE CHILDREN ACCOMMODATION,4281,,11/01/2023,23271835,514.29,29181,TRINITY HEALTHCARE PLUS LTD
INSERTED DETAIL,,Ealing Council,http://opendatacommunities.org/id/london-borough-council/ealing,CHILDREN & ADULTS,1,SAFEGUARDING & SUPPORT - CIC,ELIGIBLE CHILDREN ACCOMMODATION,4281,,11/01/2023,23271835,442.85,29181,TRINITY HEALTHCARE PLUS LTD
INSERTED DETAIL,,Ealing Council,http://opendatacommunities.org/id/london-borough-council/ealing,CHILDREN & ADULTS,1,SAFEGUARDING & SUPPORT - CIC,ELIGIBLE CHILDREN ACCOMMODATION,4281,,11/01/2023,23271835,3542.85,29181,TRINITY HEALTHCARE PLUS LTD
INSERTED DETAIL,,Ealing Council,http://opendatacommunities.org/id/london-borough-council/ealing,CHILDREN & ADULTS,1,SAFEGUARDING & SUPPORT - CIC,ELIGIBLE CHILDREN ACCOMMODATION,4281,,11/01/2023,23271839,870.03,29371,STELLAR MANAGEMENTS SERVICES LIMITED
INSERTED DETAIL,,Ealing Council,http://opendatacommunities.org/id/london-borough-council/ealing,CHILDREN & ADULTS,1,SAFEGUARDING & SUPPORT - CIC,ELIGIBLE CHILDREN ACCOMMODATION,4281,,11/01/2023,23271839,870.03,29371,STELLAR MANAGEMENTS SERVICES LIMITED
INSERTED DETAIL,,Ealing Council,http://opendatacommunities.org/id/london-borough-council/ealing,CHILDREN & ADULTS,1,SAFEGUARDING & SUPPORT - CIC,ELIGIBLE CHILDREN ACCOMMODATION,4281,,11/01/2023,23271839,870.03,29371,STELLAR MANAGEMENTS SERVICES LIMITED
INSERTED DETAIL,,Ealing Council,http://opendatacommunities.org/id/london-borough-council/ealing,CHILDREN & ADULTS,1,SAFEGUARDING & SUPPORT - CIC,ELIGIBLE CHILDREN ACCOMMODATION,4281,,11/01/2023,23271839,870.03,29371,STELLAR MANAGEMENTS SERVICES LIMITED
INSERTED DETAIL,,Ealing Council,http://opendatacommunities.org/id/london-borough-council/ealing,CHILDREN & ADULTS,1,SAFEGUARDING & SUPPORT - CIC,ELIGIBLE CHILDREN ACCOMMODATION,4281,,11/01/2023,23271839,870.03,29371,STELLAR MANAGEMENTS SERVICES LIMITED
INSERTED DETAIL,,Ealing Council,http://opendatacommunities.org/id/london-borough-council/ealing,CHILDREN & ADULTS,1,SAFEGUARDING & SUPPORT - CIC,ELIGIBLE CHILDREN ACCOMMODATION,4281,,11/01/2023,23271839,870.03,29371,STELLAR MANAGEMENTS SERVICES LIMITED
INSERTED DETAIL,,Ealing Council,http://opendatacommunities.org/id/london-borough-council/ealing,CHILDREN & ADULTS,1,SAFEGUARDING & SUPPORT - CIC,ELIGIBLE CHILDREN ACCOMMODATION,4281,,11/01/2023,23271839,870.03,29371,STELLAR MANAGEMENTS SERVICES LIMITED
INSERTED DETAIL,,Ealing Council,http://opendatacommunities.org/id/london-borough-council/ealing,CHILDREN & ADULTS,1,SAFEGUARDING & SUPPORT - CIC,ELIGIBLE CHILDREN ACCOMMODATION,4281,,11/01/2023,23271839,870.03,29371,STELLAR MANAGEMENTS SERVICES LIMITED
INSERTED DETAIL,,Ealing Council,http://opendatacommunities.org/id/london-borough-council/ealing,CHILDREN & ADULTS,1,SAFEGUARDING & SUPPORT - CIC,ELIGIBLE CHILDREN ACCOMMODATION,4281,,11/01/2023,23271839,870.03,29371,STELLAR MANAGEMENTS SERVICES LIMITED
INSERTED DETAIL,,Ealing Council,http://opendatacommunities.org/id/london-borough-council/ealing,CHILDREN & ADULTS,1,SAFEGUARDING & SUPPORT - CIC,ELIGIBLE CHILDREN ACCOMMODATION,4281,,11/01/2023,23271843,1550,29468,EXPLORE INDEPENDENCE LTD
INSERTED DETAIL,,Ealing Council,http://opendatacommunities.org/id/london-borough-council/ealing,CHILDREN & ADULTS,1,DISABILITIES,DIRECT PAYMENTS,4231,,24/01/2023,23274408,3750,80128,REDACTED SENSITIVE SUPPLIER
INSERTED DETAIL,,Ealing Council,http://opendatacommunities.org/id/london-borough-council/ealing,CHILDREN & ADULTS,1,DISABILITIES,DIRECT PAYMENTS-INCOME,8787,,24/01/2023,23274408,-323.04,80128,REDACTED SENSITIVE SUPPLIER
INSERTED DETAIL,,Ealing Council,http://opendatacommunities.org/id/london-borough-council/ealing,CHILDREN & ADULTS,1,DISABILITIES,DIRECT PAYMENTS,4231,,24/01/2023,23274427,325.2,80341,REDACTED SENSITIVE SUPPLIER
INSERTED DETAIL,,Ealing Council,http://opendatacommunities.org/id/london-borough-council/ealing,CHILDREN & ADULTS,1,DISABILITIES,DIRECT PAYMENTS,4231,,24/01/2023,23274427,2437.56,80341,REDACTED SENSITIVE SUPPLIER
INSERTED DETAIL,,Ealing Council,http://opendatacommunities.org/id/london-borough-council/ealing,CHILDREN & ADULTS,1,DISABILITIES,DIRECT PAYMENTS,4231,,24/01/2023,23274381,288,80711,REDACTED SENSITIVE SUPPLIER
INSERTED DETAIL,,Ealing Council,http://opendatacommunities.org/id/london-borough-council/ealing,CHILDREN & ADULTS,1,DISABILITIES,DIRECT PAYMENTS,4231,,24/01/2023,23274381,1472.96,80711,REDACTED SENSITIVE SUPPLIER
INSERTED DETAIL,,Ealing Council,http://opendatacommunities.org/id/london-borough-council/ealing,CHILDREN & ADULTS,1,DISABILITIES,DIRECT PAYMENTS,4231,,24/01/2023,23274415,649.6,80898,REDACTED SENSITIVE SUPPLIER
INSERTED DETAIL,,Ealing Council,http://opendatacommunities.org/id/london-borough-council/ealing,CHILDREN & ADULTS,1,DISABILITIES,DIRECT PAYMENTS,4231,,24/01/2023,23274436,411.64,80942,REDACTED SENSITIVE SUPPLIER
INSERTED DETAIL,,Ealing Council,http://opendatacommunities.org/id/london-borough-council/ealing,CHILDREN & ADULTS,1,DISABILITIES,DIRECT PAYMENTS,4231,,24/01/2023,23274434,686.04,80978,REDACTED SENSITIVE SUPPLIER
INSERTED DETAIL,,Ealing Council,http://opendatacommunities.org/id/london-borough-council/ealing,CHILDREN & ADULTS,1,DISABILITIES,DAY CARE CENTRES,4250,,05/01/2023,23270118,369,24152,SOLUTIONS SOCIAL CARE LIMITED
INSERTED DETAIL,,Ealing Council,http://opendatacommunities.org/id/london-borough-council/ealing,CHILDREN & ADULTS,1,DISABILITIES,RESIDENTIAL HOMES EXTERNAL,4220,,05/01/2023,23270118,841.88,24152,SOLUTIONS SOCIAL CARE LIMITED
INSERTED DETAIL,,Ealing Council,http://opendatacommunities.org/id/london-borough-council/ealing,CHILDREN & ADULTS,1,DISABILITIES,RESIDENTIAL HOMES EXTERNAL,4220,,05/01/2023,23270118,2776,24152,SOLUTIONS SOCIAL CARE LIMITED
INSERTED DETAIL,,Ealing Council,http://opendatacommunities.org/id/london-borough-council/ealing,CHILDREN & ADULTS,1,DISABILITIES,RESIDENTIAL HOMES EXTERNAL,4220,,05/01/2023,23270118,6378,24152,SOLUTIONS SOCIAL CARE LIMITED
INSERTED DETAIL,,Ealing Council,http://opendatacommunities.org/id/london-borough-council/ealing,CHILDREN & ADULTS,1,DISABILITIES,RESIDENTIAL HOMES EXTERNAL,4220,,05/01/2023,23270118,2584,24152,SOLUTIONS SOCIAL CARE LIMITED
INSERTED DETAIL,,Ealing Council,http://opendatacommunities.org/id/london-borough-council/ealing,CHILDREN & ADULTS,1,DISABILITIES,RESIDENTIAL HOMES EXTERNAL,4220,,05/01/2023,23270118,791.96,24152,SOLUTIONS SOCIAL CARE LIMITED
INSERTED DETAIL,,Ealing Council,http://opendatacommunities.org/id/london-borough-council/ealing,CHILDREN & ADULTS,1,DISABILITIES,RESIDENTIAL HOMES EXTERNAL,4220,,05/01/2023,23270118,7146,24152,SOLUTIONS SOCIAL CARE LIMITED
INSERTED DETAIL,,Ealing Council,http://opendatacommunities.org/id/london-borough-council/ealing,CHILDREN & ADULTS,1,DISABILITIES,RESIDENTIAL HOMES EXTERNAL,4220,,05/01/2023,23270118,1093.2,24152,SOLUTIONS SOCIAL CARE LIMITED
INSERTED DETAIL,,Ealing Council,http://opendatacommunities.org/id/london-borough-council/ealing,CHILDREN & ADULTS,1,DISABILITIES,RESIDENTIAL HOMES EXTERNAL,4220,,05/01/2023,23270118,2192.4,24152,SOLUTIONS SOCIAL CARE LIMITED
INSERTED DETAIL,,Ealing Council,http://opendatacommunities.org/id/london-borough-council/ealing,CHILDREN & ADULTS,1,DISABILITIES,RESIDENTIAL HOMES EXTERNAL,4220,,05/01/2023,23270118,3411,24152,SOLUTIONS SOCIAL CARE LIMITED
INSERTED DETAIL,,Ealing Council,http://opendatacommunities.org/id/london-borough-council/ealing,CHILDREN & ADULTS,1,DISABILITIES,RESIDENTIAL HOMES EXTERNAL,4220,,05/01/2023,23270118,5148,24152,SOLUTIONS SOCIAL CARE LIMITED
INSERTED DETAIL,,Ealing Council,http://opendatacommunities.org/id/london-borough-council/ealing,CHILDREN & ADULTS,1,DISABILITIES,RESIDENTIAL HOMES EXTERNAL,4220,,05/01/2023,23270118,347,24152,SOLUTIONS SOCIAL CARE LIMITED
INSERTED DETAIL,,Ealing Council,http://opendatacommunities.org/id/london-borough-council/ealing,CHILDREN & ADULTS,1,DISABILITIES,RESIDENTIAL HOMES EXTERNAL,4220,,05/01/2023,23270118,416.4,24152,SOLUTIONS SOCIAL CARE LIMITED
INSERTED DETAIL,,Ealing Council,http://opendatacommunities.org/id/london-borough-council/ealing,CHILDREN & ADULTS,1,DISABILITIES,RESIDENTIAL HOMES EXTERNAL,4220,,05/01/2023,23270118,3863,24152,SOLUTIONS SOCIAL CARE LIMITED
INSERTED DETAIL,,Ealing Council,http://opendatacommunities.org/id/london-borough-council/ealing,CHILDREN & ADULTS,1,DISABILITIES,RESIDENTIAL HOMES EXTERNAL,4220,,05/01/2023,23270118,511.56,24152,SOLUTIONS SOCIAL CARE LIMITED
INSERTED DETAIL,,Ealing Council,http://opendatacommunities.org/id/london-borough-council/ealing,CHILDREN & ADULTS,1,DISABILITIES,RESIDENTIAL HOMES EXTERNAL,4220,,05/01/2023,23270118,745.64,24152,SOLUTIONS SOCIAL CARE LIMITED
INSERTED DETAIL,,Ealing Council,http://opendatacommunities.org/id/london-borough-council/ealing,CHILDREN & ADULTS,1,DISABILITIES,RESIDENTIAL HOMES EXTERNAL,4220,,05/01/2023,23270118,686.8,24152,SOLUTIONS SOCIAL CARE LIMITED
INSERTED DETAIL,,Ealing Council,http://opendatacommunities.org/id/london-borough-council/ealing,CHILDREN & ADULTS,1,DISABILITIES,RESIDENTIAL HOMES EXTERNAL,4220,,05/01/2023,23270118,876,24152,SOLUTIONS SOCIAL CARE LIMITED
INSERTED DETAIL,,Ealing Council,http://opendatacommunities.org/id/london-borough-council/ealing,CHILDREN & ADULTS,1,DISABILITIES,RESIDENTIAL HOMES EXTERNAL,4220,,05/01/2023,23270118,4605.28,24152,SOLUTIONS SOCIAL CARE LIMITED
INSERTED DETAIL,,Ealing Council,http://opendatacommunities.org/id/london-borough-council/ealing,CHILDREN & ADULTS,1,DISABILITIES,RESIDENTIAL HOMES EXTERNAL,4220,,05/01/2023,23270118,701.56,24152,SOLUTIONS SOCIAL CARE LIMITED
INSERTED DETAIL,,Ealing Council,http://opendatacommunities.org/id/london-borough-council/ealing,CHILDREN & ADULTS,1,DISABILITIES,RESIDENTIAL HOMES EXTERNAL,4220,,05/01/2023,23270118,526.16,24152,SOLUTIONS SOCIAL CARE LIMITED
INSERTED DETAIL,,Ealing Council,http://opendatacommunities.org/id/london-borough-council/ealing,PLACE,6,STREET SERVICES,PAYMENTS TO CONTRACTORS,4000,,31/12/2022,41045831,336.55,14514,WERNICK HIRE LTD
INSERTED DETAIL,,Ealing Council,http://opendatacommunities.org/id/london-borough-council/ealing,PLACE,6,STREET SERVICES,CONTRACT PAYMENTS -CLEAN & GREEN,4010,,31/12/2022,41045860,2686.68,16351,MPM GRAFFITI SOLUTIONS
INSERTED DETAIL,,Ealing Council,http://opendatacommunities.org/id/london-borough-council/ealing,PLACE,6,LEISURE,WATER,1140,,28/10/2022,41044551,3069.24,9900017,FOOTGOLF (LONDON) LTD
INSERTED DETAIL,,Ealing Council,http://opendatacommunities.org/id/london-borough-council/ealing,PLACE,6,LEISURE,CIS REPAIRS AND MAINTENANCE,1411,,16/01/2023,41047692,802.72,28826,GREENER EALING LIMITED
INSERTED DETAIL,,Ealing Council,http://opendatacommunities.org/id/london-borough-council/ealing,PLACE,6,LEISURE,WATER,1140,,01/04/2021,41045421,342.97,15311,AFFINITY WATER LTD
INSERTED DETAIL,,Ealing Council,http://opendatacommunities.org/id/london-borough-council/ealing,PLACE,6,LEISURE,WATER,1140,,01/04/2021,41045422,806.42,15311,AFFINITY WATER LTD
INSERTED DETAIL,,Ealing Council,http://opendatacommunities.org/id/london-borough-council/ealing,PLACE,6,LEISURE,WATER,1140,,01/04/2021,41045425,1101.96,15311,AFFINITY WATER LTD
INSERTED DETAIL,,Ealing Council,http://opendatacommunities.org/id/london-borough-council/ealing,PLACE,6,LEISURE,WATER,1140,,21/12/2022,41046674,1145,24236,IDCC SERVICES LTD
INSERTED DETAIL,,Ealing Council,http://opendatacommunities.org/id/london-borough-council/ealing,CHILDREN & ADULTS,1,DISABILITIES,FOOD AND PROVISIONS,3000,,04/01/2023,41046191,334.59,20388,THOMAS RIDLEY & SON LTD
INSERTED DETAIL,,Ealing Council,http://opendatacommunities.org/id/london-borough-council/ealing,CHILDREN & ADULTS,1,DISABILITIES,FOOD AND PROVISIONS,3000,,30/11/2022,41040980,1138.55,20388,THOMAS RIDLEY & SON LTD
INSERTED DETAIL,,Ealing Council,http://opendatacommunities.org/id/london-borough-council/ealing,CHILDREN & ADULTS,1,SAFEGUARDING & SUPP - BS &A&F,SOCIAL SERVICES -INTER AGENCY BUDGETS,3563,,30/11/2021,41047391,878.33,29403,FAMILY SOCIETY
INSERTED DETAIL,,Ealing Council,http://opendatacommunities.org/id/london-borough-council/ealing,CHILDREN & ADULTS,1,EALING SERVICE FOR CHILDREN WITH ADDITIONAL NEEDS,DOMICILIARY CARE - BLOCK,4240,,03/01/2023,23269557,353.2,29190,CARE RESOLUTION LTD
INSERTED DETAIL,,Ealing Council,http://opendatacommunities.org/id/london-borough-council/ealing,CHILDREN & ADULTS,1,EALING SERVICE FOR CHILDREN WITH ADDITIONAL NEEDS,DOMICILIARY CARE - BLOCK,4240,,03/01/2023,23269557,339.84,29190,CARE RESOLUTION LTD
INSERTED DETAIL,,Ealing Council,http://opendatacommunities.org/id/london-borough-council/ealing,CHILDREN & ADULTS,1,EALING SERVICE FOR CHILDREN WITH ADDITIONAL NEEDS,DOMICILIARY CARE - BLOCK,4240,,03/01/2023,23269557,333.92,29190,CARE RESOLUTION LTD
INSERTED DETAIL,,Ealing Council,http://opendatacommunities.org/id/london-borough-council/ealing,CHILDREN & ADULTS,1,EALING SERVICE FOR CHILDREN WITH ADDITIONAL NEEDS,DOMICILIARY CARE - BLOCK,4240,,03/01/2023,23269557,339.84,29190,CARE RESOLUTION LTD
INSERTED DETAIL,,Ealing Council,http://opendatacommunities.org/id/london-borough-council/ealing,CHILDREN & ADULTS,1,EALING SERVICE FOR CHILDREN WITH ADDITIONAL NEEDS,DOMICILIARY CARE - BLOCK,4240,,03/01/2023,23269557,310.88,29190,CARE RESOLUTION LTD
INSERTED DETAIL,,Ealing Council,http://opendatacommunities.org/id/london-borough-council/ealing,CHILDREN & ADULTS,1,EALING SERVICE FOR CHILDREN WITH ADDITIONAL NEEDS,DOMICILIARY CARE - BLOCK,4240,,03/01/2023,23269557,353.2,29190,CARE RESOLUTION LTD
INSERTED DETAIL,,Ealing Council,http://opendatacommunities.org/id/london-borough-council/ealing,CHILDREN & ADULTS,1,EALING SERVICE FOR CHILDREN WITH ADDITIONAL NEEDS,DOMICILIARY CARE - BLOCK,4240,,03/01/2023,23269542,1067.2,20408,PROJECT WEST LTD
INSERTED DETAIL,,Ealing Council,http://opendatacommunities.org/id/london-borough-council/ealing,CHILDREN & ADULTS,1,EALING SERVICE FOR CHILDREN WITH ADDITIONAL NEEDS,RESPITE CARE SCHEME,4661,,03/01/2023,23269539,-2904,14744,CAPITAL HOMECARE (UK) LTD
INSERTED DETAIL,,Ealing Council,http://opendatacommunities.org/id/london-borough-council/ealing,CHILDREN & ADULTS,1,EALING SERVICE FOR CHILDREN WITH ADDITIONAL NEEDS,DOMICILIARY CARE - BLOCK,4240,,03/01/2023,23269539,349.76,14744,CAPITAL HOMECARE (UK) LTD
INSERTED DETAIL,,Ealing Council,http://opendatacommunities.org/id/london-borough-council/ealing,CHILDREN & ADULTS,1,EALING SERVICE FOR CHILDREN WITH ADDITIONAL NEEDS,DOMICILIARY CARE - BLOCK,4240,,03/01/2023,23269539,-831,14744,CAPITAL HOMECARE (UK) LTD
INSERTED DETAIL,,Ealing Council,http://opendatacommunities.org/id/london-borough-council/ealing,CHILDREN & ADULTS,1,EALING SERVICE FOR CHILDREN WITH ADDITIONAL NEEDS,DOMICILIARY CARE - BLOCK,4240,,03/01/2023,23269539,-459,14744,CAPITAL HOMECARE (UK) LTD
INSERTED DETAIL,,Ealing Council,http://opendatacommunities.org/id/london-borough-council/ealing,CHILDREN & ADULTS,1,EALING SERVICE FOR CHILDREN WITH ADDITIONAL NEEDS,INDEPENDENT FOSTERING,4221,,11/01/2023,23271779,2637.96,15020,TACT
INSERTED DETAIL,,Ealing Council,http://opendatacommunities.org/id/london-borough-council/ealing,CHILDREN & ADULTS,1,EALING SERVICE FOR CHILDREN WITH ADDITIONAL NEEDS,DWELLING RENTS,9000,,03/01/2023,41046992,1400,80922,OLUWADABIRA OGUNWOLERE C/O ANAYO ROSE AGUNWOLERE
INSERTED DETAIL,,Ealing Council,http://opendatacommunities.org/id/london-borough-council/ealing,CHILDREN & ADULTS,1,EALING SERVICE FOR CHILDREN WITH ADDITIONAL NEEDS,DIRECT PAYMENTS,4231,,25/01/2023,23274831,1524.48,80928,REDACTED SENSITIVE SUPPLIER
INSERTED DETAIL,,Ealing Council,http://opendatacommunities.org/id/london-borough-council/ealing,CHILDREN & ADULTS,1,EALING SERVICE FOR CHILDREN WITH ADDITIONAL NEEDS,DIRECT PAYMENTS,4231,,25/01/2023,23274830,459.08,81013,REDACTED SENSITIVE SUPPLIER
INSERTED DETAIL,,Ealing Council,http://opendatacommunities.org/id/london-borough-council/ealing,CHILDREN & ADULTS,1,EALING SERVICE FOR CHILDREN WITH ADDITIONAL NEEDS,DIRECT PAYMENTS,4231,,25/01/2023,23274830,350.76,81013,REDACTED SENSITIVE SUPPLIER
INSERTED DETAIL,,Ealing Council,http://opendatacommunities.org/id/london-borough-council/ealing,CHILDREN & ADULTS,1,EALING SERVICE FOR CHILDREN WITH ADDITIONAL NEEDS,DIRECT PAYMENTS,4231,,25/01/2023,23274830,291.08,81013,REDACTED SENSITIVE SUPPLIER
INSERTED DETAIL,,Ealing Council,http://opendatacommunities.org/id/london-borough-council/ealing,CHILDREN & ADULTS,1,EALING SERVICE FOR CHILDREN WITH ADDITIONAL NEEDS,DIRECT PAYMENTS,4231,,25/01/2023,23274837,1366.96,81043,REDACTED SENSITIVE SUPPLIER
INSERTED DETAIL,,Ealing Council,http://opendatacommunities.org/id/london-borough-council/ealing,CHILDREN & ADULTS,1,EALING SERVICE FOR CHILDREN WITH ADDITIONAL NEEDS,RESIDENTIAL HOMES EXTERNAL,4220,,11/01/2023,23271751,24396.55,28416,THE VINE RESIDENTIAL SERVICES LTD
INSERTED DETAIL,,Ealing Council,http://opendatacommunities.org/id/london-borough-council/ealing,CHILDREN & ADULTS,1,EALING SERVICE FOR CHILDREN WITH ADDITIONAL NEEDS,DIRECT PAYMENTS,4231,,25/01/2023,23274834,4498.6,80933,REDACTED SENSITIVE SUPPLIER
INSERTED DETAIL,,Ealing Council,http://opendatacommunities.org/id/london-borough-council/ealing,CHILDREN & ADULTS,1,EALING SERVICE FOR CHILDREN WITH ADDITIONAL NEEDS,DIRECT PAYMENTS,4231,,25/01/2023,23274836,630.8,27062,REDACTED SENSITIVE SUPPLIER
INSERTED DETAIL,,Ealing Council,http://opendatacommunities.org/id/london-borough-council/ealing,CHILDREN & ADULTS,1,EALING SERVICE FOR CHILDREN WITH ADDITIONAL NEEDS,DAY ACTIVITY,4666,,03/01/2023,23269538,600,28863,SEVA EDUCATION HEALTH & CARE LTD
INSERTED DETAIL,,Ealing Council,http://opendatacommunities.org/id/london-borough-council/ealing,PLACE,6,STREET SERVICES,PAYMENTS TO CONTRACTORS,4000,,20/01/2023,41045066,408326.25,28826,GREENER EALING LIMITED
INSERTED DETAIL,,Ealing Council,http://opendatacommunities.org/id/london-borough-council/ealing,PLACE,6,LEISURE,PAYMENTS TO CONTRACTORS -ARBORICULTURAL WORKS,4041,,01/12/2022,41045121,29143.64,25486,BARBER ENVIRONMENTAL LIMITED
INSERTED DETAIL,,Ealing Council,http://opendatacommunities.org/id/london-borough-council/ealing,PLACE,6,LEISURE,PAYMENTS TO CONTRACTORS -ARBORICULTURAL WORKS,4041,,17/11/2022,41048435,9898,25937,R&A SOFTWARE (SYSTEMS) LTD T/A RA INFORMATION SYSTEMS
INSERTED DETAIL,,Ealing Council,http://opendatacommunities.org/id/london-borough-council/ealing,PLACE,6,LEISURE,PAYMENTS TO CONTRACTORS -ARBORICULTURAL WORKS,4041,,17/11/2022,41048438,2575,25937,R&A SOFTWARE (SYSTEMS) LTD T/A RA INFORMATION SYSTEMS
INSERTED DETAIL,,Ealing Council,http://opendatacommunities.org/id/london-borough-council/ealing,PLACE,6,LEISURE,PAYMENTS TO CONTRACTORS -ARBORICULTURAL WORKS,4041,,18/11/2022,41048443,2000,25937,R&A SOFTWARE (SYSTEMS) LTD T/A RA INFORMATION SYSTEMS
INSERTED DETAIL,,Ealing Council,http://opendatacommunities.org/id/london-borough-council/ealing,PLACE,6,LEISURE,PAYMENTS TO CONTRACTORS -ARBORICULTURAL WORKS,4041,,03/01/2023,41047351,300,11187,COMPLETE TREE CARE LTD
INSERTED DETAIL,,Ealing Council,http://opendatacommunities.org/id/london-borough-council/ealing,PLACE,6,LEISURE,PAYMENTS TO CONTRACTORS -ARBORICULTURAL WORKS,4041,,02/12/2022,41047352,1243.75,11187,COMPLETE TREE CARE LTD
INSERTED DETAIL,,Ealing Council,http://opendatacommunities.org/id/london-borough-council/ealing,PLACE,6,LEISURE,PAYMENTS TO CONTRACTORS -ARBORICULTURAL WORKS,4041,,03/01/2023,41047353,10550,11187,COMPLETE TREE CARE LTD
INSERTED DETAIL,,Ealing Council,http://opendatacommunities.org/id/london-borough-council/ealing,PLACE,6,LEISURE,PAYMENTS TO CONTRACTORS -ARBORICULTURAL WORKS,4041,,01/12/2022,41047280,1591,10493,BARCHAM TREES LTD
INSERTED DETAIL,,Ealing Council,http://opendatacommunities.org/id/london-borough-council/ealing,PLACE,6,LEISURE,PAYMENTS TO CONTRACTORS -ARBORICULTURAL WORKS,4041,,01/12/2022,41047282,1331,10493,BARCHAM TREES LTD
INSERTED DETAIL,,Ealing Council,http://opendatacommunities.org/id/london-borough-council/ealing,PLACE,6,LEISURE,PAYMENTS TO CONTRACTORS -ARBORICULTURAL WORKS,4041,,13/12/2022,41045160,8825,12919,REDACTED SENSITIVE SUPPLIER
INSERTED DETAIL,,Ealing Council,http://opendatacommunities.org/id/london-borough-council/ealing,PLACE,6,LEISURE,PAYMENTS TO CONTRACTORS -ARBORICULTURAL WORKS,4041,,14/12/2022,41044349,1690,28160,CONTRACT & PERSONNEL SERVICES LTD
INSERTED DETAIL,,Ealing Council,http://opendatacommunities.org/id/london-borough-council/ealing,PLACE,6,LEISURE,CONTRACT PAYMENTS -PARKS GROUNDS MAINTENANCE,4040,,15/12/2022,41044894,1302.05,11538,DRAYTON FENCING COMPANY
INSERTED DETAIL,,Ealing Council,http://opendatacommunities.org/id/london-borough-council/ealing,PLACE,6,LEISURE,CONTRACT PAYMENTS -PARKS GROUNDS MAINTENANCE,4040,,13/01/2023,41046068,1000,28953,MY LOCAL PITCH LTD T/A PLAYFINDER
INSERTED DETAIL,,Ealing Council,http://opendatacommunities.org/id/london-borough-council/ealing,PLACE,6,LEISURE,CIS REPAIRS AND MAINTENANCE,1411,,12/01/2023,41048329,750,25871,CENTURIAN SURFACING LTD - T/A CENTURIAN SERVICES
INSERTED DETAIL,,Ealing Council,http://opendatacommunities.org/id/london-borough-council/ealing,PLACE,6,LEISURE,CIS REPAIRS AND MAINTENANCE,1411,,12/01/2023,41048329,1735.64,25871,CENTURIAN SURFACING LTD - T/A CENTURIAN SERVICES
INSERTED DETAIL,,Ealing Council,http://opendatacommunities.org/id/london-borough-council/ealing,PLACE,6,LEISURE,CIS REPAIRS AND MAINTENANCE,1411,,12/01/2023,41048332,750,25871,CENTURIAN SURFACING LTD - T/A CENTURIAN SERVICES
INSERTED DETAIL,,Ealing Council,http://opendatacommunities.org/id/london-borough-council/ealing,CHILDREN & ADULTS,1,"PLANNING, COMMISSIONING & PARTNERSHIPS",REFRESHMENTS,3010,,14/12/2022,41044960,1453.05,17782,ELITE CATERING WEST LONDON LIMITED
INSERTED DETAIL,,Ealing Council,http://opendatacommunities.org/id/london-borough-council/ealing,CHILDREN & ADULTS,1,"PLANNING, COMMISSIONING & PARTNERSHIPS",PAYMENTS TO VOLUNTARY BODIES,4420,,13/12/2022,41043592,2835.5,23428,THE APPROPRIATE ADULT SERVICE LTD
INSERTED DETAIL,,Ealing Council,http://opendatacommunities.org/id/london-borough-council/ealing,CHILDREN & ADULTS,1,"PLANNING, COMMISSIONING & PARTNERSHIPS",PAYMENTS TO VOLUNTARY BODIES,4420,,11/01/2023,41046604,2178.5,23428,THE APPROPRIATE ADULT SERVICE LTD
INSERTED DETAIL,,Ealing Council,http://opendatacommunities.org/id/london-borough-council/ealing,CHILDREN & ADULTS,1,"PLANNING, COMMISSIONING & PARTNERSHIPS",EQUIPMENT  - PURCHASES,3320,,07/12/2022,41042510,300,17283,PARK RETAIL LTD-T/A HIGH STREET VOUCHERS LTD
INSERTED DETAIL,,Ealing Council,http://opendatacommunities.org/id/london-borough-council/ealing,CHILDREN & ADULTS,1,"PLANNING, COMMISSIONING & PARTNERSHIPS",TRAINING EXPENSES,80,,14/12/2022,41043899,700,19150,WARDELL ASSOCIATES LIMITED
INSERTED DETAIL,,Ealing Council,http://opendatacommunities.org/id/london-borough-council/ealing,CHILDREN & ADULTS,1,"PLANNING, COMMISSIONING & PARTNERSHIPS",PAYMENTS TO CONTRACTORS,4000,,22/12/2022,41045136,8250.75,15652,WEST LONDON NHS TRUST
INSERTED DETAIL,,Ealing Council,http://opendatacommunities.org/id/london-borough-council/ealing,CHILDREN & ADULTS,1,SAFEGUARDING & SUPP - BS &A&F,PAYMENTS TO CONTRACTORS,4000,,28/12/2022,41046552,750,13929,PACT
INSERTED DETAIL,,Ealing Council,http://opendatacommunities.org/id/london-borough-council/ealing,CHILDREN & ADULTS,1,SAFEGUARDING & SUPP - BS &A&F,PAYMENTS TO CONTRACTORS,4000,,20/12/2022,41044853,1800,23809,FAMILY FUTURES CIC
INSERTED DETAIL,,Ealing Council,http://opendatacommunities.org/id/london-borough-council/ealing,CHILDREN & ADULTS,1,SAFEGUARDING & SUPP - BS &A&F,PAYMENTS TO CONTRACTORS,4000,,21/12/2022,41045039,7120,23809,FAMILY FUTURES CIC
INSERTED DETAIL,,Ealing Council,http://opendatacommunities.org/id/london-borough-council/ealing,CHILDREN & ADULTS,1,SAFEGUARDING & SUPP - BS &A&F,PAYMENTS TO CONTRACTORS,4000,,22/12/2022,41045191,1080,11238,CORAM
INSERTED DETAIL,,Ealing Council,http://opendatacommunities.org/id/london-borough-council/ealing,CHILDREN & ADULTS,1,SAFEGUARDING & SUPP - BS &A&F,PAYMENTS TO CONTRACTORS,4000,,25/01/2023,41048015,250,10000134,REDACTED SENSITIVE SUPPLIER
INSERTED DETAIL,,Ealing Council,http://opendatacommunities.org/id/london-borough-council/ealing,CHILDREN & ADULTS,1,SAFEGUARDING & SUPP - BS &A&F,PAYMENTS TO CONTRACTORS,4000,,25/01/2023,41048016,1764,10000134,REDACTED SENSITIVE SUPPLIER
INSERTED DETAIL,,Ealing Council,http://opendatacommunities.org/id/london-borough-council/ealing,CHILDREN & ADULTS,1,SAFEGUARDING & SUPP - BS &A&F,PAYMENTS TO CONTRACTORS,4000,,25/01/2023,41048017,250,10000134,REDACTED SENSITIVE SUPPLIER
INSERTED DETAIL,,Ealing Council,http://opendatacommunities.org/id/london-borough-council/ealing,CHILDREN & ADULTS,1,SAFEGUARDING & SUPP - BS &A&F,PAYMENTS TO CONTRACTORS,4000,,25/01/2023,41048018,1518,10000134,REDACTED SENSITIVE SUPPLIER
INSERTED DETAIL,,Ealing Council,http://opendatacommunities.org/id/london-borough-council/ealing,CHILDREN & ADULTS,1,SAFEGUARDING & SUPP - BS &A&F,PAYMENTS TO CONTRACTORS,4000,,25/01/2023,41048019,1255,10000134,REDACTED SENSITIVE SUPPLIER
INSERTED DETAIL,,Ealing Council,http://opendatacommunities.org/id/london-borough-council/ealing,CHILDREN & ADULTS,1,SAFEGUARDING & SUPP - BS &A&F,PAYMENTS TO CONTRACTORS,4000,,25/01/2023,41048020,1008,10000134,REDACTED SENSITIVE SUPPLIER
INSERTED DETAIL,,Ealing Council,http://opendatacommunities.org/id/london-borough-council/ealing,CHILDREN & ADULTS,1,SAFEGUARDING & SUPP - BS &A&F,SPECIAL GUARDIANSHIP ALLOWANCE,4663,,24/01/2023,23274479,365,200078,REDACTED SENSITIVE SUPPLIER
INSERTED DETAIL,,Ealing Council,http://opendatacommunities.org/id/london-borough-council/ealing,CHILDREN & ADULTS,1,SAFEGUARDING & SUPP - BS &A&F,SPECIAL GUARDIANSHIP ALLOWANCE,4663,,10/01/2023,23271515,775.71,201046,REDACTED SENSITIVE SUPPLIER
INSERTED DETAIL,,Ealing Council,http://opendatacommunities.org/id/london-borough-council/ealing,CHILDREN & ADULTS,1,SAFEGUARDING & SUPP - BS &A&F,SPECIAL GUARDIANSHIP ALLOWANCE,4663,,10/01/2023,23271469,314.21,200049,REDACTED SENSITIVE SUPPLIER
INSERTED DETAIL,,Ealing Council,http://opendatacommunities.org/id/london-borough-council/ealing,CHILDREN & ADULTS,1,SAFEGUARDING & SUPP - BS &A&F,SPECIAL GUARDIANSHIP ALLOWANCE,4663,,03/01/2023,23269247,314.21,200049,REDACTED SENSITIVE SUPPLIER
INSERTED DETAIL,,Ealing Council,http://opendatacommunities.org/id/london-borough-council/ealing,CHILDREN & ADULTS,1,SAFEGUARDING & SUPP - BS &A&F,SPECIAL GUARDIANSHIP ALLOWANCE,4663,,17/01/2023,23273268,314.21,200049,REDACTED SENSITIVE SUPPLIER
INSERTED DETAIL,,Ealing Council,http://opendatacommunities.org/id/london-borough-council/ealing,CHILDREN & ADULTS,1,SAFEGUARDING & SUPP - BS &A&F,SPECIAL GUARDIANSHIP ALLOWANCE,4663,,24/01/2023,23274557,314.21,200049,REDACTED SENSITIVE SUPPLIER
INSERTED DETAIL,,Ealing Council,http://opendatacommunities.org/id/london-borough-council/ealing,CHILDREN & ADULTS,1,SAFEGUARDING & SUPP - BS &A&F,ADOPTION ALLOWANCE,4387,,03/01/2023,23269189,308.95,200296,REDACTED SENSITIVE SUPPLIER
INSERTED DETAIL,,Ealing Council,http://opendatacommunities.org/id/london-borough-council/ealing,CHILDREN & ADULTS,1,SAFEGUARDING & SUPP - BS &A&F,ADOPTION ALLOWANCE,4387,,10/01/2023,23271412,308.95,200296,REDACTED SENSITIVE SUPPLIER
INSERTED DETAIL,,Ealing Council,http://opendatacommunities.org/id/london-borough-council/ealing,CHILDREN & ADULTS,1,SAFEGUARDING & SUPP - BS &A&F,ADOPTION ALLOWANCE,4387,,17/01/2023,23273210,308.95,200296,REDACTED SENSITIVE SUPPLIER
INSERTED DETAIL,,Ealing Council,http://opendatacommunities.org/id/london-borough-council/ealing,CHILDREN & ADULTS,1,SAFEGUARDING & SUPP - BS &A&F,ADOPTION ALLOWANCE,4387,,24/01/2023,23274499,308.95,200296,REDACTED SENSITIVE SUPPLIER
INSERTED DETAIL,,Ealing Council,http://opendatacommunities.org/id/london-borough-council/ealing,CHILDREN & ADULTS,1,SAFEGUARDING & SUPP - BS &A&F,SPECIAL GUARDIANSHIP ALLOWANCE,4663,,10/01/2023,23271420,255.95,200312,REDACTED SENSITIVE SUPPLIER
INSERTED DETAIL,,Ealing Council,http://opendatacommunities.org/id/london-borough-council/ealing,CHILDREN & ADULTS,1,SAFEGUARDING & SUPP - BS &A&F,SPECIAL GUARDIANSHIP ALLOWANCE,4663,,03/01/2023,23269197,255.95,200312,REDACTED SENSITIVE SUPPLIER
INSERTED DETAIL,,Ealing Council,http://opendatacommunities.org/id/london-borough-council/ealing,CHILDREN & ADULTS,1,SAFEGUARDING & SUPP - BS &A&F,SPECIAL GUARDIANSHIP ALLOWANCE,4663,,17/01/2023,23273218,255.95,200312,REDACTED SENSITIVE SUPPLIER
INSERTED DETAIL,,Ealing Council,http://opendatacommunities.org/id/london-borough-council/ealing,CHILDREN & ADULTS,1,SAFEGUARDING & SUPP - BS &A&F,SPECIAL GUARDIANSHIP ALLOWANCE,4663,,24/01/2023,23274507,255.95,200312,REDACTED SENSITIVE SUPPLIER
INSERTED DETAIL,,Ealing Council,http://opendatacommunities.org/id/london-borough-council/ealing,CHILDREN & ADULTS,1,SAFEGUARDING & SUPP - BS &A&F,ADOPTION ALLOWANCE,4387,,24/01/2023,23274651,287.67,200411,REDACTED SENSITIVE SUPPLIER
INSERTED DETAIL,,Ealing Council,http://opendatacommunities.org/id/london-borough-council/ealing,CHILDREN & ADULTS,1,SAFEGUARDING & SUPP - BS &A&F,ADOPTION ALLOWANCE,4387,,17/01/2023,23273364,287.67,200411,REDACTED SENSITIVE SUPPLIER
INSERTED DETAIL,,Ealing Council,http://opendatacommunities.org/id/london-borough-council/ealing,CHILDREN & ADULTS,1,SAFEGUARDING & SUPP - BS &A&F,ADOPTION ALLOWANCE,4387,,10/01/2023,23271565,287.67,200411,REDACTED SENSITIVE SUPPLIER
INSERTED DETAIL,,Ealing Council,http://opendatacommunities.org/id/london-borough-council/ealing,CHILDREN & ADULTS,1,SAFEGUARDING & SUPP - BS &A&F,ADOPTION ALLOWANCE,4387,,03/01/2023,23269342,287.67,200411,REDACTED SENSITIVE SUPPLIER
INSERTED DETAIL,,Ealing Council,http://opendatacommunities.org/id/london-borough-council/ealing,CHILDREN & ADULTS,1,SAFEGUARDING & SUPPORT - CIC,ELIGIBLE CHILDREN ACCOMMODATION,4281,,25/01/2023,23274363,385.65,200219,REDACTED SENSITIVE SUPPLIER
INSERTED DETAIL,,Ealing Council,http://opendatacommunities.org/id/london-borough-council/ealing,CHILDREN & ADULTS,1,SAFEGUARDING & SUPPORT - CIC,ELIGIBLE CHILDREN OTHER COSTS,4282,,03/01/2023,23269365,500,200529,REDACTED SENSITIVE SUPPLIER
INSERTED DETAIL,,Ealing Council,http://opendatacommunities.org/id/london-borough-council/ealing,CHILDREN & ADULTS,1,SAFEGUARDING & SUPPORT - CIC,ELIGIBLE CHILDREN OTHER COSTS,4282,,17/01/2023,23273387,1000,200529,REDACTED SENSITIVE SUPPLIER
INSERTED DETAIL,,Ealing Council,http://opendatacommunities.org/id/london-borough-council/ealing,CHILDREN & ADULTS,1,SAFEGUARDING & SUPPORT - CIC,ELIGIBLE CHILDREN OTHER COSTS,4282,,17/01/2023,23273193,2166,200643,REDACTED SENSITIVE SUPPLIER
INSERTED DETAIL,,Ealing Council,http://opendatacommunities.org/id/london-borough-council/ealing,CHILDREN & ADULTS,1,SAFEGUARDING & SUPPORT - CIC,ELIGIBLE CHILDREN ACCOMMODATION,4281,,24/01/2023,23274727,269.95,200782,REDACTED SENSITIVE SUPPLIER
INSERTED DETAIL,,Ealing Council,http://opendatacommunities.org/id/london-borough-council/ealing,CHILDREN & ADULTS,1,SAFEGUARDING & SUPPORT - CIC,ELIGIBLE CHILDREN ACCOMMODATION,4281,,17/01/2023,23273441,462.78,200782,REDACTED SENSITIVE SUPPLIER
INSERTED DETAIL,,Ealing Council,http://opendatacommunities.org/id/london-borough-council/ealing,CHILDREN & ADULTS,1,SAFEGUARDING & SUPPORT - CIC,ELIGIBLE CHILDREN OTHER COSTS,4282,,25/01/2023,23274362,1006.4,200792,REDACTED SENSITIVE SUPPLIER
INSERTED DETAIL,,Ealing Council,http://opendatacommunities.org/id/london-borough-council/ealing,CHILDREN & ADULTS,1,SAFEGUARDING & SUPPORT - CIC,ELIGIBLE CHILDREN OTHER COSTS,4282,,03/01/2023,23269489,257.95,201084,REDACTED SENSITIVE SUPPLIER
INSERTED DETAIL,,Ealing Council,http://opendatacommunities.org/id/london-borough-council/ealing,CHILDREN & ADULTS,1,SAFEGUARDING & SUPPORT - CIC,ELIGIBLE CHILDREN ACCOMMODATION,4281,,20/12/2022,23271924,2510.95,13077,LEAVING CARE SOLUTIONS  LTD
INSERTED DETAIL,,Ealing Council,http://opendatacommunities.org/id/london-borough-council/ealing,CHILDREN & ADULTS,1,SAFEGUARDING & SUPPORT - CIC,ELIGIBLE CHILDREN ACCOMMODATION,4281,,10/01/2023,23271739,539.9,200000,REDACTED SENSITIVE SUPPLIER
INSERTED DETAIL,,Ealing Council,http://opendatacommunities.org/id/london-borough-council/ealing,CHILDREN & ADULTS,1,SAFEGUARDING & SUPPORT - CIC,ELIGIBLE CHILDREN ACCOMMODATION,4281,,17/01/2023,23273538,269.95,200000,REDACTED SENSITIVE SUPPLIER
INSERTED DETAIL,,Ealing Council,http://opendatacommunities.org/id/london-borough-council/ealing,CHILDREN & ADULTS,1,SAFEGUARDING & SUPPORT - CIC,ELIGIBLE CHILDREN ACCOMMODATION,4281,,24/01/2023,23274824,269.95,200000,REDACTED SENSITIVE SUPPLIER
INSERTED DETAIL,,Ealing Council,http://opendatacommunities.org/id/london-borough-council/ealing,CHILDREN & ADULTS,1,SAFEGUARDING & SUPPORT - CIC,ELIGIBLE CHILDREN ACCOMMODATION,4281,,03/01/2023,23269467,269.95,200226,REDACTED SENSITIVE SUPPLIER
INSERTED DETAIL,,Ealing Council,http://opendatacommunities.org/id/london-borough-council/ealing,CHILDREN & ADULTS,1,SAFEGUARDING & SUPPORT - CIC,ELIGIBLE CHILDREN ACCOMMODATION,4281,,03/01/2023,23269467,269.95,200226,REDACTED SENSITIVE SUPPLIER
INSERTED DETAIL,,Ealing Council,http://opendatacommunities.org/id/london-borough-council/ealing,CHILDREN & ADULTS,1,SAFEGUARDING & SUPPORT - CIC,ELIGIBLE CHILDREN ACCOMMODATION,4281,,10/01/2023,23271690,269.95,200226,REDACTED SENSITIVE SUPPLIER
INSERTED DETAIL,,Ealing Council,http://opendatacommunities.org/id/london-borough-council/ealing,CHILDREN & ADULTS,1,SAFEGUARDING & SUPPORT - CIC,ELIGIBLE CHILDREN ACCOMMODATION,4281,,10/01/2023,23271690,269.95,200226,REDACTED SENSITIVE SUPPLIER
INSERTED DETAIL,,Ealing Council,http://opendatacommunities.org/id/london-borough-council/ealing,CHILDREN & ADULTS,1,SAFEGUARDING & SUPPORT - CIC,ELIGIBLE CHILDREN ACCOMMODATION,4281,,24/01/2023,23274775,269.95,200226,REDACTED SENSITIVE SUPPLIER
INSERTED DETAIL,,Ealing Council,http://opendatacommunities.org/id/london-borough-council/ealing,CHILDREN & ADULTS,1,SAFEGUARDING & SUPPORT - CIC,ELIGIBLE CHILDREN ACCOMMODATION,4281,,10/01/2023,23271560,269.95,200414,REDACTED SENSITIVE SUPPLIER
INSERTED DETAIL,,Ealing Council,http://opendatacommunities.org/id/london-borough-council/ealing,CHILDREN & ADULTS,1,SAFEGUARDING & SUPPORT - CIC,ELIGIBLE CHILDREN ACCOMMODATION,4281,,17/01/2023,23273359,269.95,200414,REDACTED SENSITIVE SUPPLIER
INSERTED DETAIL,,Ealing Council,http://opendatacommunities.org/id/london-borough-council/ealing,CHILDREN & ADULTS,1,SAFEGUARDING & SUPPORT - CIC,ELIGIBLE CHILDREN ACCOMMODATION,4281,,24/01/2023,23274646,269.95,200414,REDACTED SENSITIVE SUPPLIER
INSERTED DETAIL,,Ealing Council,http://opendatacommunities.org/id/london-borough-council/ealing,CHILDREN & ADULTS,1,SAFEGUARDING & SUPPORT - CIC,ELIGIBLE CHILDREN ACCOMMODATION,4281,,03/01/2023,23269337,269.95,200414,REDACTED SENSITIVE SUPPLIER
INSERTED DETAIL,,Ealing Council,http://opendatacommunities.org/id/london-borough-council/ealing,CHILDREN & ADULTS,1,SAFEGUARDING & SUPPORT - CIC,ELIGIBLE CHILDREN OTHER COSTS,4282,,17/01/2023,23273394,390,200533,REDACTED SENSITIVE SUPPLIER
INSERTED DETAIL,,Ealing Council,http://opendatacommunities.org/id/london-borough-council/ealing,CHILDREN & ADULTS,1,SAFEGUARDING & SUPPORT - CIC,ELIGIBLE CHILDREN ACCOMMODATION,4281,,11/01/2023,23271861,885.72,19820,HESTIA ENTERPRISES LTD-T/A HIGHER LEVEL CARE
INSERTED DETAIL,,Ealing Council,http://opendatacommunities.org/id/london-borough-council/ealing,CHILDREN & ADULTS,1,SAFEGUARDING & SUPPORT - CIC,ELIGIBLE CHILDREN ACCOMMODATION,4281,,11/01/2023,23271843,442.85,29468,EXPLORE INDEPENDENCE LTD
INSERTED DETAIL,,Ealing Council,http://opendatacommunities.org/id/london-borough-council/ealing,CHILDREN & ADULTS,1,SAFEGUARDING & SUPPORT - CIC,ELIGIBLE CHILDREN ACCOMMODATION,4281,,11/01/2023,23271843,442.85,29468,EXPLORE INDEPENDENCE LTD
INSERTED DETAIL,,Ealing Council,http://opendatacommunities.org/id/london-borough-council/ealing,CHILDREN & ADULTS,1,SAFEGUARDING & SUPPORT - CIC,ELIGIBLE CHILDREN ACCOMMODATION,4281,,11/01/2023,23271843,270.37,29468,EXPLORE INDEPENDENCE LTD
INSERTED DETAIL,,Ealing Council,http://opendatacommunities.org/id/london-borough-council/ealing,CHILDREN & ADULTS,1,SAFEGUARDING & SUPPORT - CIC,ELIGIBLE CHILDREN ACCOMMODATION,4281,,11/01/2023,23271843,885.72,29468,EXPLORE INDEPENDENCE LTD
INSERTED DETAIL,,Ealing Council,http://opendatacommunities.org/id/london-borough-council/ealing,CHILDREN & ADULTS,1,SAFEGUARDING & SUPPORT - CIC,RESIDENTIAL HOMES EXTERNAL,4220,,11/01/2023,23271804,15455.72,29500,SURECARE RESIDENTIAL LTD T/A WHITE TREES GROUP
INSERTED DETAIL,,Ealing Council,http://opendatacommunities.org/id/london-borough-council/ealing,CHILDREN & ADULTS,1,SAFEGUARDING & SUPPORT - CIC,RESIDENTIAL HOMES EXTERNAL,4220,,11/01/2023,23271813,14127.15,29500,SURECARE RESIDENTIAL LTD T/A WHITE TREES GROUP
INSERTED DETAIL,,Ealing Council,http://opendatacommunities.org/id/london-borough-council/ealing,CHILDREN & ADULTS,1,SAFEGUARDING & SUPPORT - CIC,ELIGIBLE CHILDREN OTHER COSTS,4282,,11/01/2023,23271804,4428.57,29500,SURECARE RESIDENTIAL LTD T/A WHITE TREES GROUP
INSERTED DETAIL,,Ealing Council,http://opendatacommunities.org/id/london-borough-council/ealing,CHILDREN & ADULTS,1,SAFEGUARDING & SUPPORT - CIC,ELIGIBLE CHILDREN OTHER COSTS,4282,,11/01/2023,23271813,4428.57,29500,SURECARE RESIDENTIAL LTD T/A WHITE TREES GROUP
INSERTED DETAIL,,Ealing Council,http://opendatacommunities.org/id/london-borough-council/ealing,CHILDREN & ADULTS,1,SAFEGUARDING & SUPPORT - CIC,ELIGIBLE CHILDREN ACCOMMODATION,4281,,28/12/2022,23271921,3321.43,29670,UK HAPPY CARE LTD
INSERTED DETAIL,,Ealing Council,http://opendatacommunities.org/id/london-borough-council/ealing,CHILDREN & ADULTS,1,SAFEGUARDING & SUPPORT - CIC,ELIGIBLE CHILDREN ACCOMMODATION,4281,,28/12/2022,23271921,771.43,29670,UK HAPPY CARE LTD
INSERTED DETAIL,,Ealing Council,http://opendatacommunities.org/id/london-borough-council/ealing,CHILDREN & ADULTS,1,SAFEGUARDING & SUPPORT - CIC,ELIGIBLE CHILDREN ACCOMMODATION,4281,,28/12/2022,23271921,282.86,29670,UK HAPPY CARE LTD
INSERTED DETAIL,,Ealing Council,http://opendatacommunities.org/id/london-borough-council/ealing,CHILDREN & ADULTS,1,SAFEGUARDING & SUPPORT - CIC,ELIGIBLE CHILDREN ACCOMMODATION,4281,,28/12/2022,23271921,270.37,29670,UK HAPPY CARE LTD
INSERTED DETAIL,,Ealing Council,http://opendatacommunities.org/id/london-borough-council/ealing,CHILDREN & ADULTS,1,SAFEGUARDING & SUPPORT - CIC,ELIGIBLE CHILDREN ACCOMMODATION,4281,,28/12/2022,23271921,3321.42,29670,UK HAPPY CARE LTD
INSERTED DETAIL,,Ealing Council,http://opendatacommunities.org/id/london-borough-council/ealing,CHILDREN & ADULTS,1,SAFEGUARDING & SUPPORT - CIC,ELIGIBLE CHILDREN ACCOMMODATION,4281,,28/12/2022,23271921,1328.57,29670,UK HAPPY CARE LTD
INSERTED DETAIL,,Ealing Council,http://opendatacommunities.org/id/london-borough-council/ealing,CHILDREN & ADULTS,1,SAFEGUARDING & SUPPORT - CIC,ELIGIBLE CHILDREN ACCOMMODATION,4281,,28/12/2022,23271921,270.37,29670,UK HAPPY CARE LTD
INSERTED DETAIL,,Ealing Council,http://opendatacommunities.org/id/london-borough-council/ealing,CHILDREN & ADULTS,1,SAFEGUARDING & SUPPORT - CIC,ELIGIBLE CHILDREN ACCOMMODATION,4281,,28/12/2022,23271921,3542.85,29670,UK HAPPY CARE LTD
INSERTED DETAIL,,Ealing Council,http://opendatacommunities.org/id/london-borough-council/ealing,CHILDREN & ADULTS,1,SAFEGUARDING & SUPPORT - CIC,ELIGIBLE CHILDREN ACCOMMODATION,4281,,11/01/2023,23271871,1372.85,29865,RAYNET RECRUITMENT AGENCY LTD T/A RAYNET CARE
INSERTED DETAIL,,Ealing Council,http://opendatacommunities.org/id/london-borough-council/ealing,CHILDREN & ADULTS,1,SAFEGUARDING & SUPPORT - CIC,ELIGIBLE CHILDREN ACCOMMODATION,4281,,11/01/2023,23271871,376.43,29865,RAYNET RECRUITMENT AGENCY LTD T/A RAYNET CARE
INSERTED DETAIL,,Ealing Council,http://opendatacommunities.org/id/london-borough-council/ealing,CHILDREN & ADULTS,1,SAFEGUARDING & SUPPORT - CIC,ELIGIBLE CHILDREN ACCOMMODATION,4281,,11/01/2023,23271871,1279.85,29865,RAYNET RECRUITMENT AGENCY LTD T/A RAYNET CARE
INSERTED DETAIL,,Ealing Council,http://opendatacommunities.org/id/london-borough-council/ealing,CHILDREN & ADULTS,1,SAFEGUARDING & SUPPORT - CIC,INDEPENDENT FOSTERING,4221,,11/01/2023,23271793,3197.43,28534,FOSTERING INNOVATIONS LTD
INSERTED DETAIL,,Ealing Council,http://opendatacommunities.org/id/london-borough-council/ealing,CHILDREN & ADULTS,1,SAFEGUARDING & SUPPORT - CIC,INDEPENDENT FOSTERING,4221,,11/01/2023,23271793,3197.43,28534,FOSTERING INNOVATIONS LTD
INSERTED DETAIL,,Ealing Council,http://opendatacommunities.org/id/london-borough-council/ealing,CHILDREN & ADULTS,1,SAFEGUARDING & SUPPORT - CIC,RESIDENTIAL HOMES EXTERNAL,4220,,11/01/2023,23271798,9963.88,29021,NEXUS PROGRAMME LTD
INSERTED DETAIL,,Ealing Council,http://opendatacommunities.org/id/london-borough-council/ealing,CHILDREN & ADULTS,1,SAFEGUARDING & SUPPORT - CIC,ELIGIBLE CHILDREN ACCOMMODATION,4281,,11/01/2023,23271837,2170,29209,KINGSLEY SUPPORTED LIVING LTD
INSERTED DETAIL,,Ealing Council,http://opendatacommunities.org/id/london-borough-council/ealing,CHILDREN & ADULTS,1,SAFEGUARDING & SUPPORT - CIC,ELIGIBLE CHILDREN ACCOMMODATION,4281,,11/01/2023,23271837,442.85,29209,KINGSLEY SUPPORTED LIVING LTD
INSERTED DETAIL,,Ealing Council,http://opendatacommunities.org/id/london-borough-council/ealing,CHILDREN & ADULTS,1,SAFEGUARDING & SUPPORT - CIC,RESIDENTIAL HOMES EXTERNAL,4220,,11/01/2023,23271799,17182.85,29254,RAISE HOUSE LTD T/A RAISE HOUSE RESIDENTIAL CHILDRENS HOME
INSERTED DETAIL,,Ealing Council,http://opendatacommunities.org/id/london-borough-council/ealing,CHILDREN & ADULTS,1,SAFEGUARDING & SUPPORT - CIC,RESIDENTIAL HOMES EXTERNAL,4220,,11/01/2023,23271802,3651.35,29478,HALLIWELL HOMES (MIDLAND DIVISION) LTD
INSERTED DETAIL,,Ealing Council,http://opendatacommunities.org/id/london-borough-council/ealing,CHILDREN & ADULTS,1,SAFEGUARDING & SUPPORT - CIC,RESIDENTIAL HOMES EXTERNAL,4220,,11/01/2023,23271802,16710.33,29478,HALLIWELL HOMES (MIDLAND DIVISION) LTD
INSERTED DETAIL,,Ealing Council,http://opendatacommunities.org/id/london-borough-council/ealing,CHILDREN & ADULTS,1,SAFEGUARDING & SUPPORT - CIC,ELIGIBLE CHILDREN OTHER COSTS,4282,,11/01/2023,23271841,2362.65,29478,HALLIWELL HOMES (MIDLAND DIVISION) LTD
INSERTED DETAIL,,Ealing Council,http://opendatacommunities.org/id/london-borough-council/ealing,CHILDREN & ADULTS,1,SAFEGUARDING & SUPPORT - CIC,ELIGIBLE CHILDREN ACCOMMODATION,4281,,11/01/2023,23271857,553.57,29710,CHARIS MC LTD
INSERTED DETAIL,,Ealing Council,http://opendatacommunities.org/id/london-borough-council/ealing,CHILDREN & ADULTS,1,SAFEGUARDING & SUPPORT - CIC,ELIGIBLE CHILDREN ACCOMMODATION,4281,,11/01/2023,23271857,1660.72,29710,CHARIS MC LTD
INSERTED DETAIL,,Ealing Council,http://opendatacommunities.org/id/london-borough-council/ealing,CHILDREN & ADULTS,1,SAFEGUARDING & SUPPORT - CIC,ELIGIBLE CHILDREN ACCOMMODATION,4281,,11/01/2023,23271870,3104.43,29848,DARETHEALTHCARE UK LTD
INSERTED DETAIL,,Ealing Council,http://opendatacommunities.org/id/london-borough-council/ealing,CHILDREN & ADULTS,1,DISABILITIES,RESIDENTIAL HOMES EXTERNAL,4220,,05/01/2023,23270118,416.4,24152,SOLUTIONS SOCIAL CARE LIMITED
INSERTED DETAIL,,Ealing Council,http://opendatacommunities.org/id/london-borough-council/ealing,CHILDREN & ADULTS,1,DISABILITIES,RESIDENTIAL HOMES EXTERNAL,4220,,05/01/2023,23270118,4326.32,24152,SOLUTIONS SOCIAL CARE LIMITED
INSERTED DETAIL,,Ealing Council,http://opendatacommunities.org/id/london-borough-council/ealing,CHILDREN & ADULTS,1,DISABILITIES,RESIDENTIAL HOMES EXTERNAL,4220,,05/01/2023,23270118,526.2,24152,SOLUTIONS SOCIAL CARE LIMITED
INSERTED DETAIL,,Ealing Council,http://opendatacommunities.org/id/london-borough-council/ealing,CHILDREN & ADULTS,1,DISABILITIES,RESIDENTIAL HOMES EXTERNAL,4220,,05/01/2023,23270118,569.92,24152,SOLUTIONS SOCIAL CARE LIMITED
INSERTED DETAIL,,Ealing Council,http://opendatacommunities.org/id/london-borough-council/ealing,CHILDREN & ADULTS,1,DISABILITIES,DOMICILIARY CARE - BLOCK,4240,,04/01/2023,23269944,2368.8,25437,AMBER HOME CARERS LTD - T/A AMBER HOME CARERS
INSERTED DETAIL,,Ealing Council,http://opendatacommunities.org/id/london-borough-council/ealing,CHILDREN & ADULTS,1,DISABILITIES,DOMICILIARY CARE - BLOCK,4240,,04/01/2023,23269944,2500.4,25437,AMBER HOME CARERS LTD - T/A AMBER HOME CARERS
INSERTED DETAIL,,Ealing Council,http://opendatacommunities.org/id/london-borough-council/ealing,CHILDREN & ADULTS,1,DISABILITIES,DOMICILIARY CARE - BLOCK,4240,,04/01/2023,23269944,733.04,25437,AMBER HOME CARERS LTD - T/A AMBER HOME CARERS
INSERTED DETAIL,,Ealing Council,http://opendatacommunities.org/id/london-borough-council/ealing,CHILDREN & ADULTS,1,DISABILITIES,DOMICILIARY CARE - BLOCK,4240,,30/01/2023,23281068,2500.4,25437,AMBER HOME CARERS LTD - T/A AMBER HOME CARERS
INSERTED DETAIL,,Ealing Council,http://opendatacommunities.org/id/london-borough-council/ealing,CHILDREN & ADULTS,1,DISABILITIES,RESIDENTIAL HOMES EXTERNAL,4220,,05/01/2023,23270004,2960,27988,QUANTUM CARE LIMITED
INSERTED DETAIL,,Ealing Council,http://opendatacommunities.org/id/london-borough-council/ealing,CHILDREN & ADULTS,1,DISABILITIES,RESIDENTIAL HOMES EXTERNAL,4220,,01/01/2023,23272707,6730.56,28040,ASHINGHAM HOUSE LTD
INSERTED DETAIL,,Ealing Council,http://opendatacommunities.org/id/london-borough-council/ealing,CHILDREN & ADULTS,1,DISABILITIES,RESIDENTIAL HOMES EXTERNAL,4220,,05/01/2023,23270236,4144,28298,CARE PLUS MORE LTD
INSERTED DETAIL,,Ealing Council,http://opendatacommunities.org/id/london-borough-council/ealing,CHILDREN & ADULTS,1,DISABILITIES,RESIDENTIAL HOMES EXTERNAL,4220,,05/01/2023,23270294,3626,28298,CARE PLUS MORE LTD
INSERTED DETAIL,,Ealing Council,http://opendatacommunities.org/id/london-borough-council/ealing,CHILDREN & ADULTS,1,DISABILITIES,SUPPORTED LIVING,4236,,05/01/2023,23270236,2762.08,28298,CARE PLUS MORE LTD
INSERTED DETAIL,,Ealing Council,http://opendatacommunities.org/id/london-borough-council/ealing,CHILDREN & ADULTS,1,DISABILITIES,SUPPORTED LIVING,4236,,05/01/2023,23270294,3069.36,28298,CARE PLUS MORE LTD
INSERTED DETAIL,,Ealing Council,http://opendatacommunities.org/id/london-borough-council/ealing,CHILDREN & ADULTS,1,DISABILITIES,RESIDENTIAL HOMES EXTERNAL,4220,,05/01/2023,23270267,2856,28839,ABS UK LTD T/A LOTUS COMMUNITY CARE SERVICES
INSERTED DETAIL,,Ealing Council,http://opendatacommunities.org/id/london-borough-council/ealing,CHILDREN & ADULTS,1,DISABILITIES,SUPPORTED LIVING,4236,,05/01/2023,23270267,2560,28839,ABS UK LTD T/A LOTUS COMMUNITY CARE SERVICES
INSERTED DETAIL,,Ealing Council,http://opendatacommunities.org/id/london-borough-council/ealing,CHILDREN & ADULTS,1,DISABILITIES,RESIDENTIAL HOMES EXTERNAL,4220,,05/01/2023,23270309,980,28881,INNOVATIVE SUPPORT LTD
INSERTED DETAIL,,Ealing Council,http://opendatacommunities.org/id/london-borough-council/ealing,CHILDREN & ADULTS,1,DISABILITIES,SUPPORTED LIVING,4236,,05/01/2023,23270309,3362,28881,INNOVATIVE SUPPORT LTD
INSERTED DETAIL,,Ealing Council,http://opendatacommunities.org/id/london-borough-council/ealing,CHILDREN & ADULTS,1,DISABILITIES,DOMICILIARY CARE - BLOCK,4240,,09/01/2023,23271947,361,29187,PREMIUM HOMECARE LTD
INSERTED DETAIL,,Ealing Council,http://opendatacommunities.org/id/london-borough-council/ealing,CHILDREN & ADULTS,1,DISABILITIES,DOMICILIARY CARE - BLOCK,4240,,09/01/2023,23271941,370.6,29243,PARAMOUNT OPTIONS LTD
INSERTED DETAIL,,Ealing Council,http://opendatacommunities.org/id/london-borough-council/ealing,CHILDREN & ADULTS,1,DISABILITIES,RESIDENTIAL HOMES EXTERNAL,4220,,05/01/2023,23270353,6251.52,29812,RICHARDSON GROVE LIMITED
INSERTED DETAIL,,Ealing Council,http://opendatacommunities.org/id/london-borough-council/ealing,CHILDREN & ADULTS,1,DISABILITIES,RESIDENTIAL HOMES EXTERNAL,4220,,05/01/2023,23270353,4677.16,29812,RICHARDSON GROVE LIMITED
INSERTED DETAIL,,Ealing Council,http://opendatacommunities.org/id/london-borough-council/ealing,CHILDREN & ADULTS,1,DISABILITIES,RESIDENTIAL HOMES EXTERNAL-INCOME,8780,,05/01/2023,23270353,-438.8,29812,RICHARDSON GROVE LIMITED
INSERTED DETAIL,,Ealing Council,http://opendatacommunities.org/id/london-borough-council/ealing,CHILDREN & ADULTS,1,DISABILITIES,RESIDENTIAL HOMES EXTERNAL-INCOME,8780,,05/01/2023,23270353,-438.8,29812,RICHARDSON GROVE LIMITED
INSERTED DETAIL,,Ealing Council,http://opendatacommunities.org/id/london-borough-council/ealing,CHILDREN & ADULTS,1,DISABILITIES,SUPPORTED LIVING,4236,,05/01/2023,23269971,4053.24,30088,ACHIEVE TOGETHER LIMITED
INSERTED DETAIL,,Ealing Council,http://opendatacommunities.org/id/london-borough-council/ealing,CHILDREN & ADULTS,1,DISABILITIES,SUPPORTED LIVING,4236,,05/01/2023,23270331,4320.36,30088,ACHIEVE TOGETHER LIMITED
INSERTED DETAIL,,Ealing Council,http://opendatacommunities.org/id/london-borough-council/ealing,CHILDREN & ADULTS,1,DISABILITIES,SUPPORTED LIVING,4236,,05/01/2023,23270278,3467.84,30088,ACHIEVE TOGETHER LIMITED
INSERTED DETAIL,,Ealing Council,http://opendatacommunities.org/id/london-borough-council/ealing,CHILDREN & ADULTS,1,DISABILITIES,RESIDENTIAL HOMES EXTERNAL,4220,,05/01/2023,23270331,2436,30088,ACHIEVE TOGETHER LIMITED
INSERTED DETAIL,,Ealing Council,http://opendatacommunities.org/id/london-borough-council/ealing,CHILDREN & ADULTS,1,DISABILITIES,RESIDENTIAL HOMES EXTERNAL,4220,,05/01/2023,23270278,833.04,30088,ACHIEVE TOGETHER LIMITED
INSERTED DETAIL,,Ealing Council,http://opendatacommunities.org/id/london-borough-council/ealing,CHILDREN & ADULTS,1,DISABILITIES,RESIDENTIAL HOMES EXTERNAL,4220,,05/01/2023,23270141,9288.56,30088,ACHIEVE TOGETHER LIMITED
INSERTED DETAIL,,Ealing Council,http://opendatacommunities.org/id/london-borough-council/ealing,CHILDREN & ADULTS,1,DISABILITIES,RESIDENTIAL HOMES EXTERNAL,4220,,05/01/2023,23270141,6372.56,30088,ACHIEVE TOGETHER LIMITED
INSERTED DETAIL,,Ealing Council,http://opendatacommunities.org/id/london-borough-council/ealing,CHILDREN & ADULTS,1,DISABILITIES,RESIDENTIAL HOMES EXTERNAL,4220,,05/01/2023,23269971,3823.4,30088,ACHIEVE TOGETHER LIMITED
INSERTED DETAIL,,Ealing Council,http://opendatacommunities.org/id/london-borough-council/ealing,CHILDREN & ADULTS,1,DISABILITIES,RESIDENTIAL HOMES EXTERNAL,4220,,05/01/2023,23269971,5501.52,30088,ACHIEVE TOGETHER LIMITED
INSERTED DETAIL,,Ealing Council,http://opendatacommunities.org/id/london-borough-council/ealing,CHILDREN & ADULTS,1,DISABILITIES,RESIDENTIAL HOMES EXTERNAL,4220,,05/01/2023,23270060,7438.72,30088,ACHIEVE TOGETHER LIMITED
INSERTED DETAIL,,Ealing Council,http://opendatacommunities.org/id/london-borough-council/ealing,CHILDREN & ADULTS,1,DISABILITIES,RESIDENTIAL HOMES EXTERNAL-INCOME,8780,,05/01/2023,23269971,-627.8,30088,ACHIEVE TOGETHER LIMITED
INSERTED DETAIL,,Ealing Council,http://opendatacommunities.org/id/london-borough-council/ealing,CHILDREN & ADULTS,1,SAFEGUARDING & SUPP - BS &A&F,ADOPTION ALLOWANCE,4387,,03/01/2023,23269410,356.05,200820,REDACTED SENSITIVE SUPPLIER
INSERTED DETAIL,,Ealing Council,http://opendatacommunities.org/id/london-borough-council/ealing,CHILDREN & ADULTS,1,SAFEGUARDING & SUPP - BS &A&F,ADOPTION ALLOWANCE,4387,,03/01/2023,23269410,348.95,200820,REDACTED SENSITIVE SUPPLIER
INSERTED DETAIL,,Ealing Council,http://opendatacommunities.org/id/london-borough-council/ealing,CHILDREN & ADULTS,1,SAFEGUARDING & SUPP - BS &A&F,ADOPTION ALLOWANCE,4387,,03/01/2023,23269410,356.05,200820,REDACTED SENSITIVE SUPPLIER
INSERTED DETAIL,,Ealing Council,http://opendatacommunities.org/id/london-borough-council/ealing,CHILDREN & ADULTS,1,SAFEGUARDING & SUPP - BS &A&F,ADOPTION ALLOWANCE,4387,,10/01/2023,23271633,356.05,200820,REDACTED SENSITIVE SUPPLIER
INSERTED DETAIL,,Ealing Council,http://opendatacommunities.org/id/london-borough-council/ealing,CHILDREN & ADULTS,1,SAFEGUARDING & SUPP - BS &A&F,ADOPTION ALLOWANCE,4387,,10/01/2023,23271633,348.95,200820,REDACTED SENSITIVE SUPPLIER
INSERTED DETAIL,,Ealing Council,http://opendatacommunities.org/id/london-borough-council/ealing,CHILDREN & ADULTS,1,SAFEGUARDING & SUPP - BS &A&F,ADOPTION ALLOWANCE,4387,,10/01/2023,23271633,356.05,200820,REDACTED SENSITIVE SUPPLIER
INSERTED DETAIL,,Ealing Council,http://opendatacommunities.org/id/london-borough-council/ealing,CHILDREN & ADULTS,1,SAFEGUARDING & SUPP - BS &A&F,ADOPTION ALLOWANCE,4387,,17/01/2023,23273432,348.95,200820,REDACTED SENSITIVE SUPPLIER
INSERTED DETAIL,,Ealing Council,http://opendatacommunities.org/id/london-borough-council/ealing,CHILDREN & ADULTS,1,SAFEGUARDING & SUPP - BS &A&F,ADOPTION ALLOWANCE,4387,,17/01/2023,23273432,356.05,200820,REDACTED SENSITIVE SUPPLIER
INSERTED DETAIL,,Ealing Council,http://opendatacommunities.org/id/london-borough-council/ealing,CHILDREN & ADULTS,1,SAFEGUARDING & SUPP - BS &A&F,ADOPTION ALLOWANCE,4387,,17/01/2023,23273432,356.05,200820,REDACTED SENSITIVE SUPPLIER
INSERTED DETAIL,,Ealing Council,http://opendatacommunities.org/id/london-borough-council/ealing,CHILDREN & ADULTS,1,SAFEGUARDING & SUPP - BS &A&F,ADOPTION ALLOWANCE,4387,,24/01/2023,23274718,348.95,200820,REDACTED SENSITIVE SUPPLIER
INSERTED DETAIL,,Ealing Council,http://opendatacommunities.org/id/london-borough-council/ealing,CHILDREN & ADULTS,1,SAFEGUARDING & SUPP - BS &A&F,ADOPTION ALLOWANCE,4387,,24/01/2023,23274718,356.05,200820,REDACTED SENSITIVE SUPPLIER
INSERTED DETAIL,,Ealing Council,http://opendatacommunities.org/id/london-borough-council/ealing,CHILDREN & ADULTS,1,SAFEGUARDING & SUPP - BS &A&F,SPECIAL GUARDIANSHIP ALLOWANCE,4663,,10/01/2023,23271450,3352.21,200388,REDACTED SENSITIVE SUPPLIER
INSERTED DETAIL,,Ealing Council,http://opendatacommunities.org/id/london-borough-council/ealing,CHILDREN & ADULTS,1,SAFEGUARDING & SUPP - BS &A&F,SPECIAL GUARDIANSHIP ALLOWANCE,4663,,10/01/2023,23271585,426.3,200871,REDACTED SENSITIVE SUPPLIER
INSERTED DETAIL,,Ealing Council,http://opendatacommunities.org/id/london-borough-council/ealing,CHILDREN & ADULTS,1,SAFEGUARDING & SUPP - BS &A&F,SPECIAL GUARDIANSHIP ALLOWANCE,4663,,10/01/2023,23271585,426.3,200871,REDACTED SENSITIVE SUPPLIER
INSERTED DETAIL,,Ealing Council,http://opendatacommunities.org/id/london-borough-council/ealing,CHILDREN & ADULTS,1,SAFEGUARDING & SUPP - BS &A&F,SPECIAL GUARDIANSHIP ALLOWANCE,4663,,03/01/2023,23269362,426.3,200871,REDACTED SENSITIVE SUPPLIER
INSERTED DETAIL,,Ealing Council,http://opendatacommunities.org/id/london-borough-council/ealing,CHILDREN & ADULTS,1,SAFEGUARDING & SUPP - BS &A&F,SPECIAL GUARDIANSHIP ALLOWANCE,4663,,03/01/2023,23269362,426.3,200871,REDACTED SENSITIVE SUPPLIER
INSERTED DETAIL,,Ealing Council,http://opendatacommunities.org/id/london-borough-council/ealing,CHILDREN & ADULTS,1,SAFEGUARDING & SUPP - BS &A&F,SPECIAL GUARDIANSHIP ALLOWANCE,4663,,17/01/2023,23273385,426.3,200871,REDACTED SENSITIVE SUPPLIER
INSERTED DETAIL,,Ealing Council,http://opendatacommunities.org/id/london-borough-council/ealing,CHILDREN & ADULTS,1,SAFEGUARDING & SUPP - BS &A&F,SPECIAL GUARDIANSHIP ALLOWANCE,4663,,17/01/2023,23273385,426.3,200871,REDACTED SENSITIVE SUPPLIER
INSERTED DETAIL,,Ealing Council,http://opendatacommunities.org/id/london-borough-council/ealing,CHILDREN & ADULTS,1,SAFEGUARDING & SUPP - BS &A&F,SPECIAL GUARDIANSHIP ALLOWANCE,4663,,24/01/2023,23274671,426.3,200871,REDACTED SENSITIVE SUPPLIER
INSERTED DETAIL,,Ealing Council,http://opendatacommunities.org/id/london-borough-council/ealing,CHILDREN & ADULTS,1,SAFEGUARDING & SUPP - BS &A&F,SPECIAL GUARDIANSHIP ALLOWANCE,4663,,24/01/2023,23274671,426.3,200871,REDACTED SENSITIVE SUPPLIER
INSERTED DETAIL,,Ealing Council,http://opendatacommunities.org/id/london-borough-council/ealing,CHILDREN & ADULTS,1,SAFEGUARDING & SUPP - BS &A&F,SPECIAL GUARDIANSHIP ALLOWANCE,4663,,24/01/2023,23274473,350,200012,REDACTED SENSITIVE SUPPLIER
INSERTED DETAIL,,Ealing Council,http://opendatacommunities.org/id/london-borough-council/ealing,CHILDREN & ADULTS,1,SAFEGUARDING & SUPP - BS &A&F,SPECIAL GUARDIANSHIP ALLOWANCE,4663,,24/01/2023,23274473,350,200012,REDACTED SENSITIVE SUPPLIER
INSERTED DETAIL,,Ealing Council,http://opendatacommunities.org/id/london-borough-council/ealing,CHILDREN & ADULTS,1,SAFEGUARDING & SUPP - BS &A&F,ADOPTION ALLOWANCE,4387,,03/01/2023,23269296,284.69,200127,REDACTED SENSITIVE SUPPLIER
INSERTED DETAIL,,Ealing Council,http://opendatacommunities.org/id/london-borough-council/ealing,CHILDREN & ADULTS,1,SAFEGUARDING & SUPP - BS &A&F,ADOPTION ALLOWANCE,4387,,10/01/2023,23271518,284.69,200127,REDACTED SENSITIVE SUPPLIER
INSERTED DETAIL,,Ealing Council,http://opendatacommunities.org/id/london-borough-council/ealing,CHILDREN & ADULTS,1,SAFEGUARDING & SUPP - BS &A&F,ADOPTION ALLOWANCE,4387,,17/01/2023,23273318,284.69,200127,REDACTED SENSITIVE SUPPLIER
INSERTED DETAIL,,Ealing Council,http://opendatacommunities.org/id/london-borough-council/ealing,CHILDREN & ADULTS,1,SAFEGUARDING & SUPP - BS &A&F,ADOPTION ALLOWANCE,4387,,24/01/2023,23274606,284.69,200127,REDACTED SENSITIVE SUPPLIER
INSERTED DETAIL,,Ealing Council,http://opendatacommunities.org/id/london-borough-council/ealing,CHILDREN & ADULTS,1,SAFEGUARDING & SUPP - BS &A&F,ADOPTION ALLOWANCE,4387,,24/01/2023,23274570,322.99,200728,REDACTED SENSITIVE SUPPLIER
INSERTED DETAIL,,Ealing Council,http://opendatacommunities.org/id/london-borough-council/ealing,PLACE,6,STREET SERVICES,PAYMENTS TO CONTRACTORS,4000,,20/01/2023,41045066,83452.85,28826,GREENER EALING LIMITED
INSERTED DETAIL,,Ealing Council,http://opendatacommunities.org/id/london-borough-council/ealing,PLACE,6,HIGHWAYS,SPECIALIST TECHNICAL CONTRACTORS,4050,,04/01/2023,41046017,8591.5,26582,WSP UK LTD T/A WSP PARSONS BRINCKERHOFF
INSERTED DETAIL,,Ealing Council,http://opendatacommunities.org/id/london-borough-council/ealing,PLACE,6,LEISURE,GROUNDS MAINTENANCE,1470,,09/01/2023,41046566,749.63,15845,ENGLISH WOODLANDS
INSERTED DETAIL,,Ealing Council,http://opendatacommunities.org/id/london-borough-council/ealing,PLACE,6,LEISURE,FENCING,1472,,15/12/2022,41044324,3203.91,11538,DRAYTON FENCING COMPANY
INSERTED DETAIL,,Ealing Council,http://opendatacommunities.org/id/london-borough-council/ealing,CHILDREN & ADULTS,1,OLDER PEOPLE,SPECIALIST TECHNICAL CONTRACTORS,4050,,01/09/2022,41038690,3500,29912,IMPERIUM RESOURCING LTD
INSERTED DETAIL,,Ealing Council,http://opendatacommunities.org/id/london-borough-council/ealing,CHILDREN & ADULTS,1,OLDER PEOPLE,SPECIALIST TECHNICAL CONTRACTORS,4050,,21/09/2022,41038692,2750,29912,IMPERIUM RESOURCING LTD
INSERTED DETAIL,,Ealing Council,http://opendatacommunities.org/id/london-borough-council/ealing,CHILDREN & ADULTS,1,OLDER PEOPLE,MEDICAL REPORTS,2560,,01/09/2022,41038690,4475,29912,IMPERIUM RESOURCING LTD
INSERTED DETAIL,,Ealing Council,http://opendatacommunities.org/id/london-borough-council/ealing,CHILDREN & ADULTS,1,OLDER PEOPLE,MEDICAL REPORTS,2560,,21/09/2022,41038692,3575,29912,IMPERIUM RESOURCING LTD
INSERTED DETAIL,,Ealing Council,http://opendatacommunities.org/id/london-borough-council/ealing,CHILDREN & ADULTS,1,OLDER PEOPLE,SPECIALIST TECHNICAL CONTRACTORS,4050,,01/01/2023,41045982,1212.5,28927,LIBRA PARTNERSHIP LTD
INSERTED DETAIL,,Ealing Council,http://opendatacommunities.org/id/london-borough-council/ealing,CHILDREN & ADULTS,1,OLDER PEOPLE,MEDICAL REPORTS,2560,,14/12/2022,41044326,4125,26801,HOJONA LTD
INSERTED DETAIL,,Ealing Council,http://opendatacommunities.org/id/london-borough-council/ealing,CHILDREN & ADULTS,1,OLDER PEOPLE,MEDICAL REPORTS,2560,,11/01/2023,41046636,3850,26801,HOJONA LTD
INSERTED DETAIL,,Ealing Council,http://opendatacommunities.org/id/london-borough-council/ealing,CHILDREN & ADULTS,1,OLDER PEOPLE,MEDICAL REPORTS,2560,,21/12/2022,41045110,3575,26801,HOJONA LTD
INSERTED DETAIL,,Ealing Council,http://opendatacommunities.org/id/london-borough-council/ealing,CHILDREN & ADULTS,1,OLDER PEOPLE,MEDICAL REPORTS,2560,,31/08/2022,41048352,2200,26801,HOJONA LTD
INSERTED DETAIL,,Ealing Council,http://opendatacommunities.org/id/london-borough-council/ealing,CHILDREN & ADULTS,1,OLDER PEOPLE,MEDICAL REPORTS,2560,,18/01/2023,41048121,4400,26801,HOJONA LTD
INSERTED DETAIL,,Ealing Council,http://opendatacommunities.org/id/london-borough-council/ealing,CHILDREN & ADULTS,1,OLDER PEOPLE,PAYMENTS TO HEALTH AUTHORITIES,4360,,11/01/2023,41046637,3850,26801,HOJONA LTD
INSERTED DETAIL,,Ealing Council,http://opendatacommunities.org/id/london-borough-council/ealing,CHILDREN & ADULTS,1,OLDER PEOPLE,PAYMENTS TO HEALTH AUTHORITIES,4360,,14/12/2022,41044328,4125,26801,HOJONA LTD
INSERTED DETAIL,,Ealing Council,http://opendatacommunities.org/id/london-borough-council/ealing,CHILDREN & ADULTS,1,OLDER PEOPLE,PAYMENTS TO HEALTH AUTHORITIES,4360,,18/01/2023,41048114,4400,26801,HOJONA LTD
INSERTED DETAIL,,Ealing Council,http://opendatacommunities.org/id/london-borough-council/ealing,CHILDREN & ADULTS,1,OLDER PEOPLE,PAYMENTS TO HEALTH AUTHORITIES,4360,,31/08/2022,41048353,1925,26801,HOJONA LTD
INSERTED DETAIL,,Ealing Council,http://opendatacommunities.org/id/london-borough-council/ealing,CHILDREN & ADULTS,1,OLDER PEOPLE,PAYMENTS TO HEALTH AUTHORITIES,4360,,21/12/2022,41045109,3575,26801,HOJONA LTD
INSERTED DETAIL,,Ealing Council,http://opendatacommunities.org/id/london-borough-council/ealing,CHILDREN & ADULTS,1,OLDER PEOPLE,PAYMENTS TO HEALTH AUTHORITIES,4360,,11/01/2023,41046645,4370,28801,ACTION FIRST ASSESSMENTS LTD
INSERTED DETAIL,,Ealing Council,http://opendatacommunities.org/id/london-borough-council/ealing,CHILDREN & ADULTS,1,OLDER PEOPLE,MEDICAL REPORTS,2560,,11/01/2023,41046644,4800,28801,ACTION FIRST ASSESSMENTS LTD
INSERTED DETAIL,,Ealing Council,http://opendatacommunities.org/id/london-borough-council/ealing,CHILDREN & ADULTS,1,SAFEGUARDING & SUPPORT - CIN,SECTION 17 INTENTIONALLY HOMELESS FROM HOUSING,4299,,01/12/2022,41045763,550,25773,SD BUILDERS LIMITED
INSERTED DETAIL,,Ealing Council,http://opendatacommunities.org/id/london-borough-council/ealing,CHILDREN & ADULTS,1,SAFEGUARDING & SUPPORT - CIN,SECTION 17 INTENTIONALLY HOMELESS FROM HOUSING,4299,,16/11/2022,41045833,550,27916,MIDLAND RELOCATION LTD
INSERTED DETAIL,,Ealing Council,http://opendatacommunities.org/id/london-borough-council/ealing,CHILDREN & ADULTS,1,SAFEGUARDING & SUPPORT - CIN,SECTION 17 INTENTIONALLY HOMELESS FROM HOUSING,4299,,04/01/2023,41046888,450,27916,MIDLAND RELOCATION LTD
INSERTED DETAIL,,Ealing Council,http://opendatacommunities.org/id/london-borough-council/ealing,CHILDREN & ADULTS,1,SAFEGUARDING & SUPPORT - CIN,SECTION 17 INTENTIONALLY HOMELESS FROM HOUSING,4299,,28/11/2022,41047417,1600,10000005,GALAXY REAL ESTATE LIMITED T/A GALAXY REAL ESTATE
INSERTED DETAIL,,Ealing Council,http://opendatacommunities.org/id/london-borough-council/ealing,CHILDREN & ADULTS,1,SAFEGUARDING & SUPPORT - CIN,SECTION 17 INTENTIONALLY HOMELESS FROM HOUSING,4299,,20/01/2023,41047309,1900,9900014,STAR PLUS ESTATE AGENTS AND PROPERTY MANAGEMENT UK LTD
INSERTED DETAIL,,Ealing Council,http://opendatacommunities.org/id/london-borough-council/ealing,CHILDREN & ADULTS,1,SAFEGUARDING & SUPPORT - CIN,SECTION 17 INTENTIONALLY HOMELESS FROM HOUSING,4299,,31/10/2022,41046791,390,12426,HS BIRK T/A ROSEWOOD PARK PROPERTY & MANAGEMENT LTD
INSERTED DETAIL,,Ealing Council,http://opendatacommunities.org/id/london-borough-council/ealing,CHILDREN & ADULTS,1,SAFEGUARDING & SUPPORT - CIN,SECTION 17 INTENTIONALLY HOMELESS FROM HOUSING,4299,,30/11/2022,41046794,2340,12426,HS BIRK T/A ROSEWOOD PARK PROPERTY & MANAGEMENT LTD
INSERTED DETAIL,,Ealing Council,http://opendatacommunities.org/id/london-borough-council/ealing,CHILDREN & ADULTS,1,SAFEGUARDING & SUPPORT - CIN,SECTION 17 INTENTIONALLY HOMELESS FROM HOUSING,4299,,31/12/2022,41046796,2418,12426,HS BIRK T/A ROSEWOOD PARK PROPERTY & MANAGEMENT LTD
INSERTED DETAIL,,Ealing Council,http://opendatacommunities.org/id/london-borough-council/ealing,CHILDREN & ADULTS,1,EALING SERVICE FOR CHILDREN WITH ADDITIONAL NEEDS,RESIDENTIAL HOMES EXTERNAL,4220,,11/01/2023,23271757,22318.19,24301,THE CHILDRENS TRUST
INSERTED DETAIL,,Ealing Council,http://opendatacommunities.org/id/london-borough-council/ealing,CHILDREN & ADULTS,1,PERFORMANCE & TRAINING,TRAINING EXPENSES,80,,19/01/2023,41048138,8500,12809,KINGS COLLEGE LONDON
INSERTED DETAIL,,Ealing Council,http://opendatacommunities.org/id/london-borough-council/ealing,CHILDREN & ADULTS,1,SAFEGUARDING & SUPPORT - CIN,SECTION 17 NRPF,4297,,30/11/2022,41044826,992.7,15654,WEST LONDON YMCA
INSERTED DETAIL,,Ealing Council,http://opendatacommunities.org/id/london-borough-council/ealing,CHILDREN & ADULTS,1,SAFEGUARDING & SUPPORT - CIN,SECTION 17 NRPF,4297,,22/12/2022,41045185,1025.79,15654,WEST LONDON YMCA
INSERTED DETAIL,,Ealing Council,http://opendatacommunities.org/id/london-borough-council/ealing,CHILDREN & ADULTS,1,SAFEGUARDING & SUPP - BS &A&F,CASH COLLECTION CHARGES,2770,,10/11/2022,41044278,650,23040,ALLPAY.NET
INSERTED DETAIL,,Ealing Council,http://opendatacommunities.org/id/london-borough-council/ealing,CHILDREN & ADULTS,1,EALING SERVICE FOR CHILDREN WITH ADDITIONAL NEEDS,DAY ACTIVITY,4666,,03/01/2023,23269538,600,28863,SEVA EDUCATION HEALTH & CARE LTD
INSERTED DETAIL,,Ealing Council,http://opendatacommunities.org/id/london-borough-council/ealing,CHILDREN & ADULTS,1,EALING SERVICE FOR CHILDREN WITH ADDITIONAL NEEDS,DAY ACTIVITY,4666,,03/01/2023,23269538,3450,28863,SEVA EDUCATION HEALTH & CARE LTD
INSERTED DETAIL,,Ealing Council,http://opendatacommunities.org/id/london-borough-council/ealing,CHILDREN & ADULTS,1,EALING SERVICE FOR CHILDREN WITH ADDITIONAL NEEDS,DAY ACTIVITY,4666,,03/01/2023,23269538,600,28863,SEVA EDUCATION HEALTH & CARE LTD
INSERTED DETAIL,,Ealing Council,http://opendatacommunities.org/id/london-borough-council/ealing,CHILDREN & ADULTS,1,EALING SERVICE FOR CHILDREN WITH ADDITIONAL NEEDS,DAY ACTIVITY,4666,,03/01/2023,23269538,600,28863,SEVA EDUCATION HEALTH & CARE LTD
INSERTED DETAIL,,Ealing Council,http://opendatacommunities.org/id/london-borough-council/ealing,CHILDREN & ADULTS,1,EALING SERVICE FOR CHILDREN WITH ADDITIONAL NEEDS,DAY ACTIVITY,4666,,03/01/2023,23269538,600,28863,SEVA EDUCATION HEALTH & CARE LTD
INSERTED DETAIL,,Ealing Council,http://opendatacommunities.org/id/london-borough-council/ealing,CHILDREN & ADULTS,1,EALING SERVICE FOR CHILDREN WITH ADDITIONAL NEEDS,DAY ACTIVITY,4666,,03/01/2023,23269538,450,28863,SEVA EDUCATION HEALTH & CARE LTD
INSERTED DETAIL,,Ealing Council,http://opendatacommunities.org/id/london-borough-council/ealing,CHILDREN & ADULTS,1,EALING SERVICE FOR CHILDREN WITH ADDITIONAL NEEDS,DAY ACTIVITY,4666,,03/01/2023,23269538,600,28863,SEVA EDUCATION HEALTH & CARE LTD
INSERTED DETAIL,,Ealing Council,http://opendatacommunities.org/id/london-borough-council/ealing,CHILDREN & ADULTS,1,EALING SERVICE FOR CHILDREN WITH ADDITIONAL NEEDS,DAY ACTIVITY,4666,,03/01/2023,23269538,300,28863,SEVA EDUCATION HEALTH & CARE LTD
INSERTED DETAIL,,Ealing Council,http://opendatacommunities.org/id/london-borough-council/ealing,CHILDREN & ADULTS,1,EALING SERVICE FOR CHILDREN WITH ADDITIONAL NEEDS,DAY ACTIVITY,4666,,03/01/2023,23269538,600,28863,SEVA EDUCATION HEALTH & CARE LTD
INSERTED DETAIL,,Ealing Council,http://opendatacommunities.org/id/london-borough-council/ealing,CHILDREN & ADULTS,1,EALING SERVICE FOR CHILDREN WITH ADDITIONAL NEEDS,DAY ACTIVITY,4666,,03/01/2023,23269538,600,28863,SEVA EDUCATION HEALTH & CARE LTD
INSERTED DETAIL,,Ealing Council,http://opendatacommunities.org/id/london-borough-council/ealing,CHILDREN & ADULTS,1,EALING SERVICE FOR CHILDREN WITH ADDITIONAL NEEDS,DAY ACTIVITY,4666,,03/01/2023,23269538,600,28863,SEVA EDUCATION HEALTH & CARE LTD
INSERTED DETAIL,,Ealing Council,http://opendatacommunities.org/id/london-borough-council/ealing,CHILDREN & ADULTS,1,EALING SERVICE FOR CHILDREN WITH ADDITIONAL NEEDS,DAY ACTIVITY,4666,,03/01/2023,23269538,2186.44,28863,SEVA EDUCATION HEALTH & CARE LTD
INSERTED DETAIL,,Ealing Council,http://opendatacommunities.org/id/london-borough-council/ealing,CHILDREN & ADULTS,1,EALING SERVICE FOR CHILDREN WITH ADDITIONAL NEEDS,DAY ACTIVITY,4666,,03/01/2023,23269538,600,28863,SEVA EDUCATION HEALTH & CARE LTD
INSERTED DETAIL,,Ealing Council,http://opendatacommunities.org/id/london-borough-council/ealing,CHILDREN & ADULTS,1,EALING SERVICE FOR CHILDREN WITH ADDITIONAL NEEDS,DOMICILIARY CARE - BLOCK,4240,,03/01/2023,23269545,399,24470,OHIO HOME CARE LTD
INSERTED DETAIL,,Ealing Council,http://opendatacommunities.org/id/london-borough-council/ealing,CHILDREN & ADULTS,1,EALING SERVICE FOR CHILDREN WITH ADDITIONAL NEEDS,DOMICILIARY CARE - BLOCK,4240,,03/01/2023,23269545,511,24470,OHIO HOME CARE LTD
INSERTED DETAIL,,Ealing Council,http://opendatacommunities.org/id/london-borough-council/ealing,CHILDREN & ADULTS,1,EALING SERVICE FOR CHILDREN WITH ADDITIONAL NEEDS,DOMICILIARY CARE - BLOCK,4240,,03/01/2023,23269545,311.5,24470,OHIO HOME CARE LTD
INSERTED DETAIL,,Ealing Council,http://opendatacommunities.org/id/london-borough-council/ealing,CHILDREN & ADULTS,1,EALING SERVICE FOR CHILDREN WITH ADDITIONAL NEEDS,DOMICILIARY CARE - BLOCK,4240,,03/01/2023,23269545,506.94,24470,OHIO HOME CARE LTD
INSERTED DETAIL,,Ealing Council,http://opendatacommunities.org/id/london-borough-council/ealing,CHILDREN & ADULTS,1,EALING SERVICE FOR CHILDREN WITH ADDITIONAL NEEDS,DOMICILIARY CARE - BLOCK,4240,,03/01/2023,23269545,-619.2,24470,OHIO HOME CARE LTD
INSERTED DETAIL,,Ealing Council,http://opendatacommunities.org/id/london-borough-council/ealing,CHILDREN & ADULTS,1,EALING SERVICE FOR CHILDREN WITH ADDITIONAL NEEDS,DOMICILIARY CARE - BLOCK,4240,,03/01/2023,23269545,1533,24470,OHIO HOME CARE LTD
INSERTED DETAIL,,Ealing Council,http://opendatacommunities.org/id/london-borough-council/ealing,CHILDREN & ADULTS,1,EALING SERVICE FOR CHILDREN WITH ADDITIONAL NEEDS,VEHICLE HIRE,2010,,01/12/2022,41045378,1294.5,27468,MASTER CARS UK LTD
INSERTED DETAIL,,Ealing Council,http://opendatacommunities.org/id/london-borough-council/ealing,CHILDREN & ADULTS,1,EALING SERVICE FOR CHILDREN WITH ADDITIONAL NEEDS,VEHICLE HIRE,2010,,09/01/2023,41046887,1583.55,27468,MASTER CARS UK LTD
INSERTED DETAIL,,Ealing Council,http://opendatacommunities.org/id/london-borough-council/ealing,CHILDREN & ADULTS,1,EALING SERVICE FOR CHILDREN WITH ADDITIONAL NEEDS,DIRECT PAYMENTS,4231,,04/01/2023,23269527,-784.05,80764,CARE IN FINANCE LTD
INSERTED DETAIL,,Ealing Council,http://opendatacommunities.org/id/london-borough-council/ealing,CHILDREN & ADULTS,1,EALING SERVICE FOR CHILDREN WITH ADDITIONAL NEEDS,DIRECT PAYMENTS,4231,,04/01/2023,23269527,651.2,80764,CARE IN FINANCE LTD
INSERTED DETAIL,,Ealing Council,http://opendatacommunities.org/id/london-borough-council/ealing,CHILDREN & ADULTS,1,EALING SERVICE FOR CHILDREN WITH ADDITIONAL NEEDS,DIRECT PAYMENTS,4231,,04/01/2023,23269527,1213.8,80764,CARE IN FINANCE LTD
INSERTED DETAIL,,Ealing Council,http://opendatacommunities.org/id/london-borough-council/ealing,CHILDREN & ADULTS,1,EALING SERVICE FOR CHILDREN WITH ADDITIONAL NEEDS,DIRECT PAYMENTS,4231,,12/01/2023,23272684,5870.13,80764,CARE IN FINANCE LTD
INSERTED DETAIL,,Ealing Council,http://opendatacommunities.org/id/london-borough-council/ealing,CHILDREN & ADULTS,1,EALING SERVICE FOR CHILDREN WITH ADDITIONAL NEEDS,DIRECT PAYMENTS,4231,,12/01/2023,23272684,414.38,80764,CARE IN FINANCE LTD
INSERTED DETAIL,,Ealing Council,http://opendatacommunities.org/id/london-borough-council/ealing,CHILDREN & ADULTS,1,EALING SERVICE FOR CHILDREN WITH ADDITIONAL NEEDS,DIRECT PAYMENTS,4231,,12/01/2023,23272684,-256.11,80764,CARE IN FINANCE LTD
INSERTED DETAIL,,Ealing Council,http://opendatacommunities.org/id/london-borough-council/ealing,CHILDREN & ADULTS,1,EALING SERVICE FOR CHILDREN WITH ADDITIONAL NEEDS,DIRECT PAYMENTS,4231,,12/01/2023,23272684,-4979.04,80764,CARE IN FINANCE LTD
INSERTED DETAIL,,Ealing Council,http://opendatacommunities.org/id/london-borough-council/ealing,CHILDREN & ADULTS,1,EALING SERVICE FOR CHILDREN WITH ADDITIONAL NEEDS,DIRECT PAYMENTS,4231,,12/01/2023,23272684,292.57,80764,CARE IN FINANCE LTD
INSERTED DETAIL,,Ealing Council,http://opendatacommunities.org/id/london-borough-council/ealing,CHILDREN & ADULTS,1,EALING SERVICE FOR CHILDREN WITH ADDITIONAL NEEDS,DIRECT PAYMENTS,4231,,12/01/2023,23272684,443.29,80764,CARE IN FINANCE LTD
INSERTED DETAIL,,Ealing Council,http://opendatacommunities.org/id/london-borough-council/ealing,CHILDREN & ADULTS,1,EALING SERVICE FOR CHILDREN WITH ADDITIONAL NEEDS,DIRECT PAYMENTS,4231,,12/01/2023,23272684,-375.41,80764,CARE IN FINANCE LTD
INSERTED DETAIL,,Ealing Council,http://opendatacommunities.org/id/london-borough-council/ealing,CHILDREN & ADULTS,1,SAFEGUARDING & SUPPORT - CIC,INDEPENDENT FOSTERING,4221,,11/01/2023,23271781,3514.52,26272,CHILDREN OF COLOUR LIMITED
INSERTED DETAIL,,Ealing Council,http://opendatacommunities.org/id/london-borough-council/ealing,CHILDREN & ADULTS,1,SAFEGUARDING & SUPPORT - CIC,INDEPENDENT FOSTERING,4221,,11/01/2023,23271781,3514.52,26272,CHILDREN OF COLOUR LIMITED
INSERTED DETAIL,,Ealing Council,http://opendatacommunities.org/id/london-borough-council/ealing,CHILDREN & ADULTS,1,SAFEGUARDING & SUPPORT - CIC,INDEPENDENT FOSTERING,4221,,11/01/2023,23271765,3489.72,27041,COMPASS FOSTERING LONDON LTD
INSERTED DETAIL,,Ealing Council,http://opendatacommunities.org/id/london-borough-council/ealing,CHILDREN & ADULTS,1,SAFEGUARDING & SUPPORT - CIC,RESIDENTIAL HOMES EXTERNAL,4220,,11/01/2023,23271788,20250.75,27162,CHILDREN OF THE MANGROVE LTD
INSERTED DETAIL,,Ealing Council,http://opendatacommunities.org/id/london-borough-council/ealing,CHILDREN & ADULTS,1,SAFEGUARDING & SUPPORT - CIC,ELIGIBLE CHILDREN ACCOMMODATION,4281,,10/01/2023,23271923,974.28,27251,HABITAT 4 U LTD
INSERTED DETAIL,,Ealing Council,http://opendatacommunities.org/id/london-borough-council/ealing,CHILDREN & ADULTS,1,SAFEGUARDING & SUPPORT - CIC,ELIGIBLE CHILDREN ACCOMMODATION,4281,,10/01/2023,23271923,2657.11,27251,HABITAT 4 U LTD
INSERTED DETAIL,,Ealing Council,http://opendatacommunities.org/id/london-borough-council/ealing,CHILDREN & ADULTS,1,SAFEGUARDING & SUPPORT - CIC,ELIGIBLE CHILDREN ACCOMMODATION,4281,,10/01/2023,23271923,487.15,27251,HABITAT 4 U LTD
INSERTED DETAIL,,Ealing Council,http://opendatacommunities.org/id/london-borough-council/ealing,CHILDREN & ADULTS,1,SAFEGUARDING & SUPPORT - CIC,ELIGIBLE CHILDREN ACCOMMODATION,4281,,11/01/2023,23271840,442.85,28274,IASPIRE CARE SERVICES LTD
INSERTED DETAIL,,Ealing Council,http://opendatacommunities.org/id/london-borough-council/ealing,CHILDREN & ADULTS,1,SAFEGUARDING & SUPPORT - CIC,ELIGIBLE CHILDREN ACCOMMODATION,4281,,11/01/2023,23271840,2657.15,28274,IASPIRE CARE SERVICES LTD
INSERTED DETAIL,,Ealing Council,http://opendatacommunities.org/id/london-borough-council/ealing,CHILDREN & ADULTS,1,SAFEGUARDING & SUPPORT - CIC,ELIGIBLE CHILDREN ACCOMMODATION,4281,,11/01/2023,23271829,2486.68,30130,LOOK AHEAD HOUSING AND CARE LTD
INSERTED DETAIL,,Ealing Council,http://opendatacommunities.org/id/london-borough-council/ealing,CHILDREN & ADULTS,1,SAFEGUARDING & SUPPORT - CIC,ELIGIBLE CHILDREN ACCOMMODATION,4281,,11/01/2023,23271829,-867.95,30130,LOOK AHEAD HOUSING AND CARE LTD
INSERTED DETAIL,,Ealing Council,http://opendatacommunities.org/id/london-borough-council/ealing,CHILDREN & ADULTS,1,SAFEGUARDING & SUPPORT - CIC,ELIGIBLE CHILDREN ACCOMMODATION,4281,,11/01/2023,23271829,655.39,30130,LOOK AHEAD HOUSING AND CARE LTD
INSERTED DETAIL,,Ealing Council,http://opendatacommunities.org/id/london-borough-council/ealing,CHILDREN & ADULTS,1,SAFEGUARDING & SUPPORT - CIC,ELIGIBLE CHILDREN ACCOMMODATION,4281,,11/01/2023,23271836,366.25,30130,LOOK AHEAD HOUSING AND CARE LTD
INSERTED DETAIL,,Ealing Council,http://opendatacommunities.org/id/london-borough-council/ealing,CHILDREN & ADULTS,1,SAFEGUARDING & SUPPORT - CIC,ELIGIBLE CHILDREN ACCOMMODATION,4281,,11/01/2023,23271836,952.15,30130,LOOK AHEAD HOUSING AND CARE LTD
INSERTED DETAIL,,Ealing Council,http://opendatacommunities.org/id/london-borough-council/ealing,CHILDREN & ADULTS,1,SAFEGUARDING & SUPPORT - CIC,ELIGIBLE CHILDREN ACCOMMODATION,4281,,11/01/2023,23271836,3677.17,30130,LOOK AHEAD HOUSING AND CARE LTD
INSERTED DETAIL,,Ealing Council,http://opendatacommunities.org/id/london-borough-council/ealing,CHILDREN & ADULTS,1,SAFEGUARDING & SUPPORT - CIC,ELIGIBLE CHILDREN ACCOMMODATION,4281,,11/01/2023,23271836,421.2,30130,LOOK AHEAD HOUSING AND CARE LTD
INSERTED DETAIL,,Ealing Council,http://opendatacommunities.org/id/london-borough-council/ealing,CHILDREN & ADULTS,1,SAFEGUARDING & SUPPORT - CIC,ELIGIBLE CHILDREN ACCOMMODATION,4281,,11/01/2023,23271836,270.37,30130,LOOK AHEAD HOUSING AND CARE LTD
INSERTED DETAIL,,Ealing Council,http://opendatacommunities.org/id/london-borough-council/ealing,CHILDREN & ADULTS,1,SAFEGUARDING & SUPPORT - CIC,ELIGIBLE CHILDREN ACCOMMODATION,4281,,11/01/2023,23271836,3685.06,30130,LOOK AHEAD HOUSING AND CARE LTD
INSERTED DETAIL,,Ealing Council,http://opendatacommunities.org/id/london-borough-council/ealing,CHILDREN & ADULTS,1,SAFEGUARDING & SUPPORT - CIC,ELIGIBLE CHILDREN ACCOMMODATION,4281,,11/01/2023,23271836,996.43,30130,LOOK AHEAD HOUSING AND CARE LTD
INSERTED DETAIL,,Ealing Council,http://opendatacommunities.org/id/london-borough-council/ealing,CHILDREN & ADULTS,1,SAFEGUARDING & SUPPORT - CIC,ELIGIBLE CHILDREN ACCOMMODATION,4281,,11/01/2023,23271836,270.37,30130,LOOK AHEAD HOUSING AND CARE LTD
INSERTED DETAIL,,Ealing Council,http://opendatacommunities.org/id/london-borough-council/ealing,CHILDREN & ADULTS,1,SAFEGUARDING & SUPPORT - CIC,ELIGIBLE CHILDREN ACCOMMODATION,4281,,11/01/2023,23271836,421.2,30130,LOOK AHEAD HOUSING AND CARE LTD
INSERTED DETAIL,,Ealing Council,http://opendatacommunities.org/id/london-borough-council/ealing,CHILDREN & ADULTS,1,SAFEGUARDING & SUPPORT - CIC,ELIGIBLE CHILDREN ACCOMMODATION,4281,,11/01/2023,23271836,366.25,30130,LOOK AHEAD HOUSING AND CARE LTD
INSERTED DETAIL,,Ealing Council,http://opendatacommunities.org/id/london-borough-council/ealing,CHILDREN & ADULTS,1,SAFEGUARDING & SUPPORT - CIC,RESIDENTIAL HOMES EXTERNAL,4220,,01/12/2022,23271935,23648.57,10000092,THE BEECHES UK LTD
INSERTED DETAIL,,Ealing Council,http://opendatacommunities.org/id/london-borough-council/ealing,CHILDREN & ADULTS,1,SAFEGUARDING & SUPPORT - CIC,ELIGIBLE CHILDREN ACCOMMODATION,4281,,11/01/2023,23271888,1107.15,19820,HESTIA ENTERPRISES LTD-T/A HIGHER LEVEL CARE
INSERTED DETAIL,,Ealing Council,http://opendatacommunities.org/id/london-borough-council/ealing,CHILDREN & ADULTS,1,SAFEGUARDING & SUPPORT - CIC,ELIGIBLE CHILDREN ACCOMMODATION,4281,,11/01/2023,23271888,3321.43,19820,HESTIA ENTERPRISES LTD-T/A HIGHER LEVEL CARE
INSERTED DETAIL,,Ealing Council,http://opendatacommunities.org/id/london-borough-council/ealing,CHILDREN & ADULTS,1,SAFEGUARDING & SUPPORT - CIC,ELIGIBLE CHILDREN ACCOMMODATION,4281,,11/01/2023,23271888,442.85,19820,HESTIA ENTERPRISES LTD-T/A HIGHER LEVEL CARE
INSERTED DETAIL,,Ealing Council,http://opendatacommunities.org/id/london-borough-council/ealing,CHILDREN & ADULTS,1,SAFEGUARDING & SUPPORT - CIC,INDEPENDENT FOSTERING,4221,,11/01/2023,23271768,3210.72,25646,FOSTERING FOR YOU LIMITED
INSERTED DETAIL,,Ealing Council,http://opendatacommunities.org/id/london-borough-council/ealing,CHILDREN & ADULTS,1,SAFEGUARDING & SUPPORT - CIC,INDEPENDENT FOSTERING,4221,,11/01/2023,23271782,3255,26910,COMPASS FOSTERING WALES LTD
INSERTED DETAIL,,Ealing Council,http://opendatacommunities.org/id/london-borough-council/ealing,CHILDREN & ADULTS,1,SAFEGUARDING & SUPPORT - CIC,ELIGIBLE CHILDREN ACCOMMODATION,4281,,11/01/2023,23271899,3653.57,29314,SUPPORTIVE LINK LIMITED
INSERTED DETAIL,,Ealing Council,http://opendatacommunities.org/id/london-borough-council/ealing,CHILDREN & ADULTS,1,SAFEGUARDING & SUPPORT - CIC,ELIGIBLE CHILDREN ACCOMMODATION,4281,,11/01/2023,23271899,2214.28,29314,SUPPORTIVE LINK LIMITED
INSERTED DETAIL,,Ealing Council,http://opendatacommunities.org/id/london-borough-council/ealing,CHILDREN & ADULTS,1,SAFEGUARDING & SUPPORT - CIC,ELIGIBLE CHILDREN ACCOMMODATION,4281,,11/01/2023,23271899,270.37,29314,SUPPORTIVE LINK LIMITED
INSERTED DETAIL,,Ealing Council,http://opendatacommunities.org/id/london-borough-council/ealing,CHILDREN & ADULTS,1,DISABILITIES,RESIDENTIAL HOMES EXTERNAL,4220,,05/01/2023,23270080,3725.6,30117,STANMORE HOUSE
INSERTED DETAIL,,Ealing Council,http://opendatacommunities.org/id/london-borough-council/ealing,CHILDREN & ADULTS,1,DISABILITIES,RESIDENTIAL HOMES EXTERNAL,4220,,05/01/2023,23270080,6068.76,30117,STANMORE HOUSE
INSERTED DETAIL,,Ealing Council,http://opendatacommunities.org/id/london-borough-council/ealing,CHILDREN & ADULTS,1,DISABILITIES,SUPPORTED LIVING,4236,,05/01/2023,23270133,4272,30117,STANMORE HOUSE
INSERTED DETAIL,,Ealing Council,http://opendatacommunities.org/id/london-borough-council/ealing,CHILDREN & ADULTS,1,DISABILITIES,RESIDENTIAL HOMES EXTERNAL,4220,,05/01/2023,23269982,3753,30201,COMBS COURT
INSERTED DETAIL,,Ealing Council,http://opendatacommunities.org/id/london-borough-council/ealing,CHILDREN & ADULTS,1,DISABILITIES,RESIDENTIAL HOMES EXTERNAL-INCOME,8780,,05/01/2023,23269982,-492.64,30201,COMBS COURT
INSERTED DETAIL,,Ealing Council,http://opendatacommunities.org/id/london-borough-council/ealing,CHILDREN & ADULTS,1,DISABILITIES,DIRECT PAYMENTS,4231,,24/01/2023,23274409,1472.96,80048,REDACTED SENSITIVE SUPPLIER
INSERTED DETAIL,,Ealing Council,http://opendatacommunities.org/id/london-borough-council/ealing,CHILDREN & ADULTS,1,DISABILITIES,DIRECT PAYMENTS,4231,,24/01/2023,23274378,1198.8,80136,REDACTED SENSITIVE SUPPLIER
INSERTED DETAIL,,Ealing Council,http://opendatacommunities.org/id/london-borough-council/ealing,CHILDREN & ADULTS,1,DISABILITIES,DIRECT PAYMENTS,4231,,24/01/2023,23274378,2967.32,80136,REDACTED SENSITIVE SUPPLIER
INSERTED DETAIL,,Ealing Council,http://opendatacommunities.org/id/london-borough-council/ealing,CHILDREN & ADULTS,1,DISABILITIES,DIRECT PAYMENTS,4231,,24/01/2023,23274402,866.08,80309,REDACTED SENSITIVE SUPPLIER
INSERTED DETAIL,,Ealing Council,http://opendatacommunities.org/id/london-borough-council/ealing,CHILDREN & ADULTS,1,DISABILITIES,DIRECT PAYMENTS,4231,,24/01/2023,23274421,2146.84,80793,REDACTED SENSITIVE SUPPLIER
INSERTED DETAIL,,Ealing Council,http://opendatacommunities.org/id/london-borough-council/ealing,CHILDREN & ADULTS,1,DISABILITIES,DIRECT PAYMENTS,4231,,24/01/2023,23274421,1240.52,80793,REDACTED SENSITIVE SUPPLIER
INSERTED DETAIL,,Ealing Council,http://opendatacommunities.org/id/london-borough-council/ealing,CHILDREN & ADULTS,1,DISABILITIES,DOMICILIARY CARE - BLOCK,4240,,19/01/2023,23273883,738,27968,INVICTA CARE AND TRAINING LTD
INSERTED DETAIL,,Ealing Council,http://opendatacommunities.org/id/london-borough-council/ealing,CHILDREN & ADULTS,1,DISABILITIES,RESIDENTIAL HOMES EXTERNAL,4220,,05/01/2023,23270226,5400,28094,DRS CARE HOMES LTD
INSERTED DETAIL,,Ealing Council,http://opendatacommunities.org/id/london-borough-council/ealing,CHILDREN & ADULTS,1,DISABILITIES,DIRECT PAYMENTS,4231,,24/01/2023,23274403,1610.72,80674,REDACTED SENSITIVE SUPPLIER
INSERTED DETAIL,,Ealing Council,http://opendatacommunities.org/id/london-borough-council/ealing,CHILDREN & ADULTS,1,DISABILITIES,DIRECT PAYMENTS,4231,,24/01/2023,23274394,368.24,80701,REDACTED SENSITIVE SUPPLIER
INSERTED DETAIL,,Ealing Council,http://opendatacommunities.org/id/london-borough-council/ealing,CHILDREN & ADULTS,1,DISABILITIES,DIRECT PAYMENTS,4231,,25/01/2023,23274369,268.35,81018,REDACTED SENSITIVE SUPPLIER
INSERTED DETAIL,,Ealing Council,http://opendatacommunities.org/id/london-borough-council/ealing,CHILDREN & ADULTS,1,DISABILITIES,DIRECT PAYMENTS,4231,,24/01/2023,23274451,337.2,81018,REDACTED SENSITIVE SUPPLIER
INSERTED DETAIL,,Ealing Council,http://opendatacommunities.org/id/london-borough-council/ealing,CHILDREN & ADULTS,1,DISABILITIES,RESIDENTIAL HOMES EXTERNAL,4220,,05/01/2023,23270233,435.64,28266,SOMCARE AGENCY LIMITED
INSERTED DETAIL,,Ealing Council,http://opendatacommunities.org/id/london-borough-council/ealing,CHILDREN & ADULTS,1,DISABILITIES,RESIDENTIAL HOMES EXTERNAL,4220,,05/01/2023,23270233,871.29,28266,SOMCARE AGENCY LIMITED
INSERTED DETAIL,,Ealing Council,http://opendatacommunities.org/id/london-borough-council/ealing,CHILDREN & ADULTS,1,DISABILITIES,RESIDENTIAL HOMES EXTERNAL,4220,,05/01/2023,23270233,522.77,28266,SOMCARE AGENCY LIMITED
INSERTED DETAIL,,Ealing Council,http://opendatacommunities.org/id/london-borough-council/ealing,CHILDREN & ADULTS,1,DISABILITIES,RESIDENTIAL HOMES EXTERNAL,4220,,03/01/2023,23269576,-450,28266,SOMCARE AGENCY LIMITED
INSERTED DETAIL,,Ealing Council,http://opendatacommunities.org/id/london-borough-council/ealing,CHILDREN & ADULTS,1,DISABILITIES,RESIDENTIAL HOMES EXTERNAL,4220,,03/01/2023,23269576,481.5,28266,SOMCARE AGENCY LIMITED
INSERTED DETAIL,,Ealing Council,http://opendatacommunities.org/id/london-borough-council/ealing,CHILDREN & ADULTS,1,DISABILITIES,RESIDENTIAL HOMES EXTERNAL,4220,,03/01/2023,23269576,258.57,28266,SOMCARE AGENCY LIMITED
INSERTED DETAIL,,Ealing Council,http://opendatacommunities.org/id/london-borough-council/ealing,CHILDREN & ADULTS,1,DISABILITIES,DOMICILIARY CARE - BLOCK,4240,,09/01/2023,23271956,2864.4,28266,SOMCARE AGENCY LIMITED
INSERTED DETAIL,,Ealing Council,http://opendatacommunities.org/id/london-borough-council/ealing,CHILDREN & ADULTS,1,DISABILITIES,DOMICILIARY CARE - BLOCK,4240,,09/01/2023,23271956,786.8,28266,SOMCARE AGENCY LIMITED
INSERTED DETAIL,,Ealing Council,http://opendatacommunities.org/id/london-borough-council/ealing,CHILDREN & ADULTS,1,DISABILITIES,DOMICILIARY CARE - BLOCK,4240,,09/01/2023,23271956,955.08,28266,SOMCARE AGENCY LIMITED
INSERTED DETAIL,,Ealing Council,http://opendatacommunities.org/id/london-borough-council/ealing,CHILDREN & ADULTS,1,DISABILITIES,DOMICILIARY CARE - BLOCK,4240,,09/01/2023,23271956,4494,28266,SOMCARE AGENCY LIMITED
INSERTED DETAIL,,Ealing Council,http://opendatacommunities.org/id/london-borough-council/ealing,CHILDREN & ADULTS,1,DISABILITIES,DOMICILIARY CARE - BLOCK,4240,,09/01/2023,23271956,1348.2,28266,SOMCARE AGENCY LIMITED
INSERTED DETAIL,,Ealing Council,http://opendatacommunities.org/id/london-borough-council/ealing,CHILDREN & ADULTS,1,DISABILITIES,DOMICILIARY CARE - BLOCK,4240,,09/01/2023,23271956,1797.6,28266,SOMCARE AGENCY LIMITED
INSERTED DETAIL,,Ealing Council,http://opendatacommunities.org/id/london-borough-council/ealing,CHILDREN & ADULTS,1,DISABILITIES,DOMICILIARY CARE - BLOCK,4240,,09/01/2023,23271956,256.8,28266,SOMCARE AGENCY LIMITED
INSERTED DETAIL,,Ealing Council,http://opendatacommunities.org/id/london-borough-council/ealing,CHILDREN & ADULTS,1,DISABILITIES,RESIDENTIAL HOMES EXTERNAL,4220,,05/01/2023,23270246,7988,28573,NOVALIS TRUST R/C T/A CCS PARADISE HOUSE
INSERTED DETAIL,,Ealing Council,http://opendatacommunities.org/id/london-borough-council/ealing,CHILDREN & ADULTS,1,SAFEGUARDING & SUPP - BS &A&F,ADOPTION ALLOWANCE,4387,,17/01/2023,23273281,322.99,200728,REDACTED SENSITIVE SUPPLIER
INSERTED DETAIL,,Ealing Council,http://opendatacommunities.org/id/london-borough-council/ealing,CHILDREN & ADULTS,1,SAFEGUARDING & SUPP - BS &A&F,ADOPTION ALLOWANCE,4387,,10/01/2023,23271482,322.99,200728,REDACTED SENSITIVE SUPPLIER
INSERTED DETAIL,,Ealing Council,http://opendatacommunities.org/id/london-borough-council/ealing,CHILDREN & ADULTS,1,SAFEGUARDING & SUPP - BS &A&F,ADOPTION ALLOWANCE,4387,,03/01/2023,23269260,322.99,200728,REDACTED SENSITIVE SUPPLIER
INSERTED DETAIL,,Ealing Council,http://opendatacommunities.org/id/london-borough-council/ealing,CHILDREN & ADULTS,1,SAFEGUARDING & SUPP - BS &A&F,SPECIAL GUARDIANSHIP ALLOWANCE,4663,,10/01/2023,23271386,350,200012,REDACTED SENSITIVE SUPPLIER
INSERTED DETAIL,,Ealing Council,http://opendatacommunities.org/id/london-borough-council/ealing,CHILDREN & ADULTS,1,SAFEGUARDING & SUPP - BS &A&F,SPECIAL GUARDIANSHIP ALLOWANCE,4663,,10/01/2023,23271386,350,200012,REDACTED SENSITIVE SUPPLIER
INSERTED DETAIL,,Ealing Council,http://opendatacommunities.org/id/london-borough-council/ealing,CHILDREN & ADULTS,1,SAFEGUARDING & SUPP - BS &A&F,SPECIAL GUARDIANSHIP ALLOWANCE,4663,,03/01/2023,23269163,350,200012,REDACTED SENSITIVE SUPPLIER
INSERTED DETAIL,,Ealing Council,http://opendatacommunities.org/id/london-borough-council/ealing,CHILDREN & ADULTS,1,SAFEGUARDING & SUPP - BS &A&F,SPECIAL GUARDIANSHIP ALLOWANCE,4663,,03/01/2023,23269163,350,200012,REDACTED SENSITIVE SUPPLIER
INSERTED DETAIL,,Ealing Council,http://opendatacommunities.org/id/london-borough-council/ealing,CHILDREN & ADULTS,1,SAFEGUARDING & SUPP - BS &A&F,SPECIAL GUARDIANSHIP ALLOWANCE,4663,,17/01/2023,23273182,350,200012,REDACTED SENSITIVE SUPPLIER
INSERTED DETAIL,,Ealing Council,http://opendatacommunities.org/id/london-borough-council/ealing,CHILDREN & ADULTS,1,SAFEGUARDING & SUPP - BS &A&F,SPECIAL GUARDIANSHIP ALLOWANCE,4663,,17/01/2023,23273182,350,200012,REDACTED SENSITIVE SUPPLIER
INSERTED DETAIL,,Ealing Council,http://opendatacommunities.org/id/london-borough-council/ealing,CHILDREN & ADULTS,1,SAFEGUARDING & SUPP - BS &A&F,ADOPTION ALLOWANCE,4387,,24/01/2023,23274718,356.05,200820,REDACTED SENSITIVE SUPPLIER
INSERTED DETAIL,,Ealing Council,http://opendatacommunities.org/id/london-borough-council/ealing,CHILDREN & ADULTS,1,SAFEGUARDING & SUPP - BS &A&F,MEDICAL REPORTS,2560,,30/01/2023,23281001,-280,9900014,REDACTED SENSITIVE SUPPLIER
INSERTED DETAIL,,Ealing Council,http://opendatacommunities.org/id/london-borough-council/ealing,CHILDREN & ADULTS,1,SAFEGUARDING & SUPPORT - SM,COMP OUTSOURCED SERVICES,3220,,09/11/2022,41045045,660,9900014,TRIANGLE CONSULTING SOCIAL ENTERPRISE LIMITED
INSERTED DETAIL,,Ealing Council,http://opendatacommunities.org/id/london-borough-council/ealing,CHILDREN & ADULTS,1,STRATEGIC COMMISSIONING,PAYMENTS TO CONTRACTORS,4000,,13/01/2023,41046933,6160,24546,VOICEABILITY ADVOCACY
INSERTED DETAIL,,Ealing Council,http://opendatacommunities.org/id/london-borough-council/ealing,CHILDREN & ADULTS,1,ILT,RESIDENTIAL HOMES EXTERNAL,4220,,03/01/2023,23270395,980,19757,FAIR DINKUM DEVELOPERS PROPERTIES LTD
INSERTED DETAIL,,Ealing Council,http://opendatacommunities.org/id/london-borough-council/ealing,CHILDREN & ADULTS,1,ILT,RESIDENTIAL HOMES EXTERNAL,4220,,05/01/2023,23270062,759.19,15783,YARROW HOUSING LTD
INSERTED DETAIL,,Ealing Council,http://opendatacommunities.org/id/london-borough-council/ealing,CHILDREN & ADULTS,1,ILT,RESIDENTIAL HOMES EXTERNAL,4220,,05/01/2023,23270062,322.08,15783,YARROW HOUSING LTD
INSERTED DETAIL,,Ealing Council,http://opendatacommunities.org/id/london-borough-council/ealing,CHILDREN & ADULTS,1,ILT,SUPPORTED LIVING,4236,,05/01/2023,23270062,2927.28,15783,YARROW HOUSING LTD
INSERTED DETAIL,,Ealing Council,http://opendatacommunities.org/id/london-borough-council/ealing,CHILDREN & ADULTS,1,ILT,RESIDENTIAL HOMES EXTERNAL,4220,,05/01/2023,23270074,2543.2,22569,BCS MEDICAL (SHACKLETON) LTD
INSERTED DETAIL,,Ealing Council,http://opendatacommunities.org/id/london-borough-council/ealing,CHILDREN & ADULTS,1,ILT,RESIDENTIAL HOMES EXTERNAL,4220,,05/01/2023,23270074,2543.2,22569,BCS MEDICAL (SHACKLETON) LTD
INSERTED DETAIL,,Ealing Council,http://opendatacommunities.org/id/london-borough-council/ealing,CHILDREN & ADULTS,1,ILT,RESIDENTIAL HOMES EXTERNAL,4220,,05/01/2023,23270074,1957.28,22569,BCS MEDICAL (SHACKLETON) LTD
INSERTED DETAIL,,Ealing Council,http://opendatacommunities.org/id/london-borough-council/ealing,CHILDREN & ADULTS,1,ILT,RESIDENTIAL HOMES EXTERNAL,4220,,05/01/2023,23270074,3900,22569,BCS MEDICAL (SHACKLETON) LTD
INSERTED DETAIL,,Ealing Council,http://opendatacommunities.org/id/london-borough-council/ealing,CHILDREN & ADULTS,1,ILT,NURSING HOMES EXTERNAL,4230,,05/01/2023,23270074,2785.4,22569,BCS MEDICAL (SHACKLETON) LTD
INSERTED DETAIL,,Ealing Council,http://opendatacommunities.org/id/london-borough-council/ealing,CHILDREN & ADULTS,1,ILT,RESIDENTIAL HOMES EXTERNAL,4220,,05/01/2023,23270131,868,25216,OLAM QUALITY CARE LTD - T/A CAREMARK EALING
INSERTED DETAIL,,Ealing Council,http://opendatacommunities.org/id/london-borough-council/ealing,CHILDREN & ADULTS,1,ILT,DOMICILIARY CARE - BLOCK,4240,,05/01/2023,23269958,431.2,25216,OLAM QUALITY CARE LTD - T/A CAREMARK EALING
INSERTED DETAIL,,Ealing Council,http://opendatacommunities.org/id/london-borough-council/ealing,CHILDREN & ADULTS,1,ILT,DOMICILIARY CARE - BLOCK,4240,,05/01/2023,23269958,347.48,25216,OLAM QUALITY CARE LTD - T/A CAREMARK EALING
INSERTED DETAIL,,Ealing Council,http://opendatacommunities.org/id/london-borough-council/ealing,CHILDREN & ADULTS,1,ILT,DOMICILIARY CARE - BLOCK,4240,,05/01/2023,23269958,1042.72,25216,OLAM QUALITY CARE LTD - T/A CAREMARK EALING
INSERTED DETAIL,,Ealing Council,http://opendatacommunities.org/id/london-borough-council/ealing,CHILDREN & ADULTS,1,ILT,EMI NURSING,4237,,10/11/2022,23274367,6500,10875,CARE UK COMMUNITY PARTNERSHIP LTD
INSERTED DETAIL,,Ealing Council,http://opendatacommunities.org/id/london-borough-council/ealing,CHILDREN & ADULTS,1,SAFEGUARDING & SUPPORT - CIC,ELIGIBLE CHILDREN ACCOMMODATION,4281,,11/01/2023,23271861,270.37,19820,HESTIA ENTERPRISES LTD-T/A HIGHER LEVEL CARE
INSERTED DETAIL,,Ealing Council,http://opendatacommunities.org/id/london-borough-council/ealing,CHILDREN & ADULTS,1,SAFEGUARDING & SUPPORT - CIC,ELIGIBLE CHILDREN ACCOMMODATION,4281,,11/01/2023,23271861,3432.15,19820,HESTIA ENTERPRISES LTD-T/A HIGHER LEVEL CARE
INSERTED DETAIL,,Ealing Council,http://opendatacommunities.org/id/london-borough-council/ealing,CHILDREN & ADULTS,1,SAFEGUARDING & SUPPORT - CIC,ELIGIBLE CHILDREN ACCOMMODATION,4281,,03/01/2023,23269518,269.95,200211,REDACTED SENSITIVE SUPPLIER
INSERTED DETAIL,,Ealing Council,http://opendatacommunities.org/id/london-borough-council/ealing,CHILDREN & ADULTS,1,SAFEGUARDING & SUPPORT - CIC,ELIGIBLE CHILDREN ACCOMMODATION,4281,,10/01/2023,23271741,269.95,200211,REDACTED SENSITIVE SUPPLIER
INSERTED DETAIL,,Ealing Council,http://opendatacommunities.org/id/london-borough-council/ealing,CHILDREN & ADULTS,1,SAFEGUARDING & SUPPORT - CIC,ELIGIBLE CHILDREN ACCOMMODATION,4281,,17/01/2023,23273540,269.95,200211,REDACTED SENSITIVE SUPPLIER
INSERTED DETAIL,,Ealing Council,http://opendatacommunities.org/id/london-borough-council/ealing,CHILDREN & ADULTS,1,SAFEGUARDING & SUPPORT - CIC,ELIGIBLE CHILDREN ACCOMMODATION,4281,,17/01/2023,23273503,269.95,200270,REDACTED SENSITIVE SUPPLIER
INSERTED DETAIL,,Ealing Council,http://opendatacommunities.org/id/london-borough-council/ealing,CHILDREN & ADULTS,1,SAFEGUARDING & SUPPORT - CIC,ELIGIBLE CHILDREN ACCOMMODATION,4281,,10/01/2023,23271703,269.95,200270,REDACTED SENSITIVE SUPPLIER
INSERTED DETAIL,,Ealing Council,http://opendatacommunities.org/id/london-borough-council/ealing,CHILDREN & ADULTS,1,SAFEGUARDING & SUPPORT - CIC,ELIGIBLE CHILDREN ACCOMMODATION,4281,,03/01/2023,23269480,269.95,200270,REDACTED SENSITIVE SUPPLIER
INSERTED DETAIL,,Ealing Council,http://opendatacommunities.org/id/london-borough-council/ealing,CHILDREN & ADULTS,1,SAFEGUARDING & SUPPORT - CIC,ELIGIBLE CHILDREN ACCOMMODATION,4281,,24/01/2023,23274788,269.95,200270,REDACTED SENSITIVE SUPPLIER
INSERTED DETAIL,,Ealing Council,http://opendatacommunities.org/id/london-borough-council/ealing,CHILDREN & ADULTS,1,SAFEGUARDING & SUPPORT - CIC,ELIGIBLE CHILDREN ACCOMMODATION,4281,,10/01/2023,23271442,269.95,200344,REDACTED SENSITIVE SUPPLIER
INSERTED DETAIL,,Ealing Council,http://opendatacommunities.org/id/london-borough-council/ealing,CHILDREN & ADULTS,1,SAFEGUARDING & SUPPORT - CIC,ELIGIBLE CHILDREN ACCOMMODATION,4281,,24/01/2023,23274528,269.95,200344,REDACTED SENSITIVE SUPPLIER
INSERTED DETAIL,,Ealing Council,http://opendatacommunities.org/id/london-borough-council/ealing,CHILDREN & ADULTS,1,SAFEGUARDING & SUPPORT - CIC,ELIGIBLE CHILDREN ACCOMMODATION,4281,,17/01/2023,23273240,269.95,200344,REDACTED SENSITIVE SUPPLIER
INSERTED DETAIL,,Ealing Council,http://opendatacommunities.org/id/london-borough-council/ealing,CHILDREN & ADULTS,1,SAFEGUARDING & SUPPORT - CIC,ELIGIBLE CHILDREN ACCOMMODATION,4281,,03/01/2023,23269220,269.95,200344,REDACTED SENSITIVE SUPPLIER
INSERTED DETAIL,,Ealing Council,http://opendatacommunities.org/id/london-borough-council/ealing,CHILDREN & ADULTS,1,SAFEGUARDING & SUPPORT - CIC,ELIGIBLE CHILDREN ACCOMMODATION,4281,,03/01/2023,23269221,269.95,200345,REDACTED SENSITIVE SUPPLIER
INSERTED DETAIL,,Ealing Council,http://opendatacommunities.org/id/london-borough-council/ealing,CHILDREN & ADULTS,1,SAFEGUARDING & SUPPORT - CIC,ELIGIBLE CHILDREN ACCOMMODATION,4281,,17/01/2023,23273241,269.95,200345,REDACTED SENSITIVE SUPPLIER
INSERTED DETAIL,,Ealing Council,http://opendatacommunities.org/id/london-borough-council/ealing,CHILDREN & ADULTS,1,SAFEGUARDING & SUPPORT - CIC,ELIGIBLE CHILDREN ACCOMMODATION,4281,,24/01/2023,23274529,269.95,200345,REDACTED SENSITIVE SUPPLIER
INSERTED DETAIL,,Ealing Council,http://opendatacommunities.org/id/london-borough-council/ealing,CHILDREN & ADULTS,1,SAFEGUARDING & SUPPORT - CIC,INDEPENDENT FOSTERING,4221,,11/01/2023,23271803,1904.28,29476,REDACTED SENSITIVE SUPPLIER
INSERTED DETAIL,,Ealing Council,http://opendatacommunities.org/id/london-borough-council/ealing,CHILDREN & ADULTS,1,SAFEGUARDING & SUPPORT - CIC,ELIGIBLE CHILDREN ACCOMMODATION,4281,,11/01/2023,23271845,3210.72,29552,DYNAMIC LIVING LTD
INSERTED DETAIL,,Ealing Council,http://opendatacommunities.org/id/london-borough-council/ealing,CHILDREN & ADULTS,1,SAFEGUARDING & SUPPORT - CIC,ELIGIBLE CHILDREN ACCOMMODATION,4281,,11/01/2023,23271845,553.57,29552,DYNAMIC LIVING LTD
INSERTED DETAIL,,Ealing Council,http://opendatacommunities.org/id/london-borough-council/ealing,CHILDREN & ADULTS,1,SAFEGUARDING & SUPPORT - CIC,ELIGIBLE CHILDREN ACCOMMODATION,4281,,11/01/2023,23271845,498.22,29552,DYNAMIC LIVING LTD
INSERTED DETAIL,,Ealing Council,http://opendatacommunities.org/id/london-borough-council/ealing,CHILDREN & ADULTS,1,SAFEGUARDING & SUPPORT - CIC,ELIGIBLE CHILDREN ACCOMMODATION,4281,,11/01/2023,23271851,1660.72,29636,RECOVERY HOMES 4 YOUNG PEOPLE T/A RH4
INSERTED DETAIL,,Ealing Council,http://opendatacommunities.org/id/london-borough-council/ealing,CHILDREN & ADULTS,1,SAFEGUARDING & SUPPORT - CIC,ELIGIBLE CHILDREN ACCOMMODATION,4281,,11/01/2023,23271851,3100,29636,RECOVERY HOMES 4 YOUNG PEOPLE T/A RH4
INSERTED DETAIL,,Ealing Council,http://opendatacommunities.org/id/london-borough-council/ealing,CHILDREN & ADULTS,1,SAFEGUARDING & SUPPORT - CIC,ELIGIBLE CHILDREN ACCOMMODATION,4281,,11/01/2023,23271868,332.15,29647,G&H CARE LIMITED
INSERTED DETAIL,,Ealing Council,http://opendatacommunities.org/id/london-borough-council/ealing,CHILDREN & ADULTS,1,SAFEGUARDING & SUPPORT - CIC,ELIGIBLE CHILDREN ACCOMMODATION,4281,,11/01/2023,23271868,1660.72,29647,G&H CARE LIMITED
INSERTED DETAIL,,Ealing Council,http://opendatacommunities.org/id/london-borough-council/ealing,CHILDREN & ADULTS,1,SAFEGUARDING & SUPPORT - CIC,ELIGIBLE CHILDREN ACCOMMODATION,4281,,11/01/2023,23271868,1771.43,29647,G&H CARE LIMITED
INSERTED DETAIL,,Ealing Council,http://opendatacommunities.org/id/london-borough-council/ealing,CHILDREN & ADULTS,1,SAFEGUARDING & SUPPORT - CIC,ELIGIBLE CHILDREN ACCOMMODATION,4281,,11/01/2023,23271868,442.85,29647,G&H CARE LIMITED
INSERTED DETAIL,,Ealing Council,http://opendatacommunities.org/id/london-borough-council/ealing,CHILDREN & ADULTS,1,SAFEGUARDING & SUPPORT - CIC,ELIGIBLE CHILDREN ACCOMMODATION,4281,,11/01/2023,23271868,270.37,29647,G&H CARE LIMITED
INSERTED DETAIL,,Ealing Council,http://opendatacommunities.org/id/london-borough-council/ealing,CHILDREN & ADULTS,1,SAFEGUARDING & SUPPORT - CIC,ELIGIBLE CHILDREN ACCOMMODATION,4281,,11/01/2023,23271868,664.28,29647,G&H CARE LIMITED
INSERTED DETAIL,,Ealing Council,http://opendatacommunities.org/id/london-borough-council/ealing,CHILDREN & ADULTS,1,SAFEGUARDING & SUPPORT - CIC,INDEPENDENT FOSTERING,4221,,11/01/2023,23271808,2481.53,29725,OUTSET FOSTERING AGENCY LTD
INSERTED DETAIL,,Ealing Council,http://opendatacommunities.org/id/london-borough-council/ealing,CHILDREN & ADULTS,1,SAFEGUARDING & SUPPORT - CIC,INDEPENDENT FOSTERING,4221,,11/01/2023,23271808,2387.9,29725,OUTSET FOSTERING AGENCY LTD
INSERTED DETAIL,,Ealing Council,http://opendatacommunities.org/id/london-borough-council/ealing,CHILDREN & ADULTS,1,SAFEGUARDING & SUPPORT - CIC,INDEPENDENT FOSTERING,4221,,11/01/2023,23271808,2556.45,29725,OUTSET FOSTERING AGENCY LTD
INSERTED DETAIL,,Ealing Council,http://opendatacommunities.org/id/london-borough-council/ealing,CHILDREN & ADULTS,1,SAFEGUARDING & SUPPORT - CIC,INDEPENDENT FOSTERING,4221,,11/01/2023,23271808,894.63,29725,OUTSET FOSTERING AGENCY LTD
INSERTED DETAIL,,Ealing Council,http://opendatacommunities.org/id/london-borough-council/ealing,CHILDREN & ADULTS,1,SAFEGUARDING & SUPPORT - CIC,INDEPENDENT FOSTERING,4221,,11/01/2023,23271811,3338.57,29744,LOTUS FOSTER CARE LTD
INSERTED DETAIL,,Ealing Council,http://opendatacommunities.org/id/london-borough-council/ealing,CHILDREN & ADULTS,1,SAFEGUARDING & SUPPORT - CIC,INDEPENDENT FOSTERING,4221,,11/01/2023,23271811,1032.43,29744,LOTUS FOSTER CARE LTD
INSERTED DETAIL,,Ealing Council,http://opendatacommunities.org/id/london-borough-council/ealing,CHILDREN & ADULTS,1,SAFEGUARDING & SUPPORT - CIC,ELIGIBLE CHILDREN ACCOMMODATION,4281,,11/01/2023,23271850,270.37,29509,CREATELIFE LIMITED T/A TRANSITIONS LIVING
INSERTED DETAIL,,Ealing Council,http://opendatacommunities.org/id/london-borough-council/ealing,CHILDREN & ADULTS,1,SAFEGUARDING & SUPPORT - CIC,ELIGIBLE CHILDREN ACCOMMODATION,4281,,11/01/2023,23271850,1992.85,29509,CREATELIFE LIMITED T/A TRANSITIONS LIVING
INSERTED DETAIL,,Ealing Council,http://opendatacommunities.org/id/london-borough-council/ealing,CHILDREN & ADULTS,1,SAFEGUARDING & SUPPORT - CIC,ELIGIBLE CHILDREN ACCOMMODATION,4281,,11/01/2023,23271850,664.28,29509,CREATELIFE LIMITED T/A TRANSITIONS LIVING
INSERTED DETAIL,,Ealing Council,http://opendatacommunities.org/id/london-borough-council/ealing,CHILDREN & ADULTS,1,SAFEGUARDING & SUPPORT - CIC,ELIGIBLE CHILDREN ACCOMMODATION,4281,,11/01/2023,23271850,885.72,29509,CREATELIFE LIMITED T/A TRANSITIONS LIVING
INSERTED DETAIL,,Ealing Council,http://opendatacommunities.org/id/london-borough-council/ealing,CHILDREN & ADULTS,1,SAFEGUARDING & SUPPORT - CIC,ELIGIBLE CHILDREN ACCOMMODATION,4281,,11/01/2023,23271807,3720,29707,ALLBETTER CARE LTD
INSERTED DETAIL,,Ealing Council,http://opendatacommunities.org/id/london-borough-council/ealing,CHILDREN & ADULTS,1,SAFEGUARDING & SUPPORT - CIC,ELIGIBLE CHILDREN ACCOMMODATION,4281,,11/01/2023,23271807,270.37,29707,ALLBETTER CARE LTD
INSERTED DETAIL,,Ealing Council,http://opendatacommunities.org/id/london-borough-council/ealing,CHILDREN & ADULTS,1,SAFEGUARDING & SUPPORT - CIC,ELIGIBLE CHILDREN ACCOMMODATION,4281,,11/01/2023,23271807,1107.15,29707,ALLBETTER CARE LTD
INSERTED DETAIL,,Ealing Council,http://opendatacommunities.org/id/london-borough-council/ealing,CHILDREN & ADULTS,1,SAFEGUARDING & SUPPORT - CIC,ELIGIBLE CHILDREN ACCOMMODATION,4281,,11/01/2023,23271807,3764.28,29707,ALLBETTER CARE LTD
INSERTED DETAIL,,Ealing Council,http://opendatacommunities.org/id/london-borough-council/ealing,CHILDREN & ADULTS,1,SAFEGUARDING & SUPPORT - CIC,ELIGIBLE CHILDREN ACCOMMODATION,4281,,11/01/2023,23271807,13542.86,29707,ALLBETTER CARE LTD
INSERTED DETAIL,,Ealing Council,http://opendatacommunities.org/id/london-borough-council/ealing,CHILDREN & ADULTS,1,SAFEGUARDING & SUPPORT - CIC,ELIGIBLE CHILDREN ACCOMMODATION,4281,,11/01/2023,23271807,21442.86,29707,ALLBETTER CARE LTD
INSERTED DETAIL,,Ealing Council,http://opendatacommunities.org/id/london-borough-council/ealing,CHILDREN & ADULTS,1,SAFEGUARDING & SUPPORT - CIC,ELIGIBLE CHILDREN ACCOMMODATION,4281,,11/01/2023,23271807,2214.28,29707,ALLBETTER CARE LTD
INSERTED DETAIL,,Ealing Council,http://opendatacommunities.org/id/london-borough-council/ealing,CHILDREN & ADULTS,1,SAFEGUARDING & SUPPORT - CIC,INDEPENDENT FOSTERING,4221,,11/01/2023,23271809,5980,29734,STEPPING STONES FOSTERING LTD
INSERTED DETAIL,,Ealing Council,http://opendatacommunities.org/id/london-borough-council/ealing,CHILDREN & ADULTS,1,SAFEGUARDING & SUPPORT - CIC,ELIGIBLE CHILDREN ACCOMMODATION,4281,,11/01/2023,23271886,265.72,29809,THE PHOENIX HUB LTD
INSERTED DETAIL,,Ealing Council,http://opendatacommunities.org/id/london-borough-council/ealing,CHILDREN & ADULTS,1,SAFEGUARDING & SUPPORT - CIC,ELIGIBLE CHILDREN ACCOMMODATION,4281,,11/01/2023,23271886,1240,29809,THE PHOENIX HUB LTD
INSERTED DETAIL,,Ealing Council,http://opendatacommunities.org/id/london-borough-council/ealing,CHILDREN & ADULTS,1,SAFEGUARDING & SUPPORT - CIC,ELIGIBLE CHILDREN ACCOMMODATION,4281,,11/01/2023,23271886,442.85,29809,THE PHOENIX HUB LTD
INSERTED DETAIL,,Ealing Council,http://opendatacommunities.org/id/london-borough-council/ealing,CHILDREN & ADULTS,1,SAFEGUARDING & SUPPORT - CIC,ELIGIBLE CHILDREN ACCOMMODATION,4281,,11/01/2023,23271886,310,29809,THE PHOENIX HUB LTD
INSERTED DETAIL,,Ealing Council,http://opendatacommunities.org/id/london-borough-council/ealing,CHILDREN & ADULTS,1,SAFEGUARDING & SUPPORT - CIC,ELIGIBLE CHILDREN ACCOMMODATION,4281,,11/01/2023,23271886,1062.85,29809,THE PHOENIX HUB LTD
INSERTED DETAIL,,Ealing Council,http://opendatacommunities.org/id/london-borough-council/ealing,CHILDREN & ADULTS,1,SAFEGUARDING & SUPPORT - CIC,ELIGIBLE CHILDREN ACCOMMODATION,4281,,11/01/2023,23271891,645.82,29866,ELEVATE CARE HOMES LTD
INSERTED DETAIL,,Ealing Council,http://opendatacommunities.org/id/london-borough-council/ealing,CHILDREN & ADULTS,1,SAFEGUARDING & SUPPORT - CIC,ELIGIBLE CHILDREN ACCOMMODATION,4281,,11/01/2023,23271891,3081.35,29866,ELEVATE CARE HOMES LTD
INSERTED DETAIL,,Ealing Council,http://opendatacommunities.org/id/london-borough-council/ealing,CHILDREN & ADULTS,1,SAFEGUARDING & SUPPORT - CIC,ELIGIBLE CHILDREN ACCOMMODATION,4281,,11/01/2023,23271891,333.32,29866,ELEVATE CARE HOMES LTD
INSERTED DETAIL,,Ealing Council,http://opendatacommunities.org/id/london-borough-council/ealing,CHILDREN & ADULTS,1,SAFEGUARDING & SUPPORT - CIC,ELIGIBLE CHILDREN ACCOMMODATION,4281,,12/01/2023,23272689,452.82,29879,4Cs CARE LIMITED
INSERTED DETAIL,,Ealing Council,http://opendatacommunities.org/id/london-borough-council/ealing,CHILDREN & ADULTS,1,SAFEGUARDING & SUPPORT - CIC,ELIGIBLE CHILDREN ACCOMMODATION,4281,,12/01/2023,23272689,1581.85,29879,4Cs CARE LIMITED
INSERTED DETAIL,,Ealing Council,http://opendatacommunities.org/id/london-borough-council/ealing,CHILDREN & ADULTS,1,SAFEGUARDING & SUPPORT - CIC,ELIGIBLE CHILDREN ACCOMMODATION,4281,,12/01/2023,23272689,2292.31,29879,4Cs CARE LIMITED
INSERTED DETAIL,,Ealing Council,http://opendatacommunities.org/id/london-borough-council/ealing,CHILDREN & ADULTS,1,SAFEGUARDING & SUPPORT - CIC,ELIGIBLE CHILDREN ACCOMMODATION,4281,,14/12/2022,23271930,651.36,29947,EMLEA PROPERTY SERVICES
INSERTED DETAIL,,Ealing Council,http://opendatacommunities.org/id/london-borough-council/ealing,CHILDREN & ADULTS,1,SAFEGUARDING & SUPPORT - CIC,ELIGIBLE CHILDREN ACCOMMODATION,4281,,14/12/2022,23271930,651.36,29947,EMLEA PROPERTY SERVICES
INSERTED DETAIL,,Ealing Council,http://opendatacommunities.org/id/london-borough-council/ealing,CHILDREN & ADULTS,1,SAFEGUARDING & SUPPORT - CIC,ELIGIBLE CHILDREN ACCOMMODATION,4281,,14/12/2022,23271930,597.08,29947,EMLEA PROPERTY SERVICES
INSERTED DETAIL,,Ealing Council,http://opendatacommunities.org/id/london-borough-council/ealing,CHILDREN & ADULTS,1,SAFEGUARDING & SUPPORT - CIC,ELIGIBLE CHILDREN ACCOMMODATION,4281,,03/01/2023,23271930,841.34,29947,EMLEA PROPERTY SERVICES
INSERTED DETAIL,,Ealing Council,http://opendatacommunities.org/id/london-borough-council/ealing,CHILDREN & ADULTS,1,SAFEGUARDING & SUPPORT - CIC,ELIGIBLE CHILDREN ACCOMMODATION,4281,,03/01/2023,23271930,841.34,29947,EMLEA PROPERTY SERVICES
INSERTED DETAIL,,Ealing Council,http://opendatacommunities.org/id/london-borough-council/ealing,CHILDREN & ADULTS,1,SAFEGUARDING & SUPPORT - CIC,ELIGIBLE CHILDREN ACCOMMODATION,4281,,03/01/2023,23271930,841.34,29947,EMLEA PROPERTY SERVICES
INSERTED DETAIL,,Ealing Council,http://opendatacommunities.org/id/london-borough-council/ealing,CHILDREN & ADULTS,1,SAFEGUARDING & SUPPORT - CIC,ELIGIBLE CHILDREN ACCOMMODATION,4281,,03/01/2023,23271930,841.34,29947,EMLEA PROPERTY SERVICES
INSERTED DETAIL,,Ealing Council,http://opendatacommunities.org/id/london-borough-council/ealing,CHILDREN & ADULTS,1,SAFEGUARDING & SUPPORT - CIC,ELIGIBLE CHILDREN ACCOMMODATION,4281,,11/01/2023,23271876,12960,29777,VINE SUPPORT SERVICES LTD
INSERTED DETAIL,,Ealing Council,http://opendatacommunities.org/id/london-borough-council/ealing,CHILDREN & ADULTS,1,SAFEGUARDING & SUPPORT - CIC,ELIGIBLE CHILDREN ACCOMMODATION,4281,,11/01/2023,23271865,3100,29777,VINE SUPPORT SERVICES LTD
INSERTED DETAIL,,Ealing Council,http://opendatacommunities.org/id/london-borough-council/ealing,CHILDREN & ADULTS,1,SAFEGUARDING & SUPPORT - CIC,ELIGIBLE CHILDREN ACCOMMODATION,4281,,11/01/2023,23271865,885.72,29777,VINE SUPPORT SERVICES LTD
INSERTED DETAIL,,Ealing Council,http://opendatacommunities.org/id/london-borough-council/ealing,CHILDREN & ADULTS,1,SAFEGUARDING & SUPPORT - CIC,ELIGIBLE CHILDREN ACCOMMODATION,4281,,11/01/2023,23271865,270.37,29777,VINE SUPPORT SERVICES LTD
INSERTED DETAIL,,Ealing Council,http://opendatacommunities.org/id/london-borough-council/ealing,CHILDREN & ADULTS,1,SAFEGUARDING & SUPPORT - CIC,ELIGIBLE CHILDREN ACCOMMODATION,4281,,11/01/2023,23271865,1107.15,29777,VINE SUPPORT SERVICES LTD
INSERTED DETAIL,,Ealing Council,http://opendatacommunities.org/id/london-borough-council/ealing,CHILDREN & ADULTS,1,SAFEGUARDING & SUPPORT - CIC,ELIGIBLE CHILDREN ACCOMMODATION,4281,,11/01/2023,23271865,270.37,29777,VINE SUPPORT SERVICES LTD
INSERTED DETAIL,,Ealing Council,http://opendatacommunities.org/id/london-borough-council/ealing,CHILDREN & ADULTS,1,SAFEGUARDING & SUPPORT - CIC,ELIGIBLE CHILDREN ACCOMMODATION,4281,,11/01/2023,23271865,2657.15,29777,VINE SUPPORT SERVICES LTD
INSERTED DETAIL,,Ealing Council,http://opendatacommunities.org/id/london-borough-council/ealing,CHILDREN & ADULTS,1,SAFEGUARDING & SUPPORT - CIC,RESIDENTIAL HOMES EXTERNAL,4220,,11/01/2023,23271812,2312.07,29867,INSTITUTE OF INTEGRATED SYSTEMIC THERAPY T/A CHILDHOOD FIRST
INSERTED DETAIL,,Ealing Council,http://opendatacommunities.org/id/london-borough-council/ealing,CHILDREN & ADULTS,1,SAFEGUARDING & SUPPORT - CIC,RESIDENTIAL HOMES EXTERNAL,4220,,11/01/2023,23271812,17296.23,29867,INSTITUTE OF INTEGRATED SYSTEMIC THERAPY T/A CHILDHOOD FIRST
INSERTED DETAIL,,Ealing Council,http://opendatacommunities.org/id/london-borough-council/ealing,CHILDREN & ADULTS,1,SAFEGUARDING & SUPPORT - CIC,ELIGIBLE CHILDREN OTHER COSTS,4282,,11/01/2023,23271812,9248.28,29867,INSTITUTE OF INTEGRATED SYSTEMIC THERAPY T/A CHILDHOOD FIRST
INSERTED DETAIL,,Ealing Council,http://opendatacommunities.org/id/london-borough-council/ealing,CHILDREN & ADULTS,1,SAFEGUARDING & SUPPORT - CIC,INDEPENDENT FOSTERING,4221,,11/01/2023,23271783,8595.85,28564,PARENT AND CHILD FOSTERING ASSESSMENTS (PCFA)
INSERTED DETAIL,,Ealing Council,http://opendatacommunities.org/id/london-borough-council/ealing,CHILDREN & ADULTS,1,SAFEGUARDING & SUPPORT - CIC,INDEPENDENT FOSTERING,4221,,11/01/2023,23271783,9233.57,28564,PARENT AND CHILD FOSTERING ASSESSMENTS (PCFA)
INSERTED DETAIL,,Ealing Council,http://opendatacommunities.org/id/london-borough-council/ealing,CHILDREN & ADULTS,1,SAFEGUARDING & SUPPORT - CIC,INDEPENDENT FOSTERING,4221,,11/01/2023,23271790,3105,21439,NETWORK VENTURES LTD - NURTURE FOSTERING LTD
INSERTED DETAIL,,Ealing Council,http://opendatacommunities.org/id/london-borough-council/ealing,CHILDREN & ADULTS,1,SAFEGUARDING & SUPPORT - CIC,INDEPENDENT FOSTERING,4221,,11/01/2023,23271790,5427.22,21439,NETWORK VENTURES LTD - NURTURE FOSTERING LTD
INSERTED DETAIL,,Ealing Council,http://opendatacommunities.org/id/london-borough-council/ealing,CHILDREN & ADULTS,1,SAFEGUARDING & SUPPORT - CIC,INDEPENDENT FOSTERING,4221,,11/01/2023,23271771,6731.43,29297,MOSAIC FOSTER CARE LIMITED
INSERTED DETAIL,,Ealing Council,http://opendatacommunities.org/id/london-borough-council/ealing,CHILDREN & ADULTS,1,EALING SERVICE FOR CHILDREN WITH ADDITIONAL NEEDS,DIRECT PAYMENTS,4231,,12/01/2023,23272684,-3303.84,80764,CARE IN FINANCE LTD
INSERTED DETAIL,,Ealing Council,http://opendatacommunities.org/id/london-borough-council/ealing,CHILDREN & ADULTS,1,EALING SERVICE FOR CHILDREN WITH ADDITIONAL NEEDS,DIRECT PAYMENTS,4231,,12/01/2023,23272684,4021.44,80764,CARE IN FINANCE LTD
INSERTED DETAIL,,Ealing Council,http://opendatacommunities.org/id/london-borough-council/ealing,CHILDREN & ADULTS,1,EALING SERVICE FOR CHILDREN WITH ADDITIONAL NEEDS,DIRECT PAYMENTS,4231,,12/01/2023,23272684,-8982.64,80764,CARE IN FINANCE LTD
INSERTED DETAIL,,Ealing Council,http://opendatacommunities.org/id/london-borough-council/ealing,CHILDREN & ADULTS,1,EALING SERVICE FOR CHILDREN WITH ADDITIONAL NEEDS,DIRECT PAYMENTS,4231,,12/01/2023,23272684,-1953.91,80764,CARE IN FINANCE LTD
INSERTED DETAIL,,Ealing Council,http://opendatacommunities.org/id/london-borough-council/ealing,CHILDREN & ADULTS,1,EALING SERVICE FOR CHILDREN WITH ADDITIONAL NEEDS,DIRECT PAYMENTS,4231,,12/01/2023,23272684,8982.64,80764,CARE IN FINANCE LTD
INSERTED DETAIL,,Ealing Council,http://opendatacommunities.org/id/london-borough-council/ealing,CHILDREN & ADULTS,1,EALING SERVICE FOR CHILDREN WITH ADDITIONAL NEEDS,DIRECT PAYMENTS,4231,,12/01/2023,23272684,4585.56,80764,CARE IN FINANCE LTD
INSERTED DETAIL,,Ealing Council,http://opendatacommunities.org/id/london-borough-council/ealing,CHILDREN & ADULTS,1,EALING SERVICE FOR CHILDREN WITH ADDITIONAL NEEDS,DIRECT PAYMENTS,4231,,12/01/2023,23272684,-260.16,80764,CARE IN FINANCE LTD
INSERTED DETAIL,,Ealing Council,http://opendatacommunities.org/id/london-borough-council/ealing,CHILDREN & ADULTS,1,EALING SERVICE FOR CHILDREN WITH ADDITIONAL NEEDS,DIRECT PAYMENTS,4231,,12/01/2023,23272684,-475.04,80764,CARE IN FINANCE LTD
INSERTED DETAIL,,Ealing Council,http://opendatacommunities.org/id/london-borough-council/ealing,CHILDREN & ADULTS,1,EALING SERVICE FOR CHILDREN WITH ADDITIONAL NEEDS,DIRECT PAYMENTS,4231,,12/01/2023,23272684,260.16,80764,CARE IN FINANCE LTD
INSERTED DETAIL,,Ealing Council,http://opendatacommunities.org/id/london-borough-council/ealing,CHILDREN & ADULTS,1,EALING SERVICE FOR CHILDREN WITH ADDITIONAL NEEDS,DIRECT PAYMENTS,4231,,12/01/2023,23272684,475.04,80764,CARE IN FINANCE LTD
INSERTED DETAIL,,Ealing Council,http://opendatacommunities.org/id/london-borough-council/ealing,CHILDREN & ADULTS,1,EALING SERVICE FOR CHILDREN WITH ADDITIONAL NEEDS,DIRECT PAYMENTS,4231,,24/01/2023,23274453,921.4,80764,CARE IN FINANCE LTD
INSERTED DETAIL,,Ealing Council,http://opendatacommunities.org/id/london-borough-council/ealing,CHILDREN & ADULTS,1,EALING SERVICE FOR CHILDREN WITH ADDITIONAL NEEDS,DIRECT PAYMENTS,4231,,24/01/2023,23274453,293.16,80764,CARE IN FINANCE LTD
INSERTED DETAIL,,Ealing Council,http://opendatacommunities.org/id/london-borough-council/ealing,CHILDREN & ADULTS,1,EALING SERVICE FOR CHILDREN WITH ADDITIONAL NEEDS,DIRECT PAYMENTS,4231,,04/01/2023,23269527,-6273.84,80764,CARE IN FINANCE LTD
INSERTED DETAIL,,Ealing Council,http://opendatacommunities.org/id/london-borough-council/ealing,CHILDREN & ADULTS,1,EALING SERVICE FOR CHILDREN WITH ADDITIONAL NEEDS,DIRECT PAYMENTS,4231,,04/01/2023,23269527,1121.14,80764,CARE IN FINANCE LTD
INSERTED DETAIL,,Ealing Council,http://opendatacommunities.org/id/london-borough-council/ealing,CHILDREN & ADULTS,1,EALING SERVICE FOR CHILDREN WITH ADDITIONAL NEEDS,DIRECT PAYMENTS,4231,,04/01/2023,23269527,6922.92,80764,CARE IN FINANCE LTD
INSERTED DETAIL,,Ealing Council,http://opendatacommunities.org/id/london-borough-council/ealing,CHILDREN & ADULTS,1,EALING SERVICE FOR CHILDREN WITH ADDITIONAL NEEDS,DIRECT PAYMENTS,4231,,25/01/2023,23274838,813.2,80764,CARE IN FINANCE LTD
INSERTED DETAIL,,Ealing Council,http://opendatacommunities.org/id/london-borough-council/ealing,CHILDREN & ADULTS,1,EALING SERVICE FOR CHILDREN WITH ADDITIONAL NEEDS,DIRECT PAYMENTS,4231,,25/01/2023,23274838,937.64,80764,CARE IN FINANCE LTD
INSERTED DETAIL,,Ealing Council,http://opendatacommunities.org/id/london-borough-council/ealing,CHILDREN & ADULTS,1,EALING SERVICE FOR CHILDREN WITH ADDITIONAL NEEDS,DIRECT PAYMENTS,4231,,25/01/2023,23274838,627.84,80764,CARE IN FINANCE LTD
INSERTED DETAIL,,Ealing Council,http://opendatacommunities.org/id/london-borough-council/ealing,CHILDREN & ADULTS,1,EALING SERVICE FOR CHILDREN WITH ADDITIONAL NEEDS,DIRECT PAYMENTS,4231,,25/01/2023,23274838,1084,80764,CARE IN FINANCE LTD
INSERTED DETAIL,,Ealing Council,http://opendatacommunities.org/id/london-borough-council/ealing,CHILDREN & ADULTS,1,EALING SERVICE FOR CHILDREN WITH ADDITIONAL NEEDS,DIRECT PAYMENTS,4231,,25/01/2023,23274838,2059.6,80764,CARE IN FINANCE LTD
INSERTED DETAIL,,Ealing Council,http://opendatacommunities.org/id/london-borough-council/ealing,CHILDREN & ADULTS,1,EALING SERVICE FOR CHILDREN WITH ADDITIONAL NEEDS,DIRECT PAYMENTS,4231,,25/01/2023,23274838,310.24,80764,CARE IN FINANCE LTD
INSERTED DETAIL,,Ealing Council,http://opendatacommunities.org/id/london-borough-council/ealing,CHILDREN & ADULTS,1,EALING SERVICE FOR CHILDREN WITH ADDITIONAL NEEDS,DIRECT PAYMENTS,4231,,25/01/2023,23274838,613.28,80764,CARE IN FINANCE LTD
INSERTED DETAIL,,Ealing Council,http://opendatacommunities.org/id/london-borough-council/ealing,CHILDREN & ADULTS,1,EALING SERVICE FOR CHILDREN WITH ADDITIONAL NEEDS,DIRECT PAYMENTS,4231,,25/01/2023,23274838,548.84,80764,CARE IN FINANCE LTD
INSERTED DETAIL,,Ealing Council,http://opendatacommunities.org/id/london-borough-council/ealing,CHILDREN & ADULTS,1,EALING SERVICE FOR CHILDREN WITH ADDITIONAL NEEDS,DIRECT PAYMENTS,4231,,25/01/2023,23274838,325.2,80764,CARE IN FINANCE LTD
INSERTED DETAIL,,Ealing Council,http://opendatacommunities.org/id/london-borough-council/ealing,CHILDREN & ADULTS,1,EALING SERVICE FOR CHILDREN WITH ADDITIONAL NEEDS,DIRECT PAYMENTS,4231,,25/01/2023,23274838,5266.88,80764,CARE IN FINANCE LTD
INSERTED DETAIL,,Ealing Council,http://opendatacommunities.org/id/london-borough-council/ealing,CHILDREN & ADULTS,1,EALING SERVICE FOR CHILDREN WITH ADDITIONAL NEEDS,DIRECT PAYMENTS,4231,,25/01/2023,23274838,900,80764,CARE IN FINANCE LTD
INSERTED DETAIL,,Ealing Council,http://opendatacommunities.org/id/london-borough-council/ealing,CHILDREN & ADULTS,1,EALING SERVICE FOR CHILDREN WITH ADDITIONAL NEEDS,DIRECT PAYMENTS,4231,,25/01/2023,23274838,1967.16,80764,CARE IN FINANCE LTD
INSERTED DETAIL,,Ealing Council,http://opendatacommunities.org/id/london-borough-council/ealing,CHILDREN & ADULTS,1,EALING SERVICE FOR CHILDREN WITH ADDITIONAL NEEDS,DIRECT PAYMENTS,4231,,25/01/2023,23274838,301.48,80764,CARE IN FINANCE LTD
INSERTED DETAIL,,Ealing Council,http://opendatacommunities.org/id/london-borough-council/ealing,CHILDREN & ADULTS,1,EALING SERVICE FOR CHILDREN WITH ADDITIONAL NEEDS,DIRECT PAYMENTS,4231,,25/01/2023,23274838,1533.92,80764,CARE IN FINANCE LTD
INSERTED DETAIL,,Ealing Council,http://opendatacommunities.org/id/london-borough-council/ealing,CHILDREN & ADULTS,1,EALING SERVICE FOR CHILDREN WITH ADDITIONAL NEEDS,DIRECT PAYMENTS,4231,,25/01/2023,23274838,598.72,80764,CARE IN FINANCE LTD
INSERTED DETAIL,,Ealing Council,http://opendatacommunities.org/id/london-borough-council/ealing,CHILDREN & ADULTS,1,EALING SERVICE FOR CHILDREN WITH ADDITIONAL NEEDS,DIRECT PAYMENTS,4231,,25/01/2023,23274838,274.44,80764,CARE IN FINANCE LTD
INSERTED DETAIL,,Ealing Council,http://opendatacommunities.org/id/london-borough-council/ealing,CHILDREN & ADULTS,1,EALING SERVICE FOR CHILDREN WITH ADDITIONAL NEEDS,DIRECT PAYMENTS,4231,,25/01/2023,23274838,325.2,80764,CARE IN FINANCE LTD
INSERTED DETAIL,,Ealing Council,http://opendatacommunities.org/id/london-borough-council/ealing,CHILDREN & ADULTS,1,SAFEGUARDING & SUPP - BS &A&F,CASH COLLECTION CHARGES,2770,,10/11/2022,41044279,650,23040,ALLPAY.NET
INSERTED DETAIL,,Ealing Council,http://opendatacommunities.org/id/london-borough-council/ealing,PLACE,6,PARKING,PAYMENTS TO CONTRACTORS,4000,,31/12/2022,41046850,14206.8,22712,Paybyphone - VERRUS (UK) LTD
INSERTED DETAIL,,Ealing Council,http://opendatacommunities.org/id/london-borough-council/ealing,PLACE,6,PARKING,PAYMENTS TO CONTRACTORS,4000,,17/05/2022,41045609,12904.83,22712,Paybyphone - VERRUS (UK) LTD
INSERTED DETAIL,,Ealing Council,http://opendatacommunities.org/id/london-borough-council/ealing,PLACE,6,PARKING,PAYMENTS TO CONTRACTORS,4000,,31/05/2022,41045611,12244.6,22712,Paybyphone - VERRUS (UK) LTD
INSERTED DETAIL,,Ealing Council,http://opendatacommunities.org/id/london-borough-council/ealing,PLACE,6,PARKING,PAYMENTS TO CONTRACTORS,4000,,30/06/2022,41045613,10192.06,22712,Paybyphone - VERRUS (UK) LTD
INSERTED DETAIL,,Ealing Council,http://opendatacommunities.org/id/london-borough-council/ealing,PLACE,6,PARKING,PAYMENTS TO CONTRACTORS,4000,,31/07/2022,41045615,10868.43,22712,Paybyphone - VERRUS (UK) LTD
INSERTED DETAIL,,Ealing Council,http://opendatacommunities.org/id/london-borough-council/ealing,PLACE,6,PARKING,PAYMENTS TO CONTRACTORS,4000,,31/08/2022,41045618,10007.7,22712,Paybyphone - VERRUS (UK) LTD
INSERTED DETAIL,,Ealing Council,http://opendatacommunities.org/id/london-borough-council/ealing,PLACE,6,PARKING,PAYMENTS TO CONTRACTORS,4000,,30/09/2022,41045621,11491.16,22712,Paybyphone - VERRUS (UK) LTD
INSERTED DETAIL,,Ealing Council,http://opendatacommunities.org/id/london-borough-council/ealing,PLACE,6,PARKING,PAYMENTS TO CONTRACTORS,4000,,31/10/2022,41045622,15686.86,22712,Paybyphone - VERRUS (UK) LTD
INSERTED DETAIL,,Ealing Council,http://opendatacommunities.org/id/london-borough-council/ealing,PLACE,6,PARKING,PAYMENTS TO CONTRACTORS,4000,,30/11/2022,41045624,15632.97,22712,Paybyphone - VERRUS (UK) LTD
INSERTED DETAIL,,Ealing Council,http://opendatacommunities.org/id/london-borough-council/ealing,PLACE,6,HIGHWAYS,PAYMENTS TO CONTRACTORS,4000,,01/01/2023,41046381,3167.44,26979,XAIS ASSET MANAGEMENT LTD
INSERTED DETAIL,,Ealing Council,http://opendatacommunities.org/id/london-borough-council/ealing,PLACE,6,HIGHWAYS,CONTRACT PAYMENTS -HIGHWAYS,4005,,21/12/2022,41044875,80322.8,13593,MURRILL CONSTRUCTION LIMITED
INSERTED DETAIL,,Ealing Council,http://opendatacommunities.org/id/london-borough-council/ealing,PLACE,6,HIGHWAYS,CONTRACT PAYMENTS -HIGHWAYS,4005,,10/01/2023,41045492,92673.06,13593,MURRILL CONSTRUCTION LIMITED
INSERTED DETAIL,,Ealing Council,http://opendatacommunities.org/id/london-borough-council/ealing,PLACE,6,ECONOMIC GROWTH,PAYMENTS TO CONTRACTORS,4000,,19/10/2022,41046923,9100,9900017,RCU LIMITED
INSERTED DETAIL,,Ealing Council,http://opendatacommunities.org/id/london-borough-council/ealing,PLACE,6,ECONOMIC GROWTH,PAYMENTS TO CONTRACTORS,4000,,31/12/2022,41044197,3000,25174,BLACKSTOCK PARTNERSHIP LIMITED
INSERTED DETAIL,,Ealing Council,http://opendatacommunities.org/id/london-borough-council/ealing,PLACE,6,HOUSING BUSINESS PLANNING,RENTS,1200,,31/12/2022,41045992,964.47,23040,ALLPAY.NET
INSERTED DETAIL,,Ealing Council,http://opendatacommunities.org/id/london-borough-council/ealing,PLACE,6,HOUSING BUSINESS PLANNING,RENTS,1200,,31/12/2022,41046002,2393.14,23040,ALLPAY.NET
INSERTED DETAIL,,Ealing Council,http://opendatacommunities.org/id/london-borough-council/ealing,PLACE,6,HOUSING BUSINESS PLANNING,SUBSCRIPTIONS,3600,,20/12/2022,41044845,2750,10000108,HOUSING FINANCE ASSOCIATES LTD
INSERTED DETAIL,,Ealing Council,http://opendatacommunities.org/id/london-borough-council/ealing,PLACE,6,HOUSING BUSINESS PLANNING,TRAINING EXPENSES,80,,14/12/2022,41045051,6000,9900017,INFLUENTIAL SOFTWARE SERVICES LTD
INSERTED DETAIL,,Ealing Council,http://opendatacommunities.org/id/london-borough-council/ealing,PLACE,6,HOUSING PROPERTY & ASSETS,REPAIR AND MAINTENANCE,1410,,17/01/2023,41047454,4105.71,27319,EVANS AND BROOKS FIRE LTD
INSERTED DETAIL,,Ealing Council,http://opendatacommunities.org/id/london-borough-council/ealing,PLACE,6,HOUSING PROPERTY & ASSETS,REPAIR AND MAINTENANCE,1410,,17/01/2023,41047969,6374.15,27319,EVANS AND BROOKS FIRE LTD
INSERTED DETAIL,,Ealing Council,http://opendatacommunities.org/id/london-borough-council/ealing,PLACE,6,HOUSING PROPERTY & ASSETS,REPAIR AND MAINTENANCE,1410,,17/01/2023,41048150,6283,27319,EVANS AND BROOKS FIRE LTD
INSERTED DETAIL,,Ealing Council,http://opendatacommunities.org/id/london-borough-council/ealing,PLACE,6,HOUSING PROPERTY & ASSETS,REPAIR AND MAINTENANCE,1410,,17/01/2023,41047448,5894.3,27319,EVANS AND BROOKS FIRE LTD
INSERTED DETAIL,,Ealing Council,http://opendatacommunities.org/id/london-borough-council/ealing,PLACE,6,HOUSING PROPERTY & ASSETS,REPAIR AND MAINTENANCE,1410,,17/01/2023,41047451,4466.75,27319,EVANS AND BROOKS FIRE LTD
INSERTED DETAIL,,Ealing Council,http://opendatacommunities.org/id/london-borough-council/ealing,PLACE,6,HOUSING PROPERTY & ASSETS,CIS REPAIRS AND MAINTENANCE,1411,,18/01/2023,41048148,1899,27319,EVANS AND BROOKS FIRE LTD
INSERTED DETAIL,,Ealing Council,http://opendatacommunities.org/id/london-borough-council/ealing,PLACE,6,RESIDENT SERVICES,PAYMENTS TO CONTRACTORS,4000,,18/12/2022,41044585,330,28912,REDACTED SENSITIVE SUPPLIER
INSERTED DETAIL,,Ealing Council,http://opendatacommunities.org/id/london-borough-council/ealing,PLACE,6,RESIDENT SERVICES,PAYMENTS TO CONTRACTORS,4000,,09/12/2022,41044148,1180,28912,REDACTED SENSITIVE SUPPLIER
INSERTED DETAIL,,Ealing Council,http://opendatacommunities.org/id/london-borough-council/ealing,PLACE,6,RESIDENT SERVICES,PAYMENTS TO CONTRACTORS,4000,,28/12/2022,41045424,440,28912,REDACTED SENSITIVE SUPPLIER
INSERTED DETAIL,,Ealing Council,http://opendatacommunities.org/id/london-borough-council/ealing,PLACE,6,RESIDENT SERVICES,PAYMENTS TO CONTRACTORS,4000,,10/01/2023,41046519,430,28912,REDACTED SENSITIVE SUPPLIER
INSERTED DETAIL,,Ealing Council,http://opendatacommunities.org/id/london-borough-council/ealing,PLACE,6,RESIDENT SERVICES,PAYMENTS TO CONTRACTORS,4000,,30/12/2022,41045635,1000,28712,RIGHTMOVE GROUP LIMITED
INSERTED DETAIL,,Ealing Council,http://opendatacommunities.org/id/london-borough-council/ealing,PLACE,6,HRA HOUSING DEVELOPMENT,TRAINING EXPENSES,80,,01/12/2022,41044796,5134.42,24148,Shelton Development Services Ltd
INSERTED DETAIL,,Ealing Council,http://opendatacommunities.org/id/london-borough-council/ealing,PLACE,6,HRA HOUSING DEVELOPMENT,TRAINING MATERIALS,3350,,27/07/2022,41044782,21190.23,24148,Shelton Development Services Ltd
INSERTED DETAIL,,Ealing Council,http://opendatacommunities.org/id/london-borough-council/ealing,PLACE,6,HRA HOUSING DEVELOPMENT,Services Contracts Agency Interim Consultants,2970,,29/07/2022,41044660,10000,29956,CPC PROJECT SERVICES LLP
INSERTED DETAIL,,Ealing Council,http://opendatacommunities.org/id/london-borough-council/ealing,PLACE,6,HRA HOUSING DEVELOPMENT,Services Contracts Agency Interim Consultants,2970,,30/09/2022,41044663,6270,29956,CPC PROJECT SERVICES LLP
INSERTED DETAIL,,Ealing Council,http://opendatacommunities.org/id/london-borough-council/ealing,PLACE,6,HOUSING BUSINESS PLANNING,RESIDENTS PARTICIPATION,2550,,30/01/2023,41048470,300,9900017,GOOD NEIGHBOURS COMMUNITY GROUP
INSERTED DETAIL,,Ealing Council,http://opendatacommunities.org/id/london-borough-council/ealing,PLACE,6,HOUSING BUSINESS PLANNING,RESIDENTS PARTICIPATION,2550,,30/01/2023,41048472,300,9900017,PENIOAKS TENANTS ASSOCIATION
INSERTED DETAIL,,Ealing Council,http://opendatacommunities.org/id/london-borough-council/ealing,CHILDREN & ADULTS,1,EALING SERVICE FOR CHILDREN WITH ADDITIONAL NEEDS,DIRECT PAYMENTS,4231,,25/01/2023,23274838,650.4,80764,CARE IN FINANCE LTD
INSERTED DETAIL,,Ealing Council,http://opendatacommunities.org/id/london-borough-council/ealing,CHILDREN & ADULTS,1,EALING SERVICE FOR CHILDREN WITH ADDITIONAL NEEDS,DIRECT PAYMENTS,4231,,25/01/2023,23274838,569.64,80764,CARE IN FINANCE LTD
INSERTED DETAIL,,Ealing Council,http://opendatacommunities.org/id/london-borough-council/ealing,CHILDREN & ADULTS,1,EALING SERVICE FOR CHILDREN WITH ADDITIONAL NEEDS,DIRECT PAYMENTS,4231,,25/01/2023,23274838,501.04,80764,CARE IN FINANCE LTD
INSERTED DETAIL,,Ealing Council,http://opendatacommunities.org/id/london-borough-council/ealing,CHILDREN & ADULTS,1,EALING SERVICE FOR CHILDREN WITH ADDITIONAL NEEDS,DIRECT PAYMENTS,4231,,25/01/2023,23274838,596.2,80764,CARE IN FINANCE LTD
INSERTED DETAIL,,Ealing Council,http://opendatacommunities.org/id/london-borough-council/ealing,CHILDREN & ADULTS,1,EALING SERVICE FOR CHILDREN WITH ADDITIONAL NEEDS,DIRECT PAYMENTS,4231,,25/01/2023,23274838,956.36,80764,CARE IN FINANCE LTD
INSERTED DETAIL,,Ealing Council,http://opendatacommunities.org/id/london-borough-council/ealing,CHILDREN & ADULTS,1,EALING SERVICE FOR CHILDREN WITH ADDITIONAL NEEDS,DIRECT PAYMENTS,4231,,25/01/2023,23274838,1012.64,80764,CARE IN FINANCE LTD
INSERTED DETAIL,,Ealing Council,http://opendatacommunities.org/id/london-borough-council/ealing,CHILDREN & ADULTS,1,EALING SERVICE FOR CHILDREN WITH ADDITIONAL NEEDS,DIRECT PAYMENTS,4231,,25/01/2023,23274838,2307.64,80764,CARE IN FINANCE LTD
INSERTED DETAIL,,Ealing Council,http://opendatacommunities.org/id/london-borough-council/ealing,CHILDREN & ADULTS,1,EALING SERVICE FOR CHILDREN WITH ADDITIONAL NEEDS,DIRECT PAYMENTS,4231,,25/01/2023,23274838,446.48,80764,CARE IN FINANCE LTD
INSERTED DETAIL,,Ealing Council,http://opendatacommunities.org/id/london-borough-council/ealing,CHILDREN & ADULTS,1,EALING SERVICE FOR CHILDREN WITH ADDITIONAL NEEDS,DIRECT PAYMENTS,4231,,25/01/2023,23274838,738.32,80764,CARE IN FINANCE LTD
INSERTED DETAIL,,Ealing Council,http://opendatacommunities.org/id/london-borough-council/ealing,CHILDREN & ADULTS,1,EALING SERVICE FOR CHILDREN WITH ADDITIONAL NEEDS,DIRECT PAYMENTS,4231,,25/01/2023,23274838,274.44,80764,CARE IN FINANCE LTD
INSERTED DETAIL,,Ealing Council,http://opendatacommunities.org/id/london-borough-council/ealing,CHILDREN & ADULTS,1,EALING SERVICE FOR CHILDREN WITH ADDITIONAL NEEDS,DIRECT PAYMENTS,4231,,25/01/2023,23274838,325.2,80764,CARE IN FINANCE LTD
INSERTED DETAIL,,Ealing Council,http://opendatacommunities.org/id/london-borough-council/ealing,CHILDREN & ADULTS,1,EALING SERVICE FOR CHILDREN WITH ADDITIONAL NEEDS,DIRECT PAYMENTS,4231,,25/01/2023,23274838,1470,80764,CARE IN FINANCE LTD
INSERTED DETAIL,,Ealing Council,http://opendatacommunities.org/id/london-borough-council/ealing,CHILDREN & ADULTS,1,EALING SERVICE FOR CHILDREN WITH ADDITIONAL NEEDS,DIRECT PAYMENTS,4231,,25/01/2023,23274838,326.4,80764,CARE IN FINANCE LTD
INSERTED DETAIL,,Ealing Council,http://opendatacommunities.org/id/london-borough-council/ealing,CHILDREN & ADULTS,1,EALING SERVICE FOR CHILDREN WITH ADDITIONAL NEEDS,DIRECT PAYMENTS,4231,,25/01/2023,23274838,3143.6,80764,CARE IN FINANCE LTD
INSERTED DETAIL,,Ealing Council,http://opendatacommunities.org/id/london-borough-council/ealing,CHILDREN & ADULTS,1,EALING SERVICE FOR CHILDREN WITH ADDITIONAL NEEDS,DIRECT PAYMENTS,4231,,25/01/2023,23274838,324.32,80764,CARE IN FINANCE LTD
INSERTED DETAIL,,Ealing Council,http://opendatacommunities.org/id/london-borough-council/ealing,CHILDREN & ADULTS,1,EALING SERVICE FOR CHILDREN WITH ADDITIONAL NEEDS,DIRECT PAYMENTS,4231,,25/01/2023,23274838,457.44,80764,CARE IN FINANCE LTD
INSERTED DETAIL,,Ealing Council,http://opendatacommunities.org/id/london-borough-council/ealing,CHILDREN & ADULTS,1,EALING SERVICE FOR CHILDREN WITH ADDITIONAL NEEDS,DIRECT PAYMENTS,4231,,25/01/2023,23274838,1192.4,80764,CARE IN FINANCE LTD
INSERTED DETAIL,,Ealing Council,http://opendatacommunities.org/id/london-borough-council/ealing,CHILDREN & ADULTS,1,EALING SERVICE FOR CHILDREN WITH ADDITIONAL NEEDS,DIRECT PAYMENTS,4231,,25/01/2023,23274838,486.48,80764,CARE IN FINANCE LTD
INSERTED DETAIL,,Ealing Council,http://opendatacommunities.org/id/london-borough-council/ealing,CHILDREN & ADULTS,1,EALING SERVICE FOR CHILDREN WITH ADDITIONAL NEEDS,DIRECT PAYMENTS,4231,,25/01/2023,23274838,1874.76,80764,CARE IN FINANCE LTD
INSERTED DETAIL,,Ealing Council,http://opendatacommunities.org/id/london-borough-council/ealing,CHILDREN & ADULTS,1,EALING SERVICE FOR CHILDREN WITH ADDITIONAL NEEDS,DIRECT PAYMENTS,4231,,25/01/2023,23274838,361.04,80764,CARE IN FINANCE LTD
INSERTED DETAIL,,Ealing Council,http://opendatacommunities.org/id/london-borough-council/ealing,CHILDREN & ADULTS,1,EALING SERVICE FOR CHILDREN WITH ADDITIONAL NEEDS,DIRECT PAYMENTS,4231,,25/01/2023,23274838,775.48,80764,CARE IN FINANCE LTD
INSERTED DETAIL,,Ealing Council,http://opendatacommunities.org/id/london-borough-council/ealing,CHILDREN & ADULTS,1,EALING SERVICE FOR CHILDREN WITH ADDITIONAL NEEDS,DIRECT PAYMENTS,4231,,25/01/2023,23274838,2281.56,80764,CARE IN FINANCE LTD
INSERTED DETAIL,,Ealing Council,http://opendatacommunities.org/id/london-borough-council/ealing,CHILDREN & ADULTS,1,EALING SERVICE FOR CHILDREN WITH ADDITIONAL NEEDS,DIRECT PAYMENTS,4231,,25/01/2023,23274838,3244.16,80764,CARE IN FINANCE LTD
INSERTED DETAIL,,Ealing Council,http://opendatacommunities.org/id/london-borough-council/ealing,CHILDREN & ADULTS,1,EALING SERVICE FOR CHILDREN WITH ADDITIONAL NEEDS,DIRECT PAYMENTS,4231,,25/01/2023,23274838,798.8,80764,CARE IN FINANCE LTD
INSERTED DETAIL,,Ealing Council,http://opendatacommunities.org/id/london-borough-council/ealing,CHILDREN & ADULTS,1,EALING SERVICE FOR CHILDREN WITH ADDITIONAL NEEDS,DIRECT PAYMENTS,4231,,25/01/2023,23274838,8036,80764,CARE IN FINANCE LTD
INSERTED DETAIL,,Ealing Council,http://opendatacommunities.org/id/london-borough-council/ealing,CHILDREN & ADULTS,1,EALING SERVICE FOR CHILDREN WITH ADDITIONAL NEEDS,DIRECT PAYMENTS,4231,,25/01/2023,23274838,542,80764,CARE IN FINANCE LTD
INSERTED DETAIL,,Ealing Council,http://opendatacommunities.org/id/london-borough-council/ealing,CHILDREN & ADULTS,1,EALING SERVICE FOR CHILDREN WITH ADDITIONAL NEEDS,DIRECT PAYMENTS,4231,,25/01/2023,23274838,293.12,80764,CARE IN FINANCE LTD
INSERTED DETAIL,,Ealing Council,http://opendatacommunities.org/id/london-borough-council/ealing,CHILDREN & ADULTS,1,EALING SERVICE FOR CHILDREN WITH ADDITIONAL NEEDS,DIRECT PAYMENTS,4231,,25/01/2023,23274838,293.28,80764,CARE IN FINANCE LTD
INSERTED DETAIL,,Ealing Council,http://opendatacommunities.org/id/london-borough-council/ealing,CHILDREN & ADULTS,1,EALING SERVICE FOR CHILDREN WITH ADDITIONAL NEEDS,DIRECT PAYMENTS,4231,,25/01/2023,23274838,577.92,80764,CARE IN FINANCE LTD
INSERTED DETAIL,,Ealing Council,http://opendatacommunities.org/id/london-borough-council/ealing,CHILDREN & ADULTS,1,EALING SERVICE FOR CHILDREN WITH ADDITIONAL NEEDS,DIRECT PAYMENTS,4231,,25/01/2023,23274838,474.79,80764,CARE IN FINANCE LTD
INSERTED DETAIL,,Ealing Council,http://opendatacommunities.org/id/london-borough-council/ealing,CHILDREN & ADULTS,1,EALING SERVICE FOR CHILDREN WITH ADDITIONAL NEEDS,DIRECT PAYMENTS,4231,,25/01/2023,23274838,3700.04,80764,CARE IN FINANCE LTD
INSERTED DETAIL,,Ealing Council,http://opendatacommunities.org/id/london-borough-council/ealing,CHILDREN & ADULTS,1,EALING SERVICE FOR CHILDREN WITH ADDITIONAL NEEDS,DIRECT PAYMENTS,4231,,25/01/2023,23274838,829.52,80764,CARE IN FINANCE LTD
INSERTED DETAIL,,Ealing Council,http://opendatacommunities.org/id/london-borough-council/ealing,PLACE,6,HOUSING PROPERTY & ASSETS,CLEANING CONTRACT,1300,,22/12/2022,41045449,2741.3,28826,GREENER EALING LIMITED
INSERTED DETAIL,,Ealing Council,http://opendatacommunities.org/id/london-borough-council/ealing,PLACE,6,HOUSING  DEMAND,REPAIR AND MAINTENANCE,1410,,14/12/2022,41044229,297.85,12191,GREENFORD SECURITY SERVICES LTD
INSERTED DETAIL,,Ealing Council,http://opendatacommunities.org/id/london-borough-council/ealing,PLACE,6,HOUSING  DEMAND,FURNITURE,3360,,19/12/2022,41044745,315,12789,KENWAYS FURNITURE
INSERTED DETAIL,,Ealing Council,http://opendatacommunities.org/id/london-borough-council/ealing,PLACE,6,HOUSING  DEMAND,FURNITURE,3360,,09/12/2022,41044746,540,12789,KENWAYS FURNITURE
INSERTED DETAIL,,Ealing Council,http://opendatacommunities.org/id/london-borough-council/ealing,PLACE,6,HOUSING  DEMAND,FURNITURE,3360,,09/12/2022,41044747,320,12789,KENWAYS FURNITURE
INSERTED DETAIL,,Ealing Council,http://opendatacommunities.org/id/london-borough-council/ealing,PLACE,6,HOUSING  DEMAND,FURNITURE,3360,,13/12/2022,41044748,290,12789,KENWAYS FURNITURE
INSERTED DETAIL,,Ealing Council,http://opendatacommunities.org/id/london-borough-council/ealing,CHILDREN & ADULTS,1,EARLY YEARS CHILDCARE & SAFE,CHILDCARE PROVISION,4690,,19/01/2023,50002030,400,19728,FIT FOR SPORT LTD
INSERTED DETAIL,,Ealing Council,http://opendatacommunities.org/id/london-borough-council/ealing,CHILDREN & ADULTS,1,EARLY YEARS CHILDCARE & SAFE,CHILDCARE PROVISION,4690,,19/01/2023,50002030,800,19728,FIT FOR SPORT LTD
INSERTED DETAIL,,Ealing Council,http://opendatacommunities.org/id/london-borough-council/ealing,CHILDREN & ADULTS,1,EARLY YEARS CHILDCARE & SAFE,CHILDCARE PROVISION,4690,,19/01/2023,50002030,720,19728,FIT FOR SPORT LTD
INSERTED DETAIL,,Ealing Council,http://opendatacommunities.org/id/london-borough-council/ealing,CHILDREN & ADULTS,1,EARLY YEARS CHILDCARE & SAFE,CHILDCARE PROVISION,4690,,19/01/2023,50002030,2000,20079,LONDON TIGERS
INSERTED DETAIL,,Ealing Council,http://opendatacommunities.org/id/london-borough-council/ealing,CHILDREN & ADULTS,1,EARLY YEARS CHILDCARE & SAFE,CHILDCARE PROVISION,4690,,19/01/2023,50002030,800,20079,LONDON TIGERS
INSERTED DETAIL,,Ealing Council,http://opendatacommunities.org/id/london-borough-council/ealing,CHILDREN & ADULTS,1,EARLY YEARS CHILDCARE & SAFE,CHILDCARE PROVISION,4690,,07/12/2022,41044649,2208,29890,OMNIRA LEARNING LTD
INSERTED DETAIL,,Ealing Council,http://opendatacommunities.org/id/london-borough-council/ealing,CHILDREN & ADULTS,1,EARLY YEARS CHILDCARE & SAFE,CHILDCARE PROVISION,4690,,19/01/2023,50002030,4000,29373,FOOTY FUN 4 KIDS LTD
INSERTED DETAIL,,Ealing Council,http://opendatacommunities.org/id/london-borough-council/ealing,CHILDREN & ADULTS,1,EARLY YEARS CHILDCARE & SAFE,CHILDCARE PROVISION,4690,,24/01/2023,50002042,1600,29375,SKIPZ PRODUCTIONS CIC
INSERTED DETAIL,,Ealing Council,http://opendatacommunities.org/id/london-borough-council/ealing,CHILDREN & ADULTS,1,EARLY YEARS CHILDCARE & SAFE,CHILDCARE PROVISION,4690,,19/01/2023,50002030,800,29885,REDACTED SENSITIVE SUPPLIER
INSERTED DETAIL,,Ealing Council,http://opendatacommunities.org/id/london-borough-council/ealing,CHILDREN & ADULTS,1,EARLY YEARS CHILDCARE & SAFE,CHILDCARE PROVISION,4690,,21/12/2022,41045130,2000,10000070,STAR PLAYER LTD
INSERTED DETAIL,,Ealing Council,http://opendatacommunities.org/id/london-borough-council/ealing,CHILDREN & ADULTS,1,EARLY YEARS CHILDCARE & SAFE,CHILDCARE PROVISION,4690,,19/01/2023,50002030,2000,10000070,STAR PLAYER LTD
INSERTED DETAIL,,Ealing Council,http://opendatacommunities.org/id/london-borough-council/ealing,CHILDREN & ADULTS,1,EARLY YEARS CHILDCARE & SAFE,CHILDCARE PROVISION,4690,,19/01/2023,50002030,1160,10000070,STAR PLAYER LTD
INSERTED DETAIL,,Ealing Council,http://opendatacommunities.org/id/london-borough-council/ealing,CHILDREN & ADULTS,1,EARLY YEARS CHILDCARE & SAFE,CHILDCARE PROVISION,4690,,19/01/2023,50002030,1007.62,10000072,LSC ACTIVATE LTD
INSERTED DETAIL,,Ealing Council,http://opendatacommunities.org/id/london-borough-council/ealing,CHILDREN & ADULTS,1,EARLY YEARS CHILDCARE & SAFE,CHILDCARE PROVISION,4690,,22/12/2022,41048650,1259.52,10000072,LSC ACTIVATE LTD
INSERTED DETAIL,,Ealing Council,http://opendatacommunities.org/id/london-borough-council/ealing,CHILDREN & ADULTS,1,EARLY YEARS CHILDCARE & SAFE,TRAINING MATERIALS,3350,,10/01/2023,41046557,520.8,13809,NSPCC REGISTERED CHARITY
INSERTED DETAIL,,Ealing Council,http://opendatacommunities.org/id/london-borough-council/ealing,CHILDREN & ADULTS,1,EARLY YEARS CHILDCARE & SAFE,CHILDCARE PROVISION,4690,,24/01/2023,50002042,800,17114,BRENTFORD FC COMMUNITY SPORTS TRUST
INSERTED DETAIL,,Ealing Council,http://opendatacommunities.org/id/london-borough-council/ealing,CHILDREN & ADULTS,1,EARLY YEARS CHILDCARE & SAFE,CHILDCARE PROVISION,4690,,19/01/2023,50002030,1600,15760,WORLD OF CHILDREN
INSERTED DETAIL,,Ealing Council,http://opendatacommunities.org/id/london-borough-council/ealing,CHILDREN & ADULTS,1,EARLY YEARS CHILDCARE & SAFE,CHILDCARE PROVISION,4690,,19/01/2023,50002030,3280,15760,WORLD OF CHILDREN
INSERTED DETAIL,,Ealing Council,http://opendatacommunities.org/id/london-borough-council/ealing,CHILDREN & ADULTS,1,EARLY YEARS CHILDCARE & SAFE,CHILDCARE PROVISION,4690,,19/01/2023,50002030,2000,29586,OUR PARKS LTD
INSERTED DETAIL,,Ealing Council,http://opendatacommunities.org/id/london-borough-council/ealing,CHILDREN & ADULTS,1,DISABILITIES,PAYMENTS TO CONTRACTORS,4000,,18/01/2023,41048125,6750,9900014,REDACTED SENSITIVE SUPPLIER
INSERTED DETAIL,,Ealing Council,http://opendatacommunities.org/id/london-borough-council/ealing,CHILDREN & ADULTS,1,DISABILITIES,DOMICILIARY CARE - BLOCK,4240,,09/01/2023,23271940,524.8,28295,UNITE CARE LTD
INSERTED DETAIL,,Ealing Council,http://opendatacommunities.org/id/london-borough-council/ealing,CHILDREN & ADULTS,1,DISABILITIES,DOMICILIARY CARE - BLOCK,4240,,09/01/2023,23271940,262.4,28295,UNITE CARE LTD
INSERTED DETAIL,,Ealing Council,http://opendatacommunities.org/id/london-borough-council/ealing,CHILDREN & ADULTS,1,DISABILITIES,DOMICILIARY CARE - BLOCK,4240,,09/01/2023,23271940,1640,28295,UNITE CARE LTD
INSERTED DETAIL,,Ealing Council,http://opendatacommunities.org/id/london-borough-council/ealing,CHILDREN & ADULTS,1,DISABILITIES,RESIDENTIAL HOMES EXTERNAL,4220,,05/01/2023,23270212,1803,27807,CAMPHILL VILLAGE TRUST LTD ST ALBANS
INSERTED DETAIL,,Ealing Council,http://opendatacommunities.org/id/london-borough-council/ealing,CHILDREN & ADULTS,1,DISABILITIES,SUPPORTED LIVING,4236,,05/01/2023,23270212,1269.6,27807,CAMPHILL VILLAGE TRUST LTD ST ALBANS
INSERTED DETAIL,,Ealing Council,http://opendatacommunities.org/id/london-borough-council/ealing,CHILDREN & ADULTS,1,DISABILITIES,RESIDENTIAL HOMES EXTERNAL,4220,,05/01/2023,23270274,6952,26475,SAHARA CARE LIMITED
INSERTED DETAIL,,Ealing Council,http://opendatacommunities.org/id/london-borough-council/ealing,CHILDREN & ADULTS,1,DISABILITIES,RESIDENTIAL HOMES EXTERNAL,4220,,05/01/2023,23270274,2448,26475,SAHARA CARE LIMITED
INSERTED DETAIL,,Ealing Council,http://opendatacommunities.org/id/london-borough-council/ealing,CHILDREN & ADULTS,1,DISABILITIES,RESIDENTIAL HOMES EXTERNAL,4220,,05/01/2023,23270163,9240.28,26542,THE FRANCES TAYLOR FOUNDATION (ST RAPHAEL'S RESIDENTIAL HOME)
INSERTED DETAIL,,Ealing Council,http://opendatacommunities.org/id/london-borough-council/ealing,CHILDREN & ADULTS,1,DISABILITIES,NURSING HOMES EXTERNAL,4230,,05/01/2023,23270173,4822.08,26718,REAL LIFE OPTIONS
INSERTED DETAIL,,Ealing Council,http://opendatacommunities.org/id/london-borough-council/ealing,CHILDREN & ADULTS,1,DISABILITIES,RESIDENTIAL HOMES EXTERNAL,4220,,01/01/2023,23272706,10046.4,27002,CAMERON LODGE LTD
INSERTED DETAIL,,Ealing Council,http://opendatacommunities.org/id/london-borough-council/ealing,CHILDREN & ADULTS,1,DISABILITIES,RESIDENTIAL HOMES EXTERNAL,4220,,05/01/2023,23270188,660,27154,ENABLEMENT CARE SERVICES LTD
INSERTED DETAIL,,Ealing Council,http://opendatacommunities.org/id/london-borough-council/ealing,CHILDREN & ADULTS,1,DISABILITIES,RESIDENTIAL HOMES EXTERNAL,4220,,05/01/2023,23270188,4032,27154,ENABLEMENT CARE SERVICES LTD
INSERTED DETAIL,,Ealing Council,http://opendatacommunities.org/id/london-borough-council/ealing,CHILDREN & ADULTS,1,DISABILITIES,RESIDENTIAL HOMES EXTERNAL,4220,,05/01/2023,23270188,3360,27154,ENABLEMENT CARE SERVICES LTD
INSERTED DETAIL,,Ealing Council,http://opendatacommunities.org/id/london-borough-council/ealing,CHILDREN & ADULTS,1,DISABILITIES,RESIDENTIAL HOMES EXTERNAL,4220,,05/01/2023,23270188,336,27154,ENABLEMENT CARE SERVICES LTD
INSERTED DETAIL,,Ealing Council,http://opendatacommunities.org/id/london-borough-council/ealing,CHILDREN & ADULTS,1,DISABILITIES,RESIDENTIAL HOMES EXTERNAL,4220,,05/01/2023,23270188,349.84,27154,ENABLEMENT CARE SERVICES LTD
INSERTED DETAIL,,Ealing Council,http://opendatacommunities.org/id/london-borough-council/ealing,CHILDREN & ADULTS,1,DISABILITIES,RESIDENTIAL HOMES EXTERNAL,4220,,05/01/2023,23270188,276.16,27154,ENABLEMENT CARE SERVICES LTD
INSERTED DETAIL,,Ealing Council,http://opendatacommunities.org/id/london-borough-council/ealing,CHILDREN & ADULTS,1,DISABILITIES,DAY CARE CENTRES,4250,,05/01/2023,23270188,1296,27154,ENABLEMENT CARE SERVICES LTD
INSERTED DETAIL,,Ealing Council,http://opendatacommunities.org/id/london-borough-council/ealing,CHILDREN & ADULTS,1,DISABILITIES,DAY CARE CENTRES,4250,,05/01/2023,23270188,1080,27154,ENABLEMENT CARE SERVICES LTD
INSERTED DETAIL,,Ealing Council,http://opendatacommunities.org/id/london-borough-council/ealing,CHILDREN & ADULTS,1,DISABILITIES,DAY CARE CENTRES,4250,,05/01/2023,23270188,3000,27154,ENABLEMENT CARE SERVICES LTD
INSERTED DETAIL,,Ealing Council,http://opendatacommunities.org/id/london-borough-council/ealing,CHILDREN & ADULTS,1,DISABILITIES,DAY CARE CENTRES,4250,,05/01/2023,23270188,4640,27154,ENABLEMENT CARE SERVICES LTD
INSERTED DETAIL,,Ealing Council,http://opendatacommunities.org/id/london-borough-council/ealing,CHILDREN & ADULTS,1,DISABILITIES,DOMICILIARY CARE - BLOCK,4240,,30/01/2023,23281063,1716.24,14744,CAPITAL HOMECARE (UK) LTD
INSERTED DETAIL,,Ealing Council,http://opendatacommunities.org/id/london-borough-council/ealing,CHILDREN & ADULTS,1,DISABILITIES,DOMICILIARY CARE - BLOCK,4240,,30/01/2023,23281063,517.2,14744,CAPITAL HOMECARE (UK) LTD
INSERTED DETAIL,,Ealing Council,http://opendatacommunities.org/id/london-borough-council/ealing,CHILDREN & ADULTS,1,DISABILITIES,DOMICILIARY CARE - BLOCK,4240,,30/01/2023,23281063,748.8,14744,CAPITAL HOMECARE (UK) LTD
INSERTED DETAIL,,Ealing Council,http://opendatacommunities.org/id/london-borough-council/ealing,CHILDREN & ADULTS,1,DISABILITIES,DOMICILIARY CARE - BLOCK,4240,,30/01/2023,23281063,1853.6,14744,CAPITAL HOMECARE (UK) LTD
INSERTED DETAIL,,Ealing Council,http://opendatacommunities.org/id/london-borough-council/ealing,CHILDREN & ADULTS,1,DISABILITIES,RESIDENTIAL HOMES EXTERNAL,4220,,05/01/2023,23270053,358.8,14979,SUPREME CARE SERVICES LTD
INSERTED DETAIL,,Ealing Council,http://opendatacommunities.org/id/london-borough-council/ealing,CHILDREN & ADULTS,1,DISABILITIES,DOMICILIARY CARE - BLOCK,4240,,05/01/2023,23270370,2425.5,14979,SUPREME CARE SERVICES LTD
INSERTED DETAIL,,Ealing Council,http://opendatacommunities.org/id/london-borough-council/ealing,CHILDREN & ADULTS,1,DISABILITIES,DOMICILIARY CARE - BLOCK,4240,,04/01/2023,23269953,746.4,29189,HUMBLE HEALTHCARE LTD
INSERTED DETAIL,,Ealing Council,http://opendatacommunities.org/id/london-borough-council/ealing,CHILDREN & ADULTS,1,DISABILITIES,RESIDENTIAL HOMES EXTERNAL,4220,,05/01/2023,23270315,4970.52,29386,CALLAWAY CARE AND SUPPORT LTD
INSERTED DETAIL,,Ealing Council,http://opendatacommunities.org/id/london-borough-council/ealing,CHILDREN & ADULTS,1,DISABILITIES,RESIDENTIAL HOMES EXTERNAL,4220,,05/01/2023,23270315,2646.28,29386,CALLAWAY CARE AND SUPPORT LTD
INSERTED DETAIL,,Ealing Council,http://opendatacommunities.org/id/london-borough-council/ealing,CHILDREN & ADULTS,1,DISABILITIES,RESIDENTIAL HOMES EXTERNAL,4220,,05/01/2023,23270315,6188.4,29386,CALLAWAY CARE AND SUPPORT LTD
INSERTED DETAIL,,Ealing Council,http://opendatacommunities.org/id/london-borough-council/ealing,CHILDREN & ADULTS,1,DISABILITIES,RESIDENTIAL HOMES EXTERNAL,4220,,05/01/2023,23270315,392.4,29386,CALLAWAY CARE AND SUPPORT LTD
INSERTED DETAIL,,Ealing Council,http://opendatacommunities.org/id/london-borough-council/ealing,CHILDREN & ADULTS,1,DISABILITIES,RESIDENTIAL HOMES EXTERNAL,4220,,05/01/2023,23270315,6760,29386,CALLAWAY CARE AND SUPPORT LTD
INSERTED DETAIL,,Ealing Council,http://opendatacommunities.org/id/london-borough-council/ealing,CHILDREN & ADULTS,1,DISABILITIES,RESIDENTIAL HOMES EXTERNAL,4220,,05/01/2023,23270315,4478.8,29386,CALLAWAY CARE AND SUPPORT LTD
INSERTED DETAIL,,Ealing Council,http://opendatacommunities.org/id/london-borough-council/ealing,CHILDREN & ADULTS,1,DISABILITIES,RESIDENTIAL HOMES EXTERNAL,4220,,05/12/2022,23273547,5769.32,29618,SALUTEM SHARED SERVICES LIMITED
INSERTED DETAIL,,Ealing Council,http://opendatacommunities.org/id/london-borough-council/ealing,CHILDREN & ADULTS,1,DISABILITIES,RESIDENTIAL HOMES EXTERNAL,4220,,05/01/2023,23270338,10080,29735,REVON HEALTHCARE LTD
INSERTED DETAIL,,Ealing Council,http://opendatacommunities.org/id/london-borough-council/ealing,CHILDREN & ADULTS,1,DISABILITIES,SUPPORTED LIVING,4236,,05/01/2023,23270338,5760,29735,REVON HEALTHCARE LTD
INSERTED DETAIL,,Ealing Council,http://opendatacommunities.org/id/london-borough-council/ealing,CHILDREN & ADULTS,1,DISABILITIES,RESIDENTIAL HOMES EXTERNAL,4220,,05/01/2023,23270335,2400,29820,ASPEN HOUSE RESIDENTIAL CARE HOME T/A ASPEN HOUSE
INSERTED DETAIL,,Ealing Council,http://opendatacommunities.org/id/london-borough-council/ealing,CHILDREN & ADULTS,1,DISABILITIES,DIRECT PAYMENTS,4231,,24/01/2023,23274390,533.96,80230,REDACTED SENSITIVE SUPPLIER
INSERTED DETAIL,,Ealing Council,http://opendatacommunities.org/id/london-borough-council/ealing,CHILDREN & ADULTS,1,DISABILITIES,DIRECT PAYMENTS,4231,,24/01/2023,23274407,1178.36,80626,REDACTED SENSITIVE SUPPLIER
INSERTED DETAIL,,Ealing Council,http://opendatacommunities.org/id/london-borough-council/ealing,CHILDREN & ADULTS,1,DISABILITIES,DIRECT PAYMENTS,4231,,24/01/2023,23274448,1709,80809,REDACTED SENSITIVE SUPPLIER
INSERTED DETAIL,,Ealing Council,http://opendatacommunities.org/id/london-borough-council/ealing,CHILDREN & ADULTS,1,DISABILITIES,RESIDENTIAL HOMES EXTERNAL,4220,,05/01/2023,23270322,2716.12,22236,ACORN CARE & EDUCATION LTD T/A OPTIONS AUTISM (8) LIMITED
INSERTED DETAIL,,Ealing Council,http://opendatacommunities.org/id/london-borough-council/ealing,CHILDREN & ADULTS,1,DISABILITIES,DOMICILIARY CARE - BLOCK,4240,,30/01/2023,23281068,2368.8,25437,AMBER HOME CARERS LTD - T/A AMBER HOME CARERS
INSERTED DETAIL,,Ealing Council,http://opendatacommunities.org/id/london-borough-council/ealing,CHILDREN & ADULTS,1,DISABILITIES,DOMICILIARY CARE - BLOCK,4240,,30/01/2023,23281068,680.68,25437,AMBER HOME CARERS LTD - T/A AMBER HOME CARERS
INSERTED DETAIL,,Ealing Council,http://opendatacommunities.org/id/london-borough-council/ealing,CHILDREN & ADULTS,1,DISABILITIES,DAY CARE CENTRES,4250,,05/01/2023,23270137,852.92,25841,SUNRISE CARE LTD T/A SUNRISE CARE (WEMBLEY) DAY CENTRE
INSERTED DETAIL,,Ealing Council,http://opendatacommunities.org/id/london-borough-council/ealing,CHILDREN & ADULTS,1,DISABILITIES,DAY CARE CENTRES,4250,,05/01/2023,23270137,2738.8,25841,SUNRISE CARE LTD T/A SUNRISE CARE (WEMBLEY) DAY CENTRE
INSERTED DETAIL,,Ealing Council,http://opendatacommunities.org/id/london-borough-council/ealing,CHILDREN & ADULTS,1,DISABILITIES,NURSING HOMES EXTERNAL,4230,,30/01/2023,41048504,3636.3,28545,COATE WATER CARE COMPANY (CHURCH VIEW NURSING HOME) LTD
INSERTED DETAIL,,Ealing Council,http://opendatacommunities.org/id/london-borough-council/ealing,CHILDREN & ADULTS,1,DISABILITIES,NURSING HOMES EXTERNAL,4230,,30/01/2023,41048506,16126.2,28545,COATE WATER CARE COMPANY (CHURCH VIEW NURSING HOME) LTD
INSERTED DETAIL,,Ealing Council,http://opendatacommunities.org/id/london-borough-council/ealing,CHILDREN & ADULTS,1,DISABILITIES,DAY CARE CENTRES,4250,,05/01/2023,23270304,552,29260,SLOUGH AND DISTRICT DEAF CENTRE T/A DEAF AIMS
INSERTED DETAIL,,Ealing Council,http://opendatacommunities.org/id/london-borough-council/ealing,CHILDREN & ADULTS,1,DISABILITIES,DAY CARE CENTRES,4250,,05/01/2023,23270304,539.92,29260,SLOUGH AND DISTRICT DEAF CENTRE T/A DEAF AIMS
INSERTED DETAIL,,Ealing Council,http://opendatacommunities.org/id/london-borough-council/ealing,CHILDREN & ADULTS,1,DISABILITIES,DAY CARE CENTRES,4250,,05/01/2023,23270304,539.92,29260,SLOUGH AND DISTRICT DEAF CENTRE T/A DEAF AIMS
INSERTED DETAIL,,Ealing Council,http://opendatacommunities.org/id/london-borough-council/ealing,CHILDREN & ADULTS,1,DISABILITIES,DAY CARE CENTRES,4250,,05/01/2023,23270304,552,29260,SLOUGH AND DISTRICT DEAF CENTRE T/A DEAF AIMS
INSERTED DETAIL,,Ealing Council,http://opendatacommunities.org/id/london-borough-council/ealing,CHILDREN & ADULTS,1,DISABILITIES,DAY CARE CENTRES,4250,,05/01/2023,23270304,1079.88,29260,SLOUGH AND DISTRICT DEAF CENTRE T/A DEAF AIMS
INSERTED DETAIL,,Ealing Council,http://opendatacommunities.org/id/london-borough-council/ealing,CHILDREN & ADULTS,1,DISABILITIES,DAY CARE CENTRES,4250,,01/04/2022,23273891,1434.08,13620,NATIONAL AUTISTIC SOCIETY (THE) T/A NAS SERVICES LTD
INSERTED DETAIL,,Ealing Council,http://opendatacommunities.org/id/london-borough-council/ealing,CHILDREN & ADULTS,1,DISABILITIES,RESIDENTIAL HOMES EXTERNAL,4220,,05/01/2023,23269970,2048.48,14755,OASIS CARE & TRAINING AGENCY (OCTA)
INSERTED DETAIL,,Ealing Council,http://opendatacommunities.org/id/london-borough-council/ealing,CHILDREN & ADULTS,1,DISABILITIES,RESIDENTIAL HOMES EXTERNAL,4220,,05/01/2023,23269970,450.52,14755,OASIS CARE & TRAINING AGENCY (OCTA)
INSERTED DETAIL,,Ealing Council,http://opendatacommunities.org/id/london-borough-council/ealing,CHILDREN & ADULTS,1,DISABILITIES,RESIDENTIAL HOMES EXTERNAL,4220,,05/01/2023,23269970,1122.96,14755,OASIS CARE & TRAINING AGENCY (OCTA)
INSERTED DETAIL,,Ealing Council,http://opendatacommunities.org/id/london-borough-council/ealing,CHILDREN & ADULTS,1,DISABILITIES,RESIDENTIAL HOMES EXTERNAL,4220,,05/01/2023,23269970,896.4,14755,OASIS CARE & TRAINING AGENCY (OCTA)
INSERTED DETAIL,,Ealing Council,http://opendatacommunities.org/id/london-borough-council/ealing,CHILDREN & ADULTS,1,DISABILITIES,DOMICILIARY CARE - BLOCK,4240,,04/01/2023,23269954,643.6,14755,OASIS CARE & TRAINING AGENCY (OCTA)
INSERTED DETAIL,,Ealing Council,http://opendatacommunities.org/id/london-borough-council/ealing,CHILDREN & ADULTS,1,DISABILITIES,DOMICILIARY CARE - BLOCK,4240,,04/01/2023,23269954,356.2,14755,OASIS CARE & TRAINING AGENCY (OCTA)
INSERTED DETAIL,,Ealing Council,http://opendatacommunities.org/id/london-borough-council/ealing,CHILDREN & ADULTS,1,DISABILITIES,DOMICILIARY CARE - BLOCK,4240,,04/01/2023,23269954,1029.84,14755,OASIS CARE & TRAINING AGENCY (OCTA)
INSERTED DETAIL,,Ealing Council,http://opendatacommunities.org/id/london-borough-council/ealing,CHILDREN & ADULTS,1,DISABILITIES,DOMICILIARY CARE - BLOCK,4240,,04/01/2023,23269954,1126.4,14755,OASIS CARE & TRAINING AGENCY (OCTA)
INSERTED DETAIL,,Ealing Council,http://opendatacommunities.org/id/london-borough-council/ealing,CHILDREN & ADULTS,1,DISABILITIES,DOMICILIARY CARE - BLOCK,4240,,04/01/2023,23269954,1424.8,14755,OASIS CARE & TRAINING AGENCY (OCTA)
INSERTED DETAIL,,Ealing Council,http://opendatacommunities.org/id/london-borough-council/ealing,CHILDREN & ADULTS,1,ILT,EMI NURSING,4237,,12/12/2022,23274367,6500,10875,CARE UK COMMUNITY PARTNERSHIP LTD
INSERTED DETAIL,,Ealing Council,http://opendatacommunities.org/id/london-borough-council/ealing,CHILDREN & ADULTS,1,ILT,NURSING HOMES EXTERNAL,4230,,10/11/2022,23274367,6280,10875,CARE UK COMMUNITY PARTNERSHIP LTD
INSERTED DETAIL,,Ealing Council,http://opendatacommunities.org/id/london-borough-council/ealing,CHILDREN & ADULTS,1,ILT,NURSING HOMES EXTERNAL,4230,,12/12/2022,23274367,6280,10875,CARE UK COMMUNITY PARTNERSHIP LTD
INSERTED DETAIL,,Ealing Council,http://opendatacommunities.org/id/london-borough-council/ealing,CHILDREN & ADULTS,1,ILT,EMI RESIDENTIAL,4227,,10/11/2022,23274367,6280,10875,CARE UK COMMUNITY PARTNERSHIP LTD
INSERTED DETAIL,,Ealing Council,http://opendatacommunities.org/id/london-borough-council/ealing,CHILDREN & ADULTS,1,ILT,EMI RESIDENTIAL,4227,,12/12/2022,23274367,6280,10875,CARE UK COMMUNITY PARTNERSHIP LTD
INSERTED DETAIL,,Ealing Council,http://opendatacommunities.org/id/london-borough-council/ealing,CHILDREN & ADULTS,1,ILT,DAY CARE CENTRES,4250,,05/01/2023,23270142,352,10954,CENT MIDDX SKILLS DEVELOP CENT
INSERTED DETAIL,,Ealing Council,http://opendatacommunities.org/id/london-borough-council/ealing,CHILDREN & ADULTS,1,ILT,DAY CARE CENTRES,4250,,05/01/2023,23270142,1760,10954,CENT MIDDX SKILLS DEVELOP CENT
INSERTED DETAIL,,Ealing Council,http://opendatacommunities.org/id/london-borough-council/ealing,CHILDREN & ADULTS,1,ILT,RESIDENTIAL HOMES EXTERNAL,4220,,05/01/2023,23270043,3565.72,11593,SUPPORT FOR LIVING LTD
INSERTED DETAIL,,Ealing Council,http://opendatacommunities.org/id/london-borough-council/ealing,CHILDREN & ADULTS,1,ILT,NURSING HOMES EXTERNAL,4230,,05/01/2023,23269987,2765.2,11614,EALING MANOR NURSING HOME
INSERTED DETAIL,,Ealing Council,http://opendatacommunities.org/id/london-borough-council/ealing,CHILDREN & ADULTS,1,ILT,NURSING HOMES EXTERNAL,4230,,05/01/2023,23269987,2700,11614,EALING MANOR NURSING HOME
INSERTED DETAIL,,Ealing Council,http://opendatacommunities.org/id/london-borough-council/ealing,CHILDREN & ADULTS,1,ILT,NURSING HOMES EXTERNAL,4230,,05/01/2023,23269987,2458.4,11614,EALING MANOR NURSING HOME
INSERTED DETAIL,,Ealing Council,http://opendatacommunities.org/id/london-borough-council/ealing,CHILDREN & ADULTS,1,ILT,RESIDENTIAL HOMES EXTERNAL,4220,,05/01/2023,23269987,2042.52,11614,EALING MANOR NURSING HOME
INSERTED DETAIL,,Ealing Council,http://opendatacommunities.org/id/london-borough-council/ealing,CHILDREN & ADULTS,1,ILT,RESIDENTIAL HOMES EXTERNAL,4220,,05/01/2023,23269988,3560,11720,ELM PARK LODGE
INSERTED DETAIL,,Ealing Council,http://opendatacommunities.org/id/london-borough-council/ealing,CHILDREN & ADULTS,1,ILT,NURSING HOMES EXTERNAL,4230,,05/01/2023,23270012,2912,14309,ASTER HEALTHCARE
INSERTED DETAIL,,Ealing Council,http://opendatacommunities.org/id/london-borough-council/ealing,CHILDREN & ADULTS,1,ILT,NURSING HOMES EXTERNAL,4230,,05/01/2023,23270012,2864.72,14309,ASTER HEALTHCARE
INSERTED DETAIL,,Ealing Council,http://opendatacommunities.org/id/london-borough-council/ealing,CHILDREN & ADULTS,1,ILT,NURSING HOMES EXTERNAL,4230,,05/01/2023,23270012,2591.2,14309,ASTER HEALTHCARE
INSERTED DETAIL,,Ealing Council,http://opendatacommunities.org/id/london-borough-council/ealing,CHILDREN & ADULTS,1,ILT,DOMICILIARY CARE - BLOCK,4240,,04/01/2023,23269954,3604.16,14755,OASIS CARE & TRAINING AGENCY (OCTA)
INSERTED DETAIL,,Ealing Council,http://opendatacommunities.org/id/london-borough-council/ealing,CHILDREN & ADULTS,1,ILT,DOMICILIARY CARE - BLOCK,4240,,04/01/2023,23269954,308,14755,OASIS CARE & TRAINING AGENCY (OCTA)
INSERTED DETAIL,,Ealing Council,http://opendatacommunities.org/id/london-borough-council/ealing,CHILDREN & ADULTS,1,ILT,DOMICILIARY CARE - BLOCK,4240,,04/01/2023,23269954,396.48,14755,OASIS CARE & TRAINING AGENCY (OCTA)
INSERTED DETAIL,,Ealing Council,http://opendatacommunities.org/id/london-borough-council/ealing,CHILDREN & ADULTS,1,ILT,DOMICILIARY CARE - BLOCK,4240,,04/01/2023,23269954,804.8,14755,OASIS CARE & TRAINING AGENCY (OCTA)
INSERTED DETAIL,,Ealing Council,http://opendatacommunities.org/id/london-borough-council/ealing,CHILDREN & ADULTS,1,ILT,DOMICILIARY CARE - BLOCK,4240,,04/01/2023,23269954,257.48,14755,OASIS CARE & TRAINING AGENCY (OCTA)
INSERTED DETAIL,,Ealing Council,http://opendatacommunities.org/id/london-borough-council/ealing,CHILDREN & ADULTS,1,ILT,DOMICILIARY CARE - BLOCK,4240,,04/01/2023,23269954,675.92,14755,OASIS CARE & TRAINING AGENCY (OCTA)
INSERTED DETAIL,,Ealing Council,http://opendatacommunities.org/id/london-borough-council/ealing,CHILDREN & ADULTS,1,ILT,DOMICILIARY CARE - BLOCK,4240,,04/01/2023,23269954,337.96,14755,OASIS CARE & TRAINING AGENCY (OCTA)
INSERTED DETAIL,,Ealing Council,http://opendatacommunities.org/id/london-borough-council/ealing,CHILDREN & ADULTS,1,ILT,DOMICILIARY CARE - BLOCK,4240,,04/01/2023,23269954,2464.8,14755,OASIS CARE & TRAINING AGENCY (OCTA)
INSERTED DETAIL,,Ealing Council,http://opendatacommunities.org/id/london-borough-council/ealing,CHILDREN & ADULTS,1,ILT,DOMICILIARY CARE - BLOCK,4240,,04/01/2023,23269954,901.04,14755,OASIS CARE & TRAINING AGENCY (OCTA)
INSERTED DETAIL,,Ealing Council,http://opendatacommunities.org/id/london-borough-council/ealing,CHILDREN & ADULTS,1,ILT,DOMICILIARY CARE - BLOCK,4240,,04/01/2023,23269954,809.48,14755,OASIS CARE & TRAINING AGENCY (OCTA)
INSERTED DETAIL,,Ealing Council,http://opendatacommunities.org/id/london-borough-council/ealing,CHILDREN & ADULTS,1,ILT,DOMICILIARY CARE - BLOCK,4240,,04/01/2023,23269954,809.48,14755,OASIS CARE & TRAINING AGENCY (OCTA)
INSERTED DETAIL,,Ealing Council,http://opendatacommunities.org/id/london-borough-council/ealing,CHILDREN & ADULTS,1,ILT,DOMICILIARY CARE - BLOCK,4240,,04/01/2023,23269954,1011.36,14755,OASIS CARE & TRAINING AGENCY (OCTA)
INSERTED DETAIL,,Ealing Council,http://opendatacommunities.org/id/london-borough-council/ealing,CHILDREN & ADULTS,1,ILT,DOMICILIARY CARE - BLOCK,4240,,04/01/2023,23269954,449.68,14755,OASIS CARE & TRAINING AGENCY (OCTA)
